Workbook

Sheet Main
B10: 2019-07-29
B12: Sheet No. | C12: Template Name | D12: Summary
B13: 1 | C13: Future Intra | D13: For Intraday trading in F&O segment
B14: 2 | C14: Cash Intra | D14: For Intraday trading in cash market segment
B15: 3 | C15: Mid-cap Intra | D15: For Intraday trading in Mid-cap stocks
B16: 4 | C16: Bulk Deals | D16: Reveals Bulk Deals carried on NSE & BSE
B17: 5 | C17: Call Tracker
K27: `

Sheet Future Intra
M5: Back to Main Page
A6: FOR INTRA DAY TRADING | L6: =Main!B10 -> 2019-07-29
A9: Sr.no | B9: Sector | C9: Scrip | D9: CLOSE RATE | E9: Pivot Point | F9: Supports | I9: Resistances
B10: Sector | D10: Point | E10: Point | F10: S1 | G10: S2 | H10: S3 | I10: R1 | J10: R2 | K10: R3 | L10: HIGH | M10: LOW | N10: OI | O10: % Change in OI
A11: 1 | B11: Index | C11: BANKNIFTY | D11: 29465.65 | E11: 29367.08 | F11: 29224.17 | G11: 28982.68 | H11: 28839.77 | I11: 29608.57 | J11: 29751.48 | K11: 29992.97 | L11: 29510 | M11: 29125.6 | N11: 1420060 | O11: 0.87%
A12: 2 | B12: Index | C12: NIFTY | D12: 11327.00 | E12: 11306.38 | F12: 11267.77 | G12: 11208.53 | H12: 11169.92 | I12: 11365.62 | J12: 11404.23 | K12: 11463.47 | L12: 11345 | M12: 11247.15 | N12: 17664675 | O12: -1.40%
A13: 3 | B13: Index | C13: NIFTYIT | D13: 15427.00 | E13: 15434.00 | F13: 15329.00 | G13: 15231.00 | H13: 15126.00 | I13: 15532.00 | J13: 15637.00 | K13: 15735.00 | L13: 15539 | M13: 15336 | N13: 13000 | O13: 5.26%
A14: 4 | B14: Cement | C14: ACC | D14: 1590.90 | E14: 1586.30 | F14: 1574.80 | G14: 1558.70 | H14: 1547.20 | I14: 1602.40 | J14: 1613.90 | K14: 1630.00 | L14: 1597.8 | M14: 1570.2 | N14: 2232800 | O14: 7.80%
A15: 5 | B15: Others | C15: ADANIENT | D15: 132.10 | E15: 131.70 | F15: 128.75 | G15: 125.40 | H15: 122.45 | I15: 135.05 | J15: 138.00 | K15: 141.35 | L15: 134.65 | M15: 128.35 | N15: 28648000 | O15: -0.15%
A16: 6 | B16: Others | C16: ADANIPORTS | D16: 383.80 | E16: 383.25 | F16: 379.80 | G16: 375.80 | H16: 372.35 | I16: 387.25 | J16: 390.70 | K16: 394.70 | L16: 386.7 | M16: 379.25 | N16: 15495000 | O16: -0.05%
A17: 7 | B17: Power | C17: ADANIPOWER | D17: 63.20 | E17: 62.87 | F17: 62.03 | G17: 60.87 | H17: 60.03 | I17: 64.03 | J17: 64.87 | K17: 66.03 | L17: 63.7 | M17: 61.7 | N17: 114580000 | O17: 0.40%
A18: 8 | B18: Automobile | C18: AMARAJABAT | D18: 644.00 | E18: 639.48 | F18: 632.57 | G18: 621.13 | H18: 614.22 | I18: 650.92 | J18: 657.83 | K18: 669.27 | L18: 646.4 | M18: 628.05 | N18: 1565900 | O18: 4.97%
A19: 9 | B19: Cement | C19: AMBUJACEM | D19: 215.00 | E19: 213.90 | F19: 211.40 | G19: 207.80 | H19: 205.30 | I19: 217.50 | J19: 220.00 | K19: 223.60 | L19: 216.4 | M19: 210.3 | N19: 18835000 | O19: 3.66%
A20: 10 | B20: Others | C20: APOLLOHOSP | D20: 1371.00 | E20: 1358.68 | F20: 1343.42 | G20: 1315.83 | H20: 1300.57 | I20: 1386.27 | J20: 1401.53 | K20: 1429.12 | L20: 1373.95 | M20: 1331.1 | N20: 1414000 | O20: 0.89%
A21: 11 | B21: Automobile | C21: APOLLOTYRE | D21: 165.00 | E21: 164.35 | F21: 162.05 | G21: 159.10 | H21: 156.80 | I21: 167.30 | J21: 169.60 | K21: 172.55 | L21: 166.65 | M21: 161.4 | N21: 9273000 | O21: 3.55%
A22: 12 | B22: Textile | C22: ARVIND | D22: 59.30 | E22: 58.65 | F22: 57.05 | G22: 54.80 | H22: 53.20 | I22: 60.90 | J22: 62.50 | K22: 64.75 | L22: 60.25 | M22: 56.4 | N22: 8550000 | O22: 7.47%
A23: 13 | B23: Automobile | C23: ASHOKLEY | D23: 74.60 | E23: 74.13 | F23: 72.97 | G23: 71.33 | H23: 70.17 | I23: 75.77 | J23: 76.93 | K23: 78.57 | L23: 75.3 | M23: 72.5 | N23: 79122000 | O23: 0.15%
A24: 14 | B24: FMCG | C24: ASIANPAINT | D24: 1531.25 | E24: 1519.57 | F24: 1503.53 | G24: 1475.82 | H24: 1459.78 | I24: 1547.28 | J24: 1563.32 | K24: 1591.03 | L24: 1535.6 | M24: 1491.85 | N24: 6472800 | O24: -0.76%
A25: 15 | B25: Pharma | C25: AUROPHARMA | D25: 566.90 | E25: 564.07 | F25: 555.73 | G25: 544.57 | H25: 536.23 | I25: 575.23 | J25: 583.57 | K25: 594.73 | L25: 572.4 | M25: 552.9 | N25: 16306000 | O25: -1.07%
A26: 16 | B26: Banking | C26: AXISBANK | D26: 734.35 | E26: 731.42 | F26: 726.48 | G26: 718.62 | H26: 713.68 | I26: 739.28 | J26: 744.22 | K26: 752.08 | L26: 736.35 | M26: 723.55 | N26: 48208800 | O26: 0.35%
A27: 17 | B27: Automobile | C27: BAJAJ-AUTO | D27: 2636.45 | E27: 2617.60 | F27: 2539.85 | G27: 2443.25 | H27: 2365.50 | I27: 2714.20 | J27: 2791.95 | K27: 2888.55 | L27: 2695.35 | M27: 2521 | N27: 2292500 | O27: 3.02%
A28: 18 | B28: Finance | C28: BAJAJFINSV | D28: 7273.25 | E28: 7088.08 | F28: 6851.17 | G28: 6429.08 | H28: 6192.17 | I28: 7510.17 | J28: 7747.08 | K28: 8169.17 | L28: 7325 | M28: 6666 | N28: 963250 | O28: 5.27%
A29: 19 | B29: Finance | C29: BAJFINANCE | D29: 3275.05 | E29: 3188.28 | F29: 3088.57 | G29: 2902.08 | H29: 2802.37 | I29: 3374.77 | J29: 3474.48 | K29: 3660.97 | L29: 3288 | M29: 3001.8 | N29: 7561750 | O29: 0.08%
A30: 20 | B30: Automobile | C30: BALKRISIND | D30: 721.45 | E30: 722.90 | F30: 712.85 | G30: 704.25 | H30: 694.20 | I30: 731.50 | J30: 741.55 | K30: 750.15 | L30: 732.95 | M30: 714.3 | N30: 1969600 | O30: 7.89%
A31: 21 | B31: Banking | C31: BANKBARODA | D31: 113.25 | E31: 112.83 | F31: 110.77 | G31: 108.28 | H31: 106.22 | I31: 115.32 | J31: 117.38 | K31: 119.87 | L31: 114.9 | M31: 110.35 | N31: 57136500 | O31: 2.06%
A32: 22 | B32: Banking | C32: BANKINDIA | D32: 76.45 | E32: 76.75 | F32: 74.65 | G32: 72.85 | H32: 70.75 | I32: 78.55 | J32: 80.65 | K32: 82.45 | L32: 78.85 | M32: 74.95 | N32: 28068000 | O32: 1.85%
A33: 23 | B33: FMCG | C33: BATAINDIA | D33: 1323.50 | E33: 1320.35 | F33: 1306.15 | G33: 1288.80 | H33: 1274.60 | I33: 1337.70 | J33: 1351.90 | K33: 1369.25 | L33: 1334.55 | M33: 1303 | N33: 2523400 | O33: -3.43%
A34: 24 | B34: Capital_Goods | C34: BEL | D34: 97.05 | E34: 97.42 | F34: 96.18 | G34: 95.32 | H34: 94.08 | I34: 98.28 | J34: 99.52 | K34: 100.38 | L34: 98.65 | M34: 96.55 | N34: 31098000 | O34: 3.60%
A35: 25 | B35: FMCG | C35: BERGEPAINT | D35: 329.20 | E35: 328.10 | F35: 324.50 | G35: 319.80 | H35: 316.20 | I35: 332.80 | J35: 336.40 | K35: 341.10 | L35: 331.7 | M35: 323.4 | N35: 2255000 | O35: -0.19%
A36: 26 | B36: Automobile | C36: BHARATFORG | D36: 434.80 | E36: 432.43 | F36: 425.52 | G36: 416.23 | H36: 409.32 | I36: 441.72 | J36: 448.63 | K36: 457.92 | L36: 439.35 | M36: 423.15 | N36: 8148000 | O36: 1.03%
A37: 27 | B37: Telecom | C37: BHARTIARTL | D37: 336.55 | E37: 335.60 | F37: 331.20 | G37: 325.85 | H37: 321.45 | I37: 340.95 | J37: 345.35 | K37: 350.70 | L37: 340 | M37: 330.25 | N37: 29825163 | O37: -0.54%
A38: 28 | B38: Capital_Goods | C38: BHEL | D38: 61.00 | E38: 61.43 | F38: 60.12 | G38: 59.23 | H38: 57.92 | I38: 62.32 | J38: 63.63 | K38: 64.52 | L38: 62.75 | M38: 60.55 | N38: 44610000 | O38: 4.17%
A39: 29 | B39: Pharma | C39: BIOCON | D39: 243.15 | E39: 245.30 | F39: 238.85 | G39: 234.55 | H39: 228.10 | I39: 249.60 | J39: 256.05 | K39: 260.35 | L39: 251.75 | M39: 241 | N39: 12502800 | O39: 14.04%
A40: 30 | B40: Automobile | C40: BOSCHLTD | D40: 15048.55 | E40: 14994.27 | F40: 14841.18 | G40: 14633.82 | H40: 14480.73 | I40: 15201.63 | J40: 15354.72 | K40: 15562.08 | L40: 15147.35 | M40: 14786.9 | N40: 159300 | O40: 1.01%
A41: 31 | B41: Oil_Gas | C41: BPCL | D41: 338.05 | E41: 335.50 | F41: 331.80 | G41: 325.55 | H41: 321.85 | I41: 341.75 | J41: 345.45 | K41: 351.70 | L41: 339.2 | M41: 329.25 | N41: 12898800 | O41: 5.77%
A42: 32 | B42: FMCG | C42: BRITANNIA | D42: 2658.85 | E42: 2650.02 | F42: 2621.88 | G42: 2584.92 | H42: 2556.78 | I42: 2686.98 | J42: 2715.12 | K42: 2752.08 | L42: 2678.15 | M42: 2613.05 | N42: 2098800 | O42: 4.79%
A43: 33 | B43: Technology | C43: CADILAHC | D43: 235.65 | E43: 233.88 | F43: 231.27 | G43: 226.88 | H43: 224.27 | I43: 238.27 | J43: 240.88 | K43: 245.27 | L43: 236.5 | M43: 229.5 | N43: 14320000 | O43: 0.49%
A44: 34 | B44: Pharma | C44: CANBK | D44: 240.75 | E44: 242.50 | F44: 237.25 | G44: 233.75 | H44: 228.50 | I44: 246.00 | J44: 251.25 | K44: 254.75 | L44: 247.75 | M44: 239 | N44: 9624000 | O44: 4.07%
A45: 35 | B45: Banking | C45: CASTROLIND | D45: 124.20 | E45: 123.47 | F45: 121.68 | G45: 119.17 | H45: 117.38 | I45: 125.98 | J45: 127.77 | K45: 130.28 | L45: 125.25 | M45: 120.95 | N45: 8649600 | O45: 2.25%
A46: 36 | B46: Oil_Gas | C46: CENTURYTEX | D46: 917.25 | E46: 909.90 | F46: 899.00 | G46: 880.75 | H46: 869.85 | I46: 928.15 | J46: 939.05 | K46: 957.30 | L46: 920.8 | M46: 891.65 | N46: 3977400 | O46: -3.07%
A47: 37 | B47: Textile | C47: CESC | D47: 757.35 | E47: 758.97 | F47: 749.38 | G47: 741.42 | H47: 731.83 | I47: 766.93 | J47: 776.52 | K47: 784.48 | L47: 768.55 | M47: 751 | N47: 939200 | O47: 1.29%
A48: 38 | B48: Power | C48: CHOLAFIN | D48: 245.75 | E48: 246.18 | F48: 241.67 | G48: 237.58 | H48: 233.07 | I48: 250.27 | J48: 254.78 | K48: 258.87 | L48: 250.7 | M48: 242.1 | N48: 2732500 | O48: 5.40%
A49: 39 | B49: Finance | C49: CIPLA | D49: 532.35 | E49: 533.12 | F49: 527.23 | G49: 522.12 | H49: 516.23 | I49: 538.23 | J49: 544.12 | K49: 549.23 | L49: 539 | M49: 528 | N49: 11005000 | O49: 1.39%
A50: 40 | B50: Pharma | C50: COALINDIA | D50: 211.80 | E50: 210.70 | F50: 207.75 | G50: 203.70 | H50: 200.75 | I50: 214.75 | J50: 217.70 | K50: 221.75 | L50: 213.65 | M50: 206.65 | N50: 35158200 | O50: 0.59%
A51: 41 | B51: Others | C51: COLPAL | D51: 1166.25 | E51: 1159.83 | F51: 1151.67 | G51: 1137.08 | H51: 1128.92 | I51: 1174.42 | J51: 1182.58 | K51: 1197.17 | L51: 1168 | M51: 1145.25 | N51: 1910300 | O51: -1.37%
A52: 42 | B52: FMCG | C52: CONCOR | D52: 515.20 | E52: 515.22 | F52: 508.53 | G52: 501.87 | H52: 495.18 | I52: 521.88 | J52: 528.57 | K52: 535.23 | L52: 521.9 | M52: 508.55 | N52: 1824021 | O52: 16.93%
A53: 43 | B53: Others | C53: CUMMINSIND | D53: 711.35 | E53: 712.83 | F53: 702.27 | G53: 693.18 | H53: 682.62 | I53: 721.92 | J53: 732.48 | K53: 741.57 | L53: 723.4 | M53: 703.75 | N53: 1967000 | O53: 2.74%
A54: 44 | B54: Capital_Goods | C54: DABUR | D54: 429.65 | E54: 427.77 | F54: 424.73 | G54: 419.82 | H54: 416.78 | I54: 432.68 | J54: 435.72 | K54: 440.63 | L54: 430.8 | M54: 422.85 | N54: 13198750 | O54: 0.71%
A55: 45 | B55: FMCG | C55: DHFL | D55: 52.30 | E55: 52.10 | F55: 49.30 | G55: 46.30 | H55: 43.50 | I55: 55.10 | J55: 57.90 | K55: 60.90 | L55: 54.9 | M55: 49.1 | N55: 15704000 | O55: 3.81%
A56: 46 | B56: Finance | C56: DISHTV | D56: 31.65 | E56: 31.62 | F56: 30.63 | G56: 29.62 | H56: 28.63 | I56: 32.63 | J56: 33.62 | K56: 34.63 | L56: 32.6 | M56: 30.6 | N56: 100114000 | O56: 4.88%
A57: 47 | B57: Media | C57: DIVISLAB | D57: 1658.95 | E57: 1646.58 | F57: 1628.77 | G57: 1598.58 | H57: 1580.77 | I57: 1676.77 | J57: 1694.58 | K57: 1724.77 | L57: 1664.4 | M57: 1616.4 | N57: 2714400 | O57: 4.56%
A58: 48 | B58: Pharma | C58: DLF | D58: 181.65 | E58: 180.20 | F58: 178.00 | G58: 174.35 | H58: 172.15 | I58: 183.85 | J58: 186.05 | K58: 189.70 | L58: 182.4 | M58: 176.55 | N58: 32426800 | O58: 1.37%
A59: 49 | B59: Realty | C59: DRREDDY | D59: 2718.15 | E59: 2692.78 | F59: 2662.37 | G59: 2606.58 | H59: 2576.17 | I59: 2748.57 | J59: 2778.98 | K59: 2834.77 | L59: 2723.2 | M59: 2637 | N59: 3305500 | O59: 0.77%
A60: 50 | B60: Pharma | C60: EICHERMOT | D60: 17262.80 | E60: 17085.02 | F60: 16581.83 | G60: 15900.87 | H60: 15397.68 | I60: 17765.98 | J60: 18269.17 | K60: 18950.13 | L60: 17588.2 | M60: 16404.05 | N60: 390575 | O60: 1.82%
A61: 51 | B61: Automobile | C61: ENGINERSIN | D61: 106.75 | E61: 105.73 | F61: 104.12 | G61: 101.48 | H61: 99.87 | I61: 108.37 | J61: 109.98 | K61: 112.62 | L61: 107.35 | M61: 103.1 | N61: 7277200 | O61: -1.19%
A62: 52 | B62: Infrastructure | C62: EQUITAS | D62: 114.80 | E62: 114.37 | F62: 112.28 | G62: 109.77 | H62: 107.68 | I62: 116.88 | J62: 118.97 | K62: 121.48 | L62: 116.45 | M62: 111.85 | N62: 13364000 | O62: 6.13%
A63: 53 | B63: Finance | C63: ESCORTS | D63: 475.10 | E63: 477.95 | F63: 465.10 | G63: 455.10 | H63: 442.25 | I63: 487.95 | J63: 500.80 | K63: 510.80 | L63: 490.8 | M63: 467.95 | N63: 5545100 | O63: 6.60%
A64: 54 | B64: Automobile | C64: EXIDEIND | D64: 185.80 | E64: 184.97 | F64: 182.48 | G64: 179.17 | H64: 176.68 | I64: 188.28 | J64: 190.77 | K64: 194.08 | L64: 187.45 | M64: 181.65 | N64: 8592000 | O64: 2.46%
A65: 55 | B65: Automobile | C65: FEDERALBNK | D65: 95.70 | E65: 94.92 | F65: 93.63 | G65: 91.57 | H65: 90.28 | I65: 96.98 | J65: 98.27 | K65: 100.33 | L65: 96.2 | M65: 92.85 | N65: 38878000 | O65: 1.95%
A66: 56 | B66: Banking | C66: GAIL | D66: 133.05 | E66: 133.70 | F66: 131.80 | G66: 130.55 | H66: 128.65 | I66: 134.95 | J66: 136.85 | K66: 138.10 | L66: 135.6 | M66: 132.45 | N66: 36105846 | O66: 8.55%
A67: 57 | B67: Oil_Gas | C67: GLENMARK | D67: 428.90 | E67: 430.52 | F67: 425.18 | G67: 421.47 | H67: 416.13 | I67: 434.23 | J67: 439.57 | K67: 443.28 | L67: 435.85 | M67: 426.8 | N67: 5144000 | O67: -0.98%
A68: 58 | B68: Pharma | C68: GMRINFRA | D68: 14.70 | E68: 14.65 | F68: 14.55 | G68: 14.40 | H68: 14.30 | I68: 14.80 | J68: 14.90 | K68: 15.05 | L68: 14.75 | M68: 14.5 | N68: 165420000 | O68: 1.10%
A69: 59 | B69: Infrastructure | C69: GODREJCP | D69: 621.55 | E69: 619.48 | F69: 616.22 | G69: 610.88 | H69: 607.62 | I69: 624.82 | J69: 628.08 | K69: 633.42 | L69: 622.75 | M69: 614.15 | N69: 5656800 | O69: 0.63%
A70: 60 | B70: FMCG | C70: GRASIM | D70: 873.90 | E70: 873.63 | F70: 867.57 | G70: 861.23 | H70: 855.17 | I70: 879.97 | J70: 886.03 | K70: 892.37 | L70: 879.7 | M70: 867.3 | N70: 12670500 | O70: 2.30%
A71: 61 | B71: Cement | C71: HAVELLS | D71: 699.65 | E71: 696.32 | F71: 685.88 | G71: 672.12 | H71: 661.68 | I71: 710.08 | J71: 720.52 | K71: 734.28 | L71: 706.75 | M71: 682.55 | N71: 6144000 | O71: 4.70%
A72: 62 | B72: Others | C72: HCLTECH | D72: 1006.80 | E72: 1008.30 | F72: 1000.60 | G72: 994.40 | H72: 986.70 | I72: 1014.50 | J72: 1022.20 | K72: 1028.40 | L72: 1016 | M72: 1002.1 | N72: 9293900 | O72: 2.64%
A73: 63 | B73: Technology | C73: HDFC | D73: 2178.60 | E73: 2184.92 | F73: 2162.58 | G73: 2146.57 | H73: 2124.23 | I73: 2200.93 | J73: 2223.27 | K73: 2239.28 | L73: 2207.25 | M73: 2168.9 | N73: 28262000 | O73: -0.15%
A74: 64 | B74: Finance | C74: HDFCBANK | D74: 2286.40 | E74: 2290.18 | F74: 2278.42 | G74: 2270.43 | H74: 2258.67 | I74: 2298.17 | J74: 2309.93 | K74: 2317.92 | L74: 2301.95 | M74: 2282.2 | N74: 15617250 | O74: -0.06%
A75: 65 | B75: Banking | C75: HEROMOTOCO | D75: 2482.75 | E75: 2455.32 | F75: 2405.83 | G75: 2328.92 | H75: 2279.43 | I75: 2532.23 | J75: 2581.72 | K75: 2658.63 | L75: 2504.8 | M75: 2378.4 | N75: 2185000 | O75: 3.01%
A76: 66 | B76: Automobile | C76: HEXAWARE | D76: 350.90 | E76: 349.75 | F76: 343.50 | G76: 336.10 | H76: 329.85 | I76: 357.15 | J76: 363.40 | K76: 370.80 | L76: 356 | M76: 342.35 | N76: 2308500 | O76: 17.57%
A77: 67 | B77: Technology | C77: HINDALCO | D77: 197.80 | E77: 197.28 | F77: 195.07 | G77: 192.33 | H77: 190.12 | I77: 200.02 | J77: 202.23 | K77: 204.97 | L77: 199.5 | M77: 194.55 | N77: 32823000 | O77: 1.01%
A78: 68 | B78: Metals | C78: HINDPETRO | D78: 276.25 | E78: 271.13 | F78: 264.62 | G78: 252.98 | H78: 246.47 | I78: 282.77 | J78: 289.28 | K78: 300.92 | L78: 277.65 | M78: 259.5 | N78: 16002000 | O78: -0.60%
A79: 69 | B79: Oil_Gas | C79: HINDUNILVR | D79: 1742.80 | E79: 1741.97 | F79: 1730.43 | G79: 1718.07 | H79: 1706.53 | I79: 1754.33 | J79: 1765.87 | K79: 1778.23 | L79: 1753.5 | M79: 1729.6 | N79: 10864500 | O79: 0.56%
A80: 70 | B80: FMCG | C80: HINDZINC | D80: 226.40 | E80: 222.87 | F80: 218.98 | G80: 211.57 | H80: 207.68 | I80: 230.28 | J80: 234.17 | K80: 241.58 | L80: 226.75 | M80: 215.45 | N80: 6848000 | O80: 0.28%
A81: 71 | B81: Metals | C81: IBULHSGFIN | D81: 620.35 | E81: 621.82 | F81: 607.43 | G81: 594.52 | H81: 580.13 | I81: 634.73 | J81: 649.12 | K81: 662.03 | L81: 636.2 | M81: 608.9 | N81: 16248800 | O81: -1.34%
A82: 72 | B82: Finance | C82: ICICIBANK | D82: 419.00 | E82: 417.40 | F82: 412.80 | G82: 406.60 | H82: 402.00 | I82: 423.60 | J82: 428.20 | K82: 434.40 | L82: 422 | M82: 411.2 | N82: 86648375 | O82: 8.03%
A83: 73 | B83: Banking | C83: ICICIPRULI | D83: 397.70 | E83: 396.45 | F83: 393.35 | G83: 389.00 | H83: 385.90 | I83: 400.80 | J83: 403.90 | K83: 408.25 | L83: 399.55 | M83: 392.1 | N83: 4902000 | O83: 5.73%
A84: 74 | B84: Finance | C84: IDBI | D84: 30.90 | E84: 30.98 | F84: 29.62 | G84: 28.33 | H84: 26.97 | I84: 32.27 | J84: 33.63 | K84: 34.92 | L84: 32.35 | M84: 29.7 | N84: 22404000 | O84: 2.30%
A85: 75 | B85: Banking | C85: IDEA | D85: 9.35 | E85: 9.55 | F85: 9.00 | G85: 8.65 | H85: 8.10 | I85: 9.90 | J85: 10.45 | K85: 10.80 | L85: 10.1 | M85: 9.2 | N85: 395808000 | O85: 4.17%
A86: 76 | B86: Telecom | C86: IDFCFIRSTB | D86: 42.30 | E86: 41.23 | F86: 39.52 | G86: 36.73 | H86: 35.02 | I86: 44.02 | J86: 45.73 | K86: 48.52 | L86: 42.95 | M86: 38.45 | N86: 133992000 | O86: -0.33%
A87: 77 | B87: Banking | C87: IGL | D87: 303.95 | E87: 303.38 | F87: 298.92 | G87: 293.88 | H87: 289.42 | I87: 308.42 | J87: 312.88 | K87: 317.92 | L87: 307.85 | M87: 298.35 | N87: 3630000 | O87: 13.70%
A88: 78 | B88: Oil_Gas | C88: INDIGO | D88: 1588.30 | E88: 1590.53 | F88: 1570.02 | G88: 1551.73 | H88: 1531.22 | I88: 1608.82 | J88: 1629.33 | K88: 1647.62 | L88: 1611.05 | M88: 1572.25 | N88: 2626800 | O88: -0.88%
A89: 79 | B89: Others | C89: INDUSINDBK | D89: 1417.70 | E89: 1409.42 | F89: 1395.38 | G89: 1373.07 | H89: 1359.03 | I89: 1431.73 | J89: 1445.77 | K89: 1468.08 | L89: 1423.45 | M89: 1387.1 | N89: 10997200 | O89: 1.69%
A90: 80 | B90: Banking | C90: INFRATEL | D90: 271.70 | E90: 269.93 | F90: 266.72 | G90: 261.73 | H90: 258.52 | I90: 274.92 | J90: 278.13 | K90: 283.12 | L90: 273.15 | M90: 264.95 | N90: 6542000 | O90: -0.21%
A91: 81 | B91: Telecom | C91: INFY | D91: 791.70 | E91: 792.53 | F91: 786.17 | G91: 780.63 | H91: 774.27 | I91: 798.07 | J91: 804.43 | K91: 809.97 | L91: 798.9 | M91: 787 | N91: 60145200 | O91: -0.76%
A92: 82 | B92: Technology | C92: IOC | D92: 140.70 | E92: 141.10 | F92: 138.20 | G92: 135.70 | H92: 132.80 | I92: 143.60 | J92: 146.50 | K92: 149.00 | L92: 144 | M92: 138.6 | N92: 64449000 | O92: 1.87%
A93: 83 | B93: Oil_Gas | C93: ITC | D93: 271.35 | E93: 270.70 | F93: 269.15 | G93: 266.95 | H93: 265.40 | I93: 272.90 | J93: 274.45 | K93: 276.65 | L93: 272.25 | M93: 268.5 | N93: 84823200 | O93: -0.26%
A94: 84 | B94: FMCG | C94: JINDALSTEL | D94: 138.90 | E94: 138.82 | F94: 134.28 | G94: 129.67 | H94: 125.13 | I94: 143.43 | J94: 147.97 | K94: 152.58 | L94: 143.35 | M94: 134.2 | N94: 32470400 | O94: -4.07%
A95: 85 | B95: Metals | C95: JSWSTEEL | D95: 250.60 | E95: 251.10 | F95: 247.60 | G95: 244.60 | H95: 241.10 | I95: 254.10 | J95: 257.60 | K95: 260.60 | L95: 254.6 | M95: 248.1 | N95: 49982000 | O95: -0.06%
A96: 86 | B96: Metals | C96: JUBLFOOD | D96: 1191.20 | E96: 1174.78 | F96: 1146.77 | G96: 1102.33 | H96: 1074.32 | I96: 1219.22 | J96: 1247.23 | K96: 1291.67 | L96: 1202.8 | M96: 1130.35 | N96: 2905500 | O96: -1.48%
A97: 87 | B97: Others | C97: JUSTDIAL | D97: 688.00 | E97: 681.82 | F97: 669.18 | G97: 650.37 | H97: 637.73 | I97: 700.63 | J97: 713.27 | K97: 732.08 | L97: 694.45 | M97: 663 | N97: 2423400 | O97: -3.78%
A98: 88 | B98: Others | C98: KAJARIACER | D98: 477.80 | E98: 474.18 | F98: 468.37 | G98: 458.93 | H98: 453.12 | I98: 483.62 | J98: 489.43 | K98: 498.87 | L98: 480 | M98: 464.75 | N98: 2155400 | O98: -2.41%
A99: 89 | B99: Others | C99: KOTAKBANK | D99: 1516.55 | E99: 1507.68 | F99: 1493.97 | G99: 1471.38 | H99: 1457.67 | I99: 1530.27 | J99: 1543.98 | K99: 1566.57 | L99: 1521.4 | M99: 1485.1 | N99: 8096400 | O99: 3.89%
A100: 90 | B100: Banking | C100: BSOFT | D100: 73.30 | E100: 73.48 | F100: 71.62 | G100: 69.93 | H100: 68.07 | I100: 75.17 | J100: 77.03 | K100: 78.72 | L100: 75.35 | M100: 71.8 | N100: 2096100 | O100: 3.53%
A101: 91 | B101: Finance | C101: L&TFH | D101: 104.15 | E101: 104.40 | F101: 102.00 | G101: 99.85 | H101: 97.45 | I101: 106.55 | J101: 108.95 | K101: 111.10 | L101: 106.8 | M101: 102.25 | N101: 32395500 | O101: -0.59%
A102: 92 | B102: Finance | C102: LICHSGFIN | D102: 518.75 | E102: 518.73 | F102: 513.02 | G102: 507.28 | H102: 501.57 | I102: 524.47 | J102: 530.18 | K102: 535.92 | L102: 524.45 | M102: 513 | N102: 7570200 | O102: -3.34%
A103: 93 | B103: Capital_Goods | C103: LT | D103: 1396.70 | E103: 1390.60 | F103: 1376.20 | G103: 1355.70 | H103: 1341.30 | I103: 1411.10 | J103: 1425.50 | K103: 1446.00 | L103: 1405 | M103: 1370.1 | N103: 13494750 | O103: 0.86%
A104: 94 | B104: Pharma | C104: LUPIN | D104: 774.30 | E104: 769.52 | F104: 762.08 | G104: 749.87 | H104: 742.43 | I104: 781.73 | J104: 789.17 | K104: 801.38 | L104: 776.95 | M104: 757.3 | N104: 8501500 | O104: 2.51%
A105: 95 | B105: Automobile | C105: M&M | D105: 566.55 | E105: 561.60 | F105: 554.70 | G105: 542.85 | H105: 535.95 | I105: 573.45 | J105: 580.35 | K105: 592.20 | L105: 568.5 | M105: 549.75 | N105: 22255000 | O105: -0.70%
A106: 96 | B106: Finance | C106: M&MFIN | D106: 297.55 | E106: 300.18 | F106: 292.87 | G106: 288.18 | H106: 280.87 | I106: 304.87 | J106: 312.18 | K106: 316.87 | L106: 307.5 | M106: 295.5 | N106: 15180000 | O106: -3.70%
A107: 97 | B107: Finance | C107: MANAPPURAM | D107: 113.50 | E107: 114.37 | F107: 111.93 | G107: 110.37 | H107: 107.93 | I107: 115.93 | J107: 118.37 | K107: 119.93 | L107: 116.8 | M107: 112.8 | N107: 12774000 | O107: 4.36%
A108: 98 | B108: FMCG | C108: MARICO | D108: 363.45 | E108: 362.75 | F108: 360.10 | G108: 356.75 | H108: 354.10 | I108: 366.10 | J108: 368.75 | K108: 372.10 | L108: 365.4 | M108: 359.4 | N108: 8322600 | O108: -0.12%
A109: 99 | B109: Automobile | C109: MARUTI | D109: 5765.20 | E109: 5770.33 | F109: 5625.92 | G109: 5486.63 | H109: 5342.22 | I109: 5909.62 | J109: 6054.03 | K109: 6193.32 | L109: 5914.75 | M109: 5631.05 | N109: 3663750 | O109: 11.80%
A110: 100 | B110: FMCG | C110: MCDOWELL-N | D110: 596.60 | E110: 593.30 | F110: 587.65 | G110: 578.70 | H110: 573.05 | I110: 602.25 | J110: 607.90 | K110: 616.85 | L110: 598.95 | M110: 584.35 | N110: 10578750 | O110: 0.06%
A111: 101 | B111: Others | C111: MCX | D111: 841.60 | E111: 834.72 | F111: 824.88 | G111: 808.17 | H111: 798.33 | I111: 851.43 | J111: 861.27 | K111: 877.98 | L111: 844.55 | M111: 818 | N111: 1605800 | O111: -0.86%
A112: 102 | B112: Finance | C112: MFSL | D112: 426.65 | E112: 423.90 | F112: 418.55 | G112: 410.45 | H112: 405.10 | I112: 432.00 | J112: 437.35 | K112: 445.45 | L112: 429.25 | M112: 415.8 | N112: 2818800 | O112: 0.38%
A113: 103 | B113: Oil_Gas | C113: MGL | D113: 770.85 | E113: 768.58 | F113: 762.27 | G113: 753.68 | H113: 747.37 | I113: 777.17 | J113: 783.48 | K113: 792.07 | L113: 774.9 | M113: 760 | N113: 1099800 | O113: 2.29%
A114: 104 | B114: Technology | C114: MINDTREE | D114: 693.25 | E114: 694.10 | F114: 685.85 | G114: 678.45 | H114: 670.20 | I114: 701.50 | J114: 709.75 | K114: 717.15 | L114: 702.35 | M114: 686.7 | N114: 1789800 | O114: 1.74%
A115: 105 | B115: Automobile | C115: MOTHERSUMI | D115: 111.85 | E115: 111.45 | F115: 109.90 | G115: 107.95 | H115: 106.40 | I115: 113.40 | J115: 114.95 | K115: 116.90 | L115: 113 | M115: 109.5 | N115: 25509000 | O115: 2.48%
A116: 106 | B116: Automobile | C116: MRF | D116: 54616.00 | E116: 54595.23 | F116: 54030.82 | G116: 53445.63 | H116: 52881.22 | I116: 55180.42 | J116: 55744.83 | K116: 56330.02 | L116: 55159.65 | M116: 54010.05 | N116: 23990 | O116: -0.46%
A117: 107 | B117: Finance | C117: MUTHOOTFIN | D117: 595.00 | E117: 593.88 | F117: 588.12 | G117: 581.23 | H117: 575.47 | I117: 600.77 | J117: 606.53 | K117: 613.42 | L117: 599.65 | M117: 587 | N117: 2874000 | O117: 1.59%
A118: 108 | B118: Metals | C118: NATIONALUM | D118: 46.10 | E118: 45.80 | F118: 45.35 | G118: 44.60 | H118: 44.15 | I118: 46.55 | J118: 47.00 | K118: 47.75 | L118: 46.25 | M118: 45.05 | N118: 33320000 | O118: -2.23%
A119: 109 | B119: Infrastructure | C119: NBCC | D119: 49.00 | E119: 48.92 | F119: 47.98 | G119: 46.97 | H119: 46.03 | I119: 49.93 | J119: 50.87 | K119: 51.88 | L119: 49.85 | M119: 47.9 | N119: 35470500 | O119: 2.61%
A120: 110 | B120: Infrastructure | C120: NCC | D120: 74.65 | E120: 74.58 | F120: 73.07 | G120: 71.48 | H120: 69.97 | I120: 76.17 | J120: 77.68 | K120: 79.27 | L120: 76.1 | M120: 73 | N120: 38088000 | O120: 2.70%
A121: 111 | B121: FMCG | C121: NESTLEIND | D121: 11694.75 | E121: 11636.18 | F121: 11549.27 | G121: 11403.78 | H121: 11316.87 | I121: 11781.67 | J121: 11868.58 | K121: 12014.07 | L121: 11723.1 | M121: 11490.7 | N121: 345450 | O121: 0.89%
A122: 112 | B122: Technology | C122: NIITTECH | D122: 1210.30 | E122: 1204.20 | F122: 1173.55 | G122: 1136.80 | H122: 1106.15 | I122: 1240.95 | J122: 1271.60 | K122: 1308.35 | L122: 1234.85 | M122: 1167.45 | N122: 1341000 | O122: 3.53%
A123: 113 | B123: Metals | C123: NMDC | D123: 111.55 | E123: 110.72 | F123: 109.13 | G123: 106.72 | H123: 105.13 | I123: 113.13 | J123: 114.72 | K123: 117.13 | L123: 112.3 | M123: 108.3 | N123: 27288000 | O123: -0.61%
A124: 114 | B124: Power | C124: NTPC | D124: 127.20 | E124: 127.30 | F124: 126.40 | G124: 125.60 | H124: 124.70 | I124: 128.10 | J124: 129.00 | K124: 129.80 | L124: 128.2 | M124: 126.5 | N124: 75590400 | O124: 2.28%
A125: 115 | B125: Technology | C125: OFSS | D125: 3373.95 | E125: 3355.47 | F125: 3328.48 | G125: 3283.02 | H125: 3256.03 | I125: 3400.93 | J125: 3427.92 | K125: 3473.38 | L125: 3382.45 | M125: 3310 | N125: 231450 | O125: -2.77%
A126: 116 | B126: Oil_Gas | C126: OIL | D126: 155.70 | E126: 155.80 | F126: 154.65 | G126: 153.60 | H126: 152.45 | I126: 156.85 | J126: 158.00 | K126: 159.05 | L126: 156.95 | M126: 154.75 | N126: 8531490 | O126: 2.20%
A127: 117 | B127: Oil_Gas | C127: ONGC | D127: 142.15 | E127: 142.65 | F127: 141.00 | G127: 139.85 | H127: 138.20 | I127: 143.80 | J127: 145.45 | K127: 146.60 | L127: 144.3 | M127: 141.5 | N127: 59163750 | O127: 3.43%
A128: 118 | B128: Textile | C128: PAGEIND | D128: 18363.55 | E128: 18375.35 | F128: 18153.20 | G128: 17942.85 | H128: 17720.70 | I128: 18585.70 | J128: 18807.85 | K128: 19018.20 | L128: 18597.5 | M128: 18165 | N128: 190875 | O128: 1.43%
A129: 119 | B129: Pharma | C129: PEL | D129: 1806.95 | E129: 1794.98 | F129: 1740.22 | G129: 1673.48 | H129: 1618.72 | I129: 1861.72 | J129: 1916.48 | K129: 1983.22 | L129: 1849.75 | M129: 1728.25 | N129: 3246500 | O129: -3.72%
A130: 120 | B130: Oil_Gas | C130: PETRONET | D130: 234.60 | E130: 232.10 | F130: 229.15 | G130: 223.70 | H130: 220.75 | I130: 237.55 | J130: 240.50 | K130: 245.95 | L130: 235.05 | M130: 226.65 | N130: 18987000 | O130: 1.28%
A131: 121 | B131: Finance | C131: PFC | D131: 112.80 | E131: 112.98 | F131: 111.72 | G131: 110.63 | H131: 109.37 | I131: 114.07 | J131: 115.33 | K131: 116.42 | L131: 114.25 | M131: 111.9 | N131: 42941200 | O131: -1.34%
A132: 122 | B132: FMCG | C132: PIDILITIND | D132: 1245.10 | E132: 1239.02 | F132: 1229.18 | G132: 1213.27 | H132: 1203.43 | I132: 1254.93 | J132: 1264.77 | K132: 1280.68 | L132: 1248.85 | M132: 1223.1 | N132: 2686500 | O132: 2.13%
A133: 123 | B133: Banking | C133: PNB | D133: 68.25 | E133: 68.20 | F133: 66.30 | G133: 64.35 | H133: 62.45 | I133: 70.15 | J133: 72.05 | K133: 74.00 | L133: 70.1 | M133: 66.25 | N133: 107415000 | O133: 2.06%
A134: 124 | B134: Power | C134: POWERGRID | D134: 210.55 | E134: 210.78 | F134: 208.77 | G134: 206.98 | H134: 204.97 | I134: 212.57 | J134: 214.58 | K134: 216.37 | L134: 212.8 | M134: 209 | N134: 27216000 | O134: 2.66%
A135: 125 | B135: Media | C135: PVR | D135: 1669.90 | E135: 1677.30 | F135: 1625.60 | G135: 1581.30 | H135: 1529.60 | I135: 1721.60 | J135: 1773.30 | K135: 1817.60 | L135: 1729 | M135: 1633 | N135: 1108800 | O135: 8.83%
A136: 126 | B136: Cement | C136: RAMCOCEM | D136: 751.50 | E136: 746.33 | F136: 738.42 | G136: 725.33 | H136: 717.42 | I136: 759.42 | J136: 767.33 | K136: 780.42 | L136: 754.25 | M136: 733.25 | N136: 989600 | O136: 9.66%
A137: 127 | B137: Textile | C137: RAYMOND | D137: 686.50 | E137: 679.30 | F137: 669.60 | G137: 652.70 | H137: 643.00 | I137: 696.20 | J137: 705.90 | K137: 722.80 | L137: 689 | M137: 662.4 | N137: 2156800 | O137: 1.13%
A138: 128 | B138: Banking | C138: RBLBANK | D138: 459.10 | E138: 460.97 | F138: 453.18 | G138: 447.27 | H138: 439.48 | I138: 466.88 | J138: 474.67 | K138: 480.58 | L138: 468.75 | M138: 455.05 | N138: 9441600 | O138: 5.46%
A139: 129 | B139: Power | C139: RECLTD | D139: 141.30 | E139: 142.75 | F139: 139.15 | G139: 137.00 | H139: 133.40 | I139: 144.90 | J139: 148.50 | K139: 150.65 | L139: 146.35 | M139: 140.6 | N139: 30552000 | O139: 3.64%
A140: 130 | B140: Finance | C140: RELCAPITAL | D140: 52.60 | E140: 50.52 | F140: 48.43 | G140: 44.27 | H140: 42.18 | I140: 54.68 | J140: 56.77 | K140: 60.93 | L140: 52.6 | M140: 46.35 | N140: 12441000 | O140: 11.99%
A141: 131 | B141: Oil_Gas | C141: RELIANCE | D141: 1214.10 | E141: 1222.35 | F141: 1201.80 | G141: 1189.50 | H141: 1168.95 | I141: 1234.65 | J141: 1255.20 | K141: 1267.50 | L141: 1242.9 | M141: 1210.05 | N141: 42534000 | O141: 2.22%
A142: 132 | B142: Power | C142: RELINFRA | D142: 50.00 | E142: 48.33 | F142: 45.77 | G142: 41.53 | H142: 38.97 | I142: 52.57 | J142: 55.13 | K142: 59.37 | L142: 50.9 | M142: 44.1 | N142: 12864000 | O142: 13.04%
A143: 133 | B143: Metals | C143: SAIL | D143: 45.00 | E143: 44.38 | F143: 43.32 | G143: 41.63 | H143: 40.57 | I143: 46.07 | J143: 47.13 | K143: 48.82 | L143: 45.45 | M143: 42.7 | N143: 86244000 | O143: -3.52%
A144: 134 | B144: Banking | C144: SBIN | D144: 344.35 | E144: 344.80 | F144: 341.75 | G144: 339.15 | H144: 336.10 | I144: 347.40 | J144: 350.45 | K144: 353.05 | L144: 347.85 | M144: 342.2 | N144: 69498000 | O144: 0.94%
A145: 135 | B145: Cement | C145: SHREECEM | D145: 21505.85 | E145: 21378.43 | F145: 21157.87 | G145: 20809.88 | H145: 20589.32 | I145: 21726.42 | J145: 21946.98 | K145: 22294.97 | L145: 21599 | M145: 21030.45 | N145: 133350 | O145: -0.49%
A146: 136 | B146: Capital_Goods | C146: SIEMENS | D146: 1191.45 | E146: 1189.08 | F146: 1175.02 | G146: 1158.58 | H146: 1144.52 | I146: 1205.52 | J146: 1219.58 | K146: 1236.02 | L146: 1203.15 | M146: 1172.65 | N146: 997700 | O146: -2.16%
A147: 137 | B147: Textile | C147: SRF | D147: 2747.30 | E147: 2727.13 | F147: 2678.67 | G147: 2610.03 | H147: 2561.57 | I147: 2795.77 | J147: 2844.23 | K147: 2912.87 | L147: 2775.6 | M147: 2658.5 | N147: 1091750 | O147: 3.41%
A148: 138 | B148: Finance | C148: SRTRANSFIN | D148: 980.15 | E148: 988.07 | F148: 966.38 | G148: 952.62 | H148: 930.93 | I148: 1001.83 | J148: 1023.52 | K148: 1037.28 | L148: 1009.75 | M148: 974.3 | N148: 5112000 | O148: 1.95%
A149: 139 | B149: Pharma | C149: STAR | D149: 352.80 | E149: 350.17 | F149: 344.68 | G149: 336.57 | H149: 331.08 | I149: 358.28 | J149: 363.77 | K149: 371.88 | L149: 355.65 | M149: 342.05 | N149: 2817600 | O149: -3.22%
A150: 140 | B150: Pharma | C150: SUNPHARMA | D150: 439.15 | E150: 437.80 | F150: 434.10 | G150: 429.05 | H150: 425.35 | I150: 442.85 | J150: 446.55 | K150: 451.60 | L150: 441.5 | M150: 432.75 | N150: 51816600 | O150: 0.68%
A151: 141 | B151: Media | C151: SUNTV | D151: 491.25 | E151: 486.90 | F151: 476.45 | G151: 461.65 | H151: 451.20 | I151: 501.70 | J151: 512.15 | K151: 526.95 | L151: 497.35 | M151: 472.1 | N151: 5806000 | O151: 1.17%
A152: 142 | B152: Fertilisers | C152: TATACHEM | D152: 597.30 | E152: 597.13 | F152: 593.12 | G152: 588.93 | H152: 584.92 | I152: 601.32 | J152: 605.33 | K152: 609.52 | L152: 601.15 | M152: 592.95 | N152: 2188800 | O152: 4.15%
A153: 143 | B153: Technology | C153: TATAELXSI | D153: 648.55 | E153: 653.00 | F153: 642.45 | G153: 636.35 | H153: 625.80 | I153: 659.10 | J153: 669.65 | K153: 675.75 | L153: 663.55 | M153: 646.9 | N153: 2463000 | O153: -1.56%
A154: 144 | B154: FMCG | C154: TATAGLOBAL | D154: 260.10 | E154: 257.45 | F154: 253.30 | G154: 246.50 | H154: 242.35 | I154: 264.25 | J154: 268.40 | K154: 275.20 | L154: 261.6 | M154: 250.65 | N154: 5923800 | O154: 6.87%
A155: 145 | B155: Automobile | C155: TATAMOTORS | D155: 147.90 | E155: 145.97 | F155: 140.93 | G155: 133.97 | H155: 128.93 | I155: 152.93 | J155: 157.97 | K155: 164.93 | L155: 151 | M155: 139 | N155: 65844000 | O155: 0.95%
A156: 146 | B156: Automobile | C156: TATAMTRDVR | D156: 71.40 | E156: 70.77 | F156: 68.58 | G156: 65.77 | H156: 63.58 | I156: 73.58 | J156: 75.77 | K156: 78.58 | L156: 72.95 | M156: 67.95 | N156: 30000000 | O156: 0.44%
A157: 147 | B157: Power | C157: TATAPOWER | D157: 62.65 | E157: 62.45 | F157: 61.45 | G157: 60.25 | H157: 59.25 | I157: 63.65 | J157: 64.65 | K157: 65.85 | L157: 63.45 | M157: 61.25 | N157: 53955000 | O157: -1.37%
A158: 148 | B158: Metals | C158: TATASTEEL | D158: 447.80 | E158: 445.35 | F158: 440.00 | G158: 432.20 | H158: 426.85 | I158: 453.15 | J158: 458.50 | K158: 466.30 | L158: 450.7 | M158: 437.55 | N158: 30978017 | O158: -0.88%
A159: 149 | B159: Technology | C159: TCS | D159: 2117.55 | E159: 2121.42 | F159: 2102.28 | G159: 2087.02 | H159: 2067.88 | I159: 2136.68 | J159: 2155.82 | K159: 2171.08 | L159: 2140.55 | M159: 2106.15 | N159: 15494500 | O159: 0.49%
A160: 150 | B160: Technology | C160: TECHM | D160: 647.80 | E160: 649.25 | F160: 644.00 | G160: 640.20 | H160: 634.95 | I160: 653.05 | J160: 658.30 | K160: 662.10 | L160: 654.5 | M160: 645.45 | N160: 15993600 | O160: 3.09%
A161: 151 | B161: FMCG | C161: TITAN | D161: 1107.10 | E161: 1100.43 | F161: 1087.02 | G161: 1066.93 | H161: 1053.52 | I161: 1120.52 | J161: 1133.93 | K161: 1154.02 | L161: 1113.85 | M161: 1080.35 | N161: 9129000 | O161: 0.49%
A162: 152 | B162: Pharma | C162: TORNTPHARM | D162: 1658.25 | E162: 1643.32 | F162: 1621.73 | G162: 1585.22 | H162: 1563.63 | I162: 1679.83 | J162: 1701.42 | K162: 1737.93 | L162: 1664.9 | M162: 1606.8 | N162: 770000 | O162: 1.78%
A163: 153 | B163: Power | C163: TORNTPOWER | D163: 306.40 | E163: 304.52 | F163: 301.08 | G163: 295.77 | H163: 292.33 | I163: 309.83 | J163: 313.27 | K163: 318.58 | L163: 307.95 | M163: 299.2 | N163: 3558000 | O163: 7.14%
A164: 154 | B164: Automobile | C164: TVSMOTOR | D164: 376.70 | E164: 374.10 | F164: 366.95 | G164: 357.20 | H164: 350.05 | I164: 383.85 | J164: 391.00 | K164: 400.75 | L164: 381.25 | M164: 364.35 | N164: 5976300 | O164: -2.28%
A165: 155 | B165: FMCG | C165: UBL | D165: 1406.00 | E165: 1400.93 | F165: 1392.07 | G165: 1378.13 | H165: 1369.27 | I165: 1414.87 | J165: 1423.73 | K165: 1437.67 | L165: 1409.8 | M165: 1387 | N165: 990500 | O165: -4.00%
A166: 156 | B166: Finance | C166: UJJIVAN | D166: 268.05 | E166: 267.37 | F166: 261.38 | G166: 254.72 | H166: 248.73 | I166: 274.03 | J166: 280.02 | K166: 286.68 | L166: 273.35 | M166: 260.7 | N166: 4939200 | O166: -3.32%
A167: 157 | B167: Cement | C167: ULTRACEMCO | D167: 4518.25 | E167: 4503.72 | F167: 4462.53 | G167: 4406.82 | H167: 4365.63 | I167: 4559.43 | J167: 4600.62 | K167: 4656.33 | L167: 4544.9 | M167: 4448 | N167: 2199000 | O167: 3.08%
A168: 158 | B168: Banking | C168: UNIONBANK | D168: 70.30 | E168: 71.27 | F168: 68.58 | G168: 66.87 | H168: 64.18 | I168: 72.98 | J168: 75.67 | K168: 77.38 | L168: 73.95 | M168: 69.55 | N168: 31220000 | O168: 3.03%
A169: 159 | B169: Fertilisers | C169: UPL | D169: 605.20 | E169: 604.08 | F169: 593.47 | G169: 581.73 | H169: 571.12 | I169: 615.82 | J169: 626.43 | K169: 638.17 | L169: 614.7 | M169: 592.35 | N169: 12138300 | O169: 7.32%
A170: 160 | B170: Metals | C170: VEDL | D170: 165.10 | E170: 168.42 | F170: 159.83 | G170: 154.57 | H170: 145.98 | I170: 173.68 | J170: 182.27 | K170: 187.53 | L170: 177 | M170: 163.15 | N170: 70050000 | O170: 1.16%
A171: 161 | B171: Capital_Goods | C171: VOLTAS | D171: 585.20 | E171: 581.82 | F171: 575.83 | G171: 566.47 | H171: 560.48 | I171: 591.18 | J171: 597.17 | K171: 606.53 | L171: 587.8 | M171: 572.45 | N171: 3132000 | O171: 1.03%
A172: 162 | B172: Technology | C172: WIPRO | D172: 264.90 | E172: 264.43 | F172: 262.97 | G172: 261.03 | H172: 259.57 | I172: 266.37 | J172: 267.83 | K172: 269.77 | L172: 265.9 | M172: 262.5 | N172: 29990400 | O172: -1.78%
A173: 163 | B173: Banking | C173: YESBANK | D173: 96.70 | E173: 93.97 | F173: 90.23 | G173: 83.77 | H173: 80.03 | I173: 100.43 | J173: 104.17 | K173: 110.63 | L173: 97.7 | M173: 87.5 | N173: 122377200 | O173: 6.86%
A174: 164 | B174: Media | C174: ZEEL | D174: 404.70 | E174: 400.27 | F174: 394.53 | G174: 384.37 | H174: 378.63 | I174: 410.43 | J174: 416.17 | K174: 426.33 | L174: 406 | M174: 390.1 | N174: 19726200 | O174: -8.24%
A190: Pivot Point: This is trigger point for intra day buy/sell based on the price range of the previous day
A191: As per the tool,the trader should take BUY position just above Pivot and keep the stop loss of pivot point and the first target would be Resistance 1(R1)
A192: If R1 is crossed then R2 becomes the next target with stop loss of at R1
A193: Similarly if price goes below pivot point then the trader should sell and keep a stop loss of pivot point and the first target would be S1
A194: If S1 is crossed then S2 becomes the next target with stop loss of at S1
A196: Disclaimer:
A197: This document has been prepared by the Retail Research Desk of Asit C Mehta
A198: Investment Intermediates Ltd. and is meant for use of the recipient only
A199: and is not for circulation. This document is not to be reported or
A200: copied or made available to others. It should not be considered to be
A201: taken as an offer to sell or a solicitation to buy any security. The
A202: information contained herein is from sources believed reliable. We do
A203: not represent that it is accurate or complete and it should not be
A204: relied upon as such. We may from time to time have positions in and buy
A205: and sell securities referred to herein

Sheet Cash Intra
M5: Back to Main Page
A6: FOR INTRA DAY TRADING | K6: =Main!B10 -> 2019-07-29
A8: Sr.no | B8: Scrip | C8: CLOSE RATE | D8: Pivot Point | E8: Supports | H8: Resistances
C9: Point | E9: S1 | F9: S2 | G9: S3 | H9: R1 | I9: R2 | J9: R3 | K9: HIGH | L9: LOW | M9: Total Trade Quanity in Lakhs
A10: 1 | B10: Nifty 50 | C10: 11284.3 | D10: 11267.32 | E10: 11227.03 | F10: 11169.77 | G10: 11129.48 | H10: 11324.58 | I10: 11364.87 | J10: 11422.13 | K10: 11307.6 | L10: 11210.05
A11: 2 | B11: Nifty Bank | C11: 29325.3 | D11: 29232.97 | E11: 29086.83 | F11: 28848.37 | G11: 28702.23 | H11: 29471.43 | I11: 29617.57 | J11: 29856.03 | K11: 29379.1 | L11: 28994.5
A12: 3 | B12: Nifty CPSE | C12: 2054.7 | D12: 2059.07 | E12: 2038.88 | F12: 2023.07 | G12: 2002.88 | H12: 2074.88 | I12: 2095.07 | J12: 2110.88 | K12: 2079.25 | L12: 2043.25
A13: 4 | B13: Nifty Infra | C13: 3137.15 | D13: 3133.60 | E13: 3117.85 | F13: 3098.55 | G13: 3082.80 | H13: 3152.90 | I13: 3168.65 | J13: 3187.95 | K13: 3149.35 | L13: 3114.3
A14: 5 | B14: Nifty IT | C14: 15348.05 | D14: 15358.35 | E14: 15255.05 | F14: 15162.05 | G14: 15058.75 | H14: 15451.35 | I14: 15554.65 | J14: 15647.65 | K14: 15461.65 | L14: 15265.35
A15: 6 | B15: Nifty PSE | C15: 3279.3 | D15: 3280.12 | E15: 3262.28 | F15: 3245.27 | G15: 3227.43 | H15: 3297.13 | I15: 3314.97 | J15: 3331.98 | K15: 3297.95 | L15: 3263.1
A16: 7 | B16: Nifty Midcap 50 | C16: 4421.1 | D16: 4409.22 | E16: 4381.13 | F16: 4341.17 | G16: 4313.08 | H16: 4449.18 | I16: 4477.27 | J16: 4517.23 | K16: 4437.3 | L16: 4369.25
A17: 8 | B17: ABB | C17: 1382.05 | D17: 1393.35 | E17: 1358.70 | F17: 1335.35 | G17: 1300.70 | H17: 1416.70 | I17: 1451.35 | J17: 1474.70 | K17: 1428 | L17: 1370 | M17: 0.93398
A18: 9 | B18: ACC | C18: 1581.95 | D18: 1579.68 | E18: 1570.37 | F18: 1558.78 | G18: 1549.47 | H18: 1591.27 | I18: 1600.58 | J18: 1612.17 | K18: 1589 | L18: 1568.1 | M18: 4.8042
A19: 10 | B19: AUBANK | C19: 659.45 | D19: 663.82 | E19: 650.63 | F19: 641.82 | G19: 628.63 | H19: 672.63 | I19: 685.82 | J19: 694.63 | K19: 677 | L19: 655 | M19: 4.55634
A20: 11 | B20: ADANIPORTS | C20: 381.65 | D20: 381.08 | E20: 377.77 | F20: 373.88 | G20: 370.57 | H20: 384.97 | I20: 388.28 | J20: 392.17 | K20: 384.4 | L20: 377.2 | M20: 27.01597
A21: 12 | B21: ADANIPOWER | C21: 62.9 | D21: 62.58 | E21: 61.77 | F21: 60.63 | G21: 59.82 | H21: 63.72 | I21: 64.53 | J21: 65.67 | K21: 63.4 | L21: 61.45 | M21: 85.97588
A22: 13 | B22: ABCAPITAL | C22: 87.05 | D22: 86.00 | E22: 84.60 | F22: 82.15 | G22: 80.75 | H22: 88.45 | I22: 89.85 | J22: 92.30 | K22: 87.4 | L22: 83.55 | M22: 15.66872
A23: 14 | B23: ABFRL | C23: 196.85 | D23: 198.85 | E23: 194.00 | F23: 191.15 | G23: 186.30 | H23: 201.70 | I23: 206.55 | J23: 209.40 | K23: 203.7 | L23: 196 | M23: 4.29929
A24: 15 | B24: AJANTPHARM | C24: 901.05 | D24: 895.68 | E24: 879.47 | F24: 857.88 | G24: 841.67 | H24: 917.27 | I24: 933.48 | J24: 955.07 | K24: 911.9 | L24: 874.1 | M24: 2.47296
A25: 16 | B25: ALKEM | C25: 1815.15 | D25: 1812.08 | E25: 1796.17 | F25: 1777.18 | G25: 1761.27 | H25: 1831.07 | I25: 1846.98 | J25: 1865.97 | K25: 1828 | L25: 1793.1 | M25: 0.12032
A26: 17 | B26: AMARAJABAT | C26: 651 | D26: 647.08 | E26: 639.17 | F26: 627.33 | G26: 619.42 | H26: 658.92 | I26: 666.83 | J26: 678.67 | K26: 655 | L26: 635.25 | M26: 8.69534
A27: 18 | B27: AMBUJACEM | C27: 213.45 | D27: 212.72 | E27: 209.83 | F27: 206.22 | G27: 203.33 | H27: 216.33 | I27: 219.22 | J27: 222.83 | K27: 215.6 | L27: 209.1 | M27: 44.79103
A28: 19 | B28: APOLLOHOSP | C28: 1363.05 | D28: 1351.23 | E28: 1334.72 | F28: 1306.38 | G28: 1289.87 | H28: 1379.57 | I28: 1396.08 | J28: 1424.42 | K28: 1367.75 | L28: 1322.9 | M28: 3.36855
A29: 20 | B29: APOLLOTYRE | C29: 164.05 | D29: 163.25 | E29: 161.00 | F29: 157.95 | G29: 155.70 | H29: 166.30 | I29: 168.55 | J29: 171.60 | K29: 165.5 | L29: 160.2 | M29: 27.68222
A30: 21 | B30: ASHOKLEY | C30: 74.2 | D30: 73.82 | E30: 72.73 | F30: 71.27 | G30: 70.18 | H30: 75.28 | I30: 76.37 | J30: 77.83 | K30: 74.9 | L30: 72.35 | M30: 202.15434
A31: 22 | B31: ASIANPAINT | C31: 1526.45 | D31: 1514.28 | E31: 1497.77 | F31: 1469.08 | G31: 1452.57 | H31: 1542.97 | I31: 1559.48 | J31: 1588.17 | K31: 1530.8 | L31: 1485.6 | M31: 24.20636
A32: 23 | B32: AUROPHARMA | C32: 563.45 | D32: 560.83 | E32: 552.87 | F32: 542.28 | G32: 534.32 | H32: 571.42 | I32: 579.38 | J32: 589.97 | K32: 568.8 | L32: 550.25 | M32: 16.45745
A33: 24 | B33: DMART | C33: 1425.05 | D33: 1427.73 | E33: 1411.37 | F33: 1397.68 | G33: 1381.32 | H33: 1441.42 | I33: 1457.78 | J33: 1471.47 | K33: 1444.1 | L33: 1414.05 | M33: 3.45535
A34: 25 | B34: AXISBANK | C34: 729.85 | D34: 727.02 | E34: 722.03 | F34: 714.22 | G34: 709.23 | H34: 734.83 | I34: 739.82 | J34: 747.63 | K34: 732 | L34: 719.2 | M34: 54.5001
A35: 26 | B35: BAJAJ-AUTO | C35: 2618.65 | D35: 2601.62 | E35: 2523.28 | F35: 2427.92 | G35: 2349.58 | H35: 2696.98 | I35: 2775.32 | J35: 2870.68 | K35: 2679.95 | L35: 2506.25 | M35: 21.05536
A36: 27 | B36: BAJFINANCE | C36: 3264.6 | D36: 3178.87 | E36: 3079.73 | F36: 2894.87 | G36: 2795.73 | H36: 3363.73 | I36: 3462.87 | J36: 3647.73 | K36: 3278 | L36: 2994 | M36: 69.4508
A37: 28 | B37: BAJAJFINSV | C37: 7233 | D37: 7054.23 | E37: 6810.47 | F37: 6387.93 | G37: 6144.17 | H37: 7476.77 | I37: 7720.53 | J37: 8143.07 | K37: 7298 | L37: 6631.7 | M37: 12.82898
A38: 29 | B38: BAJAJHLDNG | C38: 3384.75 | D38: 3369.25 | E38: 3327.50 | F38: 3270.25 | G38: 3228.50 | H38: 3426.50 | I38: 3468.25 | J38: 3525.50 | K38: 3411 | L38: 3312 | M38: 0.48703
A39: 30 | B39: BALKRISIND | C39: 720.6 | D39: 723.43 | E39: 714.42 | F39: 708.23 | G39: 699.22 | H39: 729.62 | I39: 738.63 | J39: 744.82 | K39: 732.45 | L39: 717.25 | M39: 2.66652
A40: 31 | B40: BANDHANBNK | C40: 490.2 | D40: 482.73 | E40: 471.57 | F40: 452.93 | G40: 441.77 | H40: 501.37 | I40: 512.53 | J40: 531.17 | K40: 493.9 | L40: 464.1 | M40: 17.84947
A41: 32 | B41: BANKBARODA | C41: 112.55 | D41: 112.25 | E41: 110.30 | F41: 108.05 | G41: 106.10 | H41: 114.50 | I41: 116.45 | J41: 118.70 | K41: 114.2 | L41: 110 | M41: 328.7884
A42: 33 | B42: BANKINDIA | C42: 76.05 | D42: 76.40 | E42: 74.50 | F42: 72.95 | G42: 71.05 | H42: 77.95 | I42: 79.85 | J42: 81.40 | K42: 78.3 | L42: 74.85 | M42: 100.20072
A43: 34 | B43: BATAINDIA | C43: 1316.55 | D43: 1312.63 | E43: 1296.67 | F43: 1276.78 | G43: 1260.82 | H43: 1332.52 | I43: 1348.48 | J43: 1368.37 | K43: 1328.6 | L43: 1292.75 | M43: 4.84288
A44: 35 | B44: BERGEPAINT | C44: 327.9 | D44: 328.00 | E44: 324.50 | F44: 321.10 | G44: 317.60 | H44: 331.40 | I44: 334.90 | J44: 338.30 | K44: 331.5 | L44: 324.6 | M44: 10.329
A45: 36 | B45: BEL | C45: 98.65 | D45: 98.80 | E45: 97.70 | F45: 96.75 | G45: 95.65 | H45: 99.75 | I45: 100.85 | J45: 101.80 | K45: 99.9 | L45: 97.85 | M45: 70.19827
A46: 37 | B46: BHARATFORG | C46: 434.15 | D46: 432.23 | E46: 425.52 | F46: 416.88 | G46: 410.17 | H46: 440.87 | I46: 447.58 | J46: 456.22 | K46: 438.95 | L46: 423.6 | M46: 7.7651
A47: 38 | B47: BHEL | C47: 60.65 | D47: 61.17 | E47: 59.78 | F47: 58.92 | G47: 57.53 | H47: 62.03 | I47: 63.42 | J47: 64.28 | K47: 62.55 | L47: 60.3 | M47: 102.47067
A48: 39 | B48: BPCL | C48: 343.8 | D48: 341.43 | E48: 337.37 | F48: 330.93 | G48: 326.87 | H48: 347.87 | I48: 351.93 | J48: 358.37 | K48: 345.5 | L48: 335 | M48: 46.59856
A49: 40 | B49: BHARTIARTL | C49: 334.9 | D49: 334.00 | E49: 329.10 | F49: 323.30 | G49: 318.40 | H49: 339.80 | I49: 344.70 | J49: 350.50 | K49: 338.9 | L49: 328.2 | M49: 49.95313
A50: 41 | B50: INFRATEL | C50: 270.2 | D50: 268.37 | E50: 264.93 | F50: 259.67 | G50: 256.23 | H50: 273.63 | I50: 277.07 | J50: 282.33 | K50: 271.8 | L50: 263.1 | M50: 19.60464
A51: 42 | B51: BIOCON | C51: 241.85 | D51: 244.55 | E51: 237.50 | F51: 233.15 | G51: 226.10 | H51: 248.90 | I51: 255.95 | J51: 260.30 | K51: 251.6 | L51: 240.2 | M51: 102.021
A52: 43 | B52: BBTC | C52: 867.45 | D52: 871.72 | E52: 855.53 | F52: 843.62 | G52: 827.43 | H52: 883.63 | I52: 899.82 | J52: 911.73 | K52: 887.9 | L52: 859.8 | M52: 0.36665
A53: 44 | B53: BOSCHLTD | C53: 15028.4 | D53: 14993.00 | E53: 14842.00 | F53: 14655.60 | G53: 14504.60 | H53: 15179.40 | I53: 15330.40 | J53: 15516.80 | K53: 15144 | L53: 14806.6 | M53: 0.09761
A54: 45 | B54: BRITANNIA | C54: 2668.45 | D54: 2656.62 | E54: 2628.38 | F54: 2588.32 | G54: 2560.08 | H54: 2696.68 | I54: 2724.92 | J54: 2764.98 | K54: 2684.85 | L54: 2616.55 | M54: 3.93941
A55: 46 | B55: CADILAHC | C55: 234.15 | D55: 232.40 | E55: 229.90 | F55: 225.65 | G55: 223.15 | H55: 236.65 | I55: 239.15 | J55: 243.40 | K55: 234.9 | L55: 228.15 | M55: 6.0819
A56: 47 | B56: CANBK | C56: 240.35 | D56: 241.98 | E56: 237.57 | F56: 234.78 | G56: 230.37 | H56: 244.77 | I56: 249.18 | J56: 251.97 | K56: 246.4 | L56: 239.2 | M56: 69.65463
A57: 48 | B57: CASTROLIND | C57: 126.1 | D57: 125.78 | E57: 124.32 | F57: 122.53 | G57: 121.07 | H57: 127.57 | I57: 129.03 | J57: 130.82 | K57: 127.25 | L57: 124 | M57: 9.38375
A58: 49 | B58: CHOLAFIN | C58: 245.45 | D58: 245.98 | E58: 241.52 | F58: 237.58 | G58: 233.12 | H58: 249.92 | I58: 254.38 | J58: 258.32 | K58: 250.45 | L58: 242.05 | M58: 12.56711
A59: 50 | B59: CIPLA | C59: 532.1 | D59: 533.42 | E59: 526.93 | F59: 521.77 | G59: 515.28 | H59: 538.58 | I59: 545.07 | J59: 550.23 | K59: 539.9 | L59: 528.25 | M59: 13.71242
A60: 51 | B60: COALINDIA | C60: 210.65 | D60: 209.70 | E60: 206.45 | F60: 202.25 | G60: 199.00 | H60: 213.90 | I60: 217.15 | J60: 221.35 | K60: 212.95 | L60: 205.5 | M60: 104.90177
A61: 52 | B61: COLPAL | C61: 1160.8 | D61: 1155.25 | E61: 1145.75 | F61: 1130.70 | G61: 1121.20 | H61: 1170.30 | I61: 1179.80 | J61: 1194.85 | K61: 1164.75 | L61: 1140.2 | M61: 2.66736
A62: 53 | B62: CONCOR | C62: 519.15 | D62: 519.10 | E62: 512.30 | F62: 505.45 | G62: 498.65 | H62: 525.95 | I62: 532.75 | J62: 539.60 | K62: 525.9 | L62: 512.25 | M62: 13.56495
A63: 54 | B63: COROMANDEL | C63: 381.8 | D63: 381.77 | E63: 377.03 | F63: 372.27 | G63: 367.53 | H63: 386.53 | I63: 391.27 | J63: 396.03 | K63: 386.5 | L63: 377 | M63: 0.18826
A64: 55 | B64: CROMPTON | C64: 225.3 | D64: 226.58 | E64: 222.72 | F64: 220.13 | G64: 216.27 | H64: 229.17 | I64: 233.03 | J64: 235.62 | K64: 230.45 | L64: 224 | M64: 17.74639
A65: 56 | B65: CUMMINSIND | C65: 739.15 | D65: 740.13 | E65: 731.42 | F65: 723.68 | G65: 714.97 | H65: 747.87 | I65: 756.58 | J65: 764.32 | K65: 748.85 | L65: 732.4 | M65: 2.80334
A66: 57 | B66: DLF | C66: 180.5 | D66: 179.23 | E66: 177.22 | F66: 173.93 | G66: 171.92 | H66: 182.52 | I66: 184.53 | J66: 187.82 | K66: 181.25 | L66: 175.95 | M66: 45.83743
A67: 58 | B67: DABUR | C67: 428.15 | D67: 426.40 | E67: 423.30 | F67: 418.45 | G67: 415.35 | H67: 431.25 | I67: 434.35 | J67: 439.20 | K67: 429.5 | L67: 421.55 | M67: 15.17097
A68: 59 | B68: DHFL | C68: 55 | D68: 55.03 | E68: 53.42 | F68: 51.83 | G68: 50.22 | H68: 56.62 | I68: 58.23 | J68: 59.82 | K68: 56.65 | L68: 53.45 | M68: 260.21137
A69: 60 | B69: DBL | C69: 423.3 | D69: 422.10 | E69: 412.20 | F69: 401.10 | G69: 391.20 | H69: 433.20 | I69: 443.10 | J69: 454.20 | K69: 432 | L69: 411 | M69: 1.96972
A70: 61 | B70: DISHTV | C70: 31.4 | D70: 31.40 | E70: 30.30 | F70: 29.20 | G70: 28.10 | H70: 32.50 | I70: 33.60 | J70: 34.70 | K70: 32.5 | L70: 30.3 | M70: 205.1379
A71: 62 | B71: DIVISLAB | C71: 1666.7 | D71: 1655.50 | E71: 1636.10 | F71: 1605.50 | G71: 1586.10 | H71: 1686.10 | I71: 1705.50 | J71: 1736.10 | K71: 1674.9 | L71: 1624.9 | M71: 5.86809
A72: 63 | B72: DRREDDY | C72: 2704.95 | D72: 2680.22 | E72: 2646.43 | F72: 2587.92 | G72: 2554.13 | H72: 2738.73 | I72: 2772.52 | J72: 2831.03 | K72: 2714 | L72: 2621.7 | M72: 5.37619
A73: 64 | B73: EDELWEISS | C73: 147.1 | D73: 146.53 | E73: 144.07 | F73: 141.03 | G73: 138.57 | H73: 149.57 | I73: 152.03 | J73: 155.07 | K73: 149 | L73: 143.5 | M73: 12.44137
A74: 65 | B74: EICHERMOT | C74: 17186.55 | D74: 16996.88 | E74: 16516.87 | F74: 15847.18 | G74: 15367.17 | H74: 17666.57 | I74: 18146.58 | J74: 18816.27 | K74: 17476.9 | L74: 16327.2 | M74: 2.30056
A75: 66 | B75: ENDURANCE | C75: 924 | D75: 929.98 | E75: 910.97 | F75: 897.93 | G75: 878.92 | H75: 943.02 | I75: 962.03 | J75: 975.07 | K75: 949 | L75: 916.95 | M75: 0.31657
A76: 67 | B76: ENGINERSIN | C76: 106.65 | D76: 105.52 | E76: 104.08 | F76: 101.52 | G76: 100.08 | H76: 108.08 | I76: 109.52 | J76: 112.08 | K76: 106.95 | L76: 102.95 | M76: 12.70803
A77: 68 | B77: ESCORTS | C77: 473.45 | D77: 475.72 | E77: 463.63 | F77: 453.82 | G77: 441.73 | H77: 485.53 | I77: 497.62 | J77: 507.43 | K77: 487.8 | L77: 465.9 | M77: 25.78951
A78: 69 | B78: EXIDEIND | C78: 184.6 | D78: 184.07 | E78: 181.53 | F78: 178.47 | G78: 175.93 | H78: 187.13 | I78: 189.67 | J78: 192.73 | K78: 186.6 | L78: 181 | M78: 17.76308
A79: 70 | B79: FEDERALBNK | C79: 95.3 | D79: 94.45 | E79: 93.10 | F79: 90.90 | G79: 89.55 | H79: 96.65 | I79: 98.00 | J79: 100.20 | K79: 95.8 | L79: 92.25 | M79: 111.15786
A80: 71 | B80: FCONSUMER | C80: 30.15 | D80: 29.80 | E80: 28.65 | F80: 27.15 | G80: 26.00 | H80: 31.30 | I80: 32.45 | J80: 33.95 | K80: 30.95 | L80: 28.3 | M80: 31.30745
A81: 72 | B81: FRETAIL | C81: 425.8 | D81: 422.95 | E81: 418.00 | F81: 410.20 | G81: 405.25 | H81: 430.75 | I81: 435.70 | J81: 443.50 | K81: 427.9 | L81: 415.15 | M81: 1.24803
A82: 73 | B82: GAIL | C82: 132.95 | D82: 133.68 | E82: 131.67 | F82: 130.38 | G82: 128.37 | H82: 134.97 | I82: 136.98 | J82: 138.27 | K82: 135.7 | L82: 132.4 | M82: 58.83152
A83: 74 | B83: GMRINFRA | C83: 14.65 | D83: 14.63 | E83: 14.52 | F83: 14.38 | G83: 14.27 | H83: 14.77 | I83: 14.88 | J83: 15.02 | K83: 14.75 | L83: 14.5 | M83: 83.79443
A84: 75 | B84: GICRE | C84: 209.4 | D84: 210.90 | E84: 206.80 | F84: 204.20 | G84: 200.10 | H84: 213.50 | I84: 217.60 | J84: 220.20 | K84: 215 | L84: 208.3 | M84: 0.64572
A85: 76 | B85: GSKCONS | C85: 7369.15 | D85: 7400.23 | E85: 7318.62 | F85: 7268.08 | G85: 7186.47 | H85: 7450.77 | I85: 7532.38 | J85: 7582.92 | K85: 7481.85 | L85: 7349.7 | M85: 0.17449
A86: 77 | B86: GLENMARK | C86: 426.15 | D86: 428.30 | E86: 422.60 | F86: 419.05 | G86: 413.35 | H86: 431.85 | I86: 437.55 | J86: 441.10 | K86: 434 | L86: 424.75 | M86: 6.29174
A87: 78 | B87: GODREJAGRO | C87: 455.7 | D87: 456.05 | E87: 448.65 | F87: 441.60 | G87: 434.20 | H87: 463.10 | I87: 470.50 | J87: 477.55 | K87: 463.45 | L87: 449 | M87: 1.13658
A88: 79 | B88: GODREJCP | C88: 619.4 | D88: 617.67 | E88: 613.93 | F88: 608.47 | G88: 604.73 | H88: 623.13 | I88: 626.87 | J88: 632.33 | K88: 621.4 | L88: 612.2 | M88: 2.21434
A89: 80 | B89: GODREJIND | C89: 452.85 | D89: 456.45 | E89: 447.90 | F89: 442.95 | G89: 434.40 | H89: 461.40 | I89: 469.95 | J89: 474.90 | K89: 465 | L89: 451.5 | M89: 0.84004
A90: 81 | B90: GRAPHITE | C90: 319.95 | D90: 312.02 | E90: 301.53 | F90: 283.12 | G90: 272.63 | H90: 330.43 | I90: 340.92 | J90: 359.33 | K90: 322.5 | L90: 293.6 | M90: 39.61909
A91: 82 | B91: GRASIM | C91: 874.95 | D91: 873.97 | E91: 868.03 | F91: 861.12 | G91: 855.18 | H91: 880.88 | I91: 886.82 | J91: 893.73 | K91: 879.9 | L91: 867.05 | M91: 7.07596
A92: 83 | B92: GRUH | C92: 255.9 | D92: 255.00 | E92: 248.95 | F92: 242.00 | G92: 235.95 | H92: 261.95 | I92: 268.00 | J92: 274.95 | K92: 261.05 | L92: 248.05 | M92: 9.38115
A93: 84 | B93: GSPL | C93: 209.35 | D93: 208.32 | E93: 206.13 | F93: 202.92 | G93: 200.73 | H93: 211.53 | I93: 213.72 | J93: 216.93 | K93: 210.5 | L93: 205.1 | M93: 9.59917
A94: 85 | B94: HEG | C94: 1038.4 | D94: 1016.37 | E94: 984.03 | F94: 929.67 | G94: 897.33 | H94: 1070.73 | I94: 1103.07 | J94: 1157.43 | K94: 1048.7 | L94: 962 | M94: 13.33811
A95: 86 | B95: HCLTECH | C95: 1001.45 | D95: 1003.65 | E95: 995.20 | F95: 988.95 | G95: 980.50 | H95: 1009.90 | I95: 1018.35 | J95: 1024.60 | K95: 1012.1 | L95: 997.4 | M95: 11.66192
A96: 87 | B96: HDFCAMC | C96: 2195.35 | D96: 2164.17 | E96: 2120.33 | F96: 2045.32 | G96: 2001.48 | H96: 2239.18 | I96: 2283.02 | J96: 2358.03 | K96: 2208 | L96: 2089.15 | M96: 5.17878
A97: 88 | B97: HDFCBANK | C97: 2277.3 | D97: 2281.27 | E97: 2268.88 | F97: 2260.47 | G97: 2248.08 | H97: 2289.68 | I97: 2302.07 | J97: 2310.48 | K97: 2293.65 | L97: 2272.85 | M97: 32.07457
A98: 89 | B98: HDFCLIFE | C98: 499.1 | D98: 500.73 | E98: 493.47 | F98: 487.83 | G98: 480.57 | H98: 506.37 | I98: 513.63 | J98: 519.27 | K98: 508 | L98: 495.1 | M98: 17.06982
A99: 90 | B99: HAVELLS | C99: 698.25 | D99: 693.58 | E99: 683.17 | F99: 668.08 | G99: 657.67 | H99: 708.67 | I99: 719.08 | J99: 734.17 | K99: 704 | L99: 678.5 | M99: 17.31276
A100: 91 | B100: HEROMOTOCO | C100: 2467.3 | D100: 2440.45 | E100: 2393.35 | F100: 2319.40 | G100: 2272.30 | H100: 2514.40 | I100: 2561.50 | J100: 2635.45 | K100: 2487.55 | L100: 2366.5 | M100: 10.85566
A101: 92 | B101: HEXAWARE | C101: 357.9 | D101: 359.47 | E101: 351.28 | F101: 344.67 | G101: 336.48 | H101: 366.08 | I101: 374.27 | J101: 380.88 | K101: 367.65 | L101: 352.85 | M101: 12.55702
A102: 93 | B102: HINDALCO | C102: 198 | D102: 197.37 | E102: 195.38 | F102: 192.77 | G102: 190.78 | H102: 199.98 | I102: 201.97 | J102: 204.58 | K102: 199.35 | L102: 194.75 | M102: 53.73373
A103: 94 | B103: HINDPETRO | C103: 275.35 | D103: 269.90 | E103: 263.20 | F103: 251.05 | G103: 244.35 | H103: 282.05 | I103: 288.75 | J103: 300.90 | K103: 276.6 | L103: 257.75 | M103: 58.93249
A104: 95 | B104: HINDUNILVR | C104: 1730.65 | D104: 1730.65 | E104: 1719.30 | F104: 1707.95 | G104: 1696.60 | H104: 1742.00 | I104: 1753.35 | J104: 1764.70 | K104: 1742 | L104: 1719.3 | M104: 7.71408
A105: 96 | B105: HINDZINC | C105: 225.5 | D105: 222.00 | E105: 217.80 | F105: 210.10 | G105: 205.90 | H105: 229.70 | I105: 233.90 | J105: 241.60 | K105: 226.2 | L105: 214.3 | M105: 8.07673
A106: 97 | B106: HUDCO | C106: 34.95 | D106: 34.97 | E106: 34.38 | F106: 33.82 | G106: 33.23 | H106: 35.53 | I106: 36.12 | J106: 36.68 | K106: 35.55 | L106: 34.4 | M106: 8.02651
A107: 98 | B107: HDFC | C107: 2165.75 | D107: 2174.32 | E107: 2150.83 | F107: 2135.92 | G107: 2112.43 | H107: 2189.23 | I107: 2212.72 | J107: 2227.63 | K107: 2197.8 | L107: 2159.4 | M107: 19.20114
A108: 99 | B108: ICICIBANK | C108: 415.75 | D108: 414.57 | E108: 409.73 | F108: 403.72 | G108: 398.88 | H108: 420.58 | I108: 425.42 | J108: 431.43 | K108: 419.4 | L108: 408.55 | M108: 174.93739
A109: 100 | B109: ICICIGI | C109: 1140.8 | D109: 1126.93 | E109: 1103.87 | F109: 1066.93 | G109: 1043.87 | H109: 1163.87 | I109: 1186.93 | J109: 1223.87 | K109: 1150 | L109: 1090 | M109: 6.03417
A110: 101 | B110: ICICIPRULI | C110: 402.55 | D110: 401.12 | E110: 397.43 | F110: 392.32 | G110: 388.63 | H110: 406.23 | I110: 409.92 | J110: 415.03 | K110: 404.8 | L110: 396 | M110: 61.07028
A111: 102 | B111: IDBI | C111: 31.15 | D111: 31.28 | E111: 30.07 | F111: 28.98 | G111: 27.77 | H111: 32.37 | I111: 33.58 | J111: 34.67 | K111: 32.5 | L111: 30.2 | M111: 77.86552
A112: 103 | B112: IDFCFIRSTB | C112: 42.35 | D112: 41.28 | E112: 39.62 | F112: 36.88 | G112: 35.22 | H112: 44.02 | I112: 45.68 | J112: 48.42 | K112: 42.95 | L112: 38.55 | M112: 431.86274
A113: 104 | B113: ITC | C113: 270.4 | D113: 269.43 | E113: 267.87 | F113: 265.33 | G113: 263.77 | H113: 271.97 | I113: 273.53 | J113: 276.07 | K113: 271 | L113: 266.9 | M113: 47.8804
A114: 105 | B114: IBULHSGFIN | C114: 624.35 | D114: 625.87 | E114: 611.98 | F114: 599.62 | G114: 585.73 | H114: 638.23 | I114: 652.12 | J114: 664.48 | K114: 639.75 | L114: 613.5 | M114: 82.86875
A115: 106 | B115: IBVENTURES | C115: 270.35 | D115: 272.38 | E115: 265.32 | F115: 260.28 | G115: 253.22 | H115: 277.42 | I115: 284.48 | J115: 289.52 | K115: 279.45 | L115: 267.35 | M115: 4.90866
A116: 107 | B116: INDIANB | C116: 212.9 | D116: 213.65 | E116: 210.50 | F116: 208.10 | G116: 204.95 | H116: 216.05 | I116: 219.20 | J116: 221.60 | K116: 216.8 | L116: 211.25 | M116: 4.25862
A117: 108 | B117: INDHOTEL | C117: 144.2 | D117: 144.68 | E117: 143.02 | F117: 141.83 | G117: 140.17 | H117: 145.87 | I117: 147.53 | J117: 148.72 | K117: 146.35 | L117: 143.5 | M117: 2.90543
A118: 109 | B118: IOC | C118: 141.8 | D118: 143.08 | E118: 139.82 | F118: 137.83 | G118: 134.57 | H118: 145.07 | I118: 148.33 | J118: 150.32 | K118: 146.35 | L118: 141.1 | M118: 135.56114
A119: 110 | B119: IGL | C119: 305.75 | D119: 307.67 | E119: 301.53 | F119: 297.32 | G119: 291.18 | H119: 311.88 | I119: 318.02 | J119: 322.23 | K119: 313.8 | L119: 303.45 | M119: 18.79495
A120: 111 | B120: INDUSINDBK | C120: 1415.5 | D120: 1408.02 | E120: 1394.03 | F120: 1372.57 | G120: 1358.58 | H120: 1429.48 | I120: 1443.47 | J120: 1464.93 | K120: 1422 | L120: 1386.55 | M120: 31.06622
A121: 112 | B121: NAUKRI | C121: 2226.6 | D121: 2241.75 | E121: 2194.85 | F121: 2163.10 | G121: 2116.20 | H121: 2273.50 | I121: 2320.40 | J121: 2352.15 | K121: 2288.65 | L121: 2210 | M121: 1.06476
A122: 113 | B122: INFY | C122: 787 | D122: 788.07 | E122: 781.13 | F122: 775.27 | G122: 768.33 | H122: 793.93 | I122: 800.87 | J122: 806.73 | K122: 795 | L122: 782.2 | M122: 49.41763
A123: 114 | B123: INDIGO | C123: 1582.45 | D123: 1586.25 | E123: 1566.30 | F123: 1550.15 | G123: 1530.20 | H123: 1602.40 | I123: 1622.35 | J123: 1638.50 | K123: 1606.2 | L123: 1570.1 | M123: 14.69774
A124: 115 | B124: JSWENERGY | C124: 67.8 | D124: 68.12 | E124: 67.23 | F124: 66.67 | G124: 65.78 | H124: 68.68 | I124: 69.57 | J124: 70.13 | K124: 69 | L124: 67.55 | M124: 2.9406
A125: 116 | B125: JSWSTEEL | C125: 249.7 | D125: 250.05 | E125: 246.75 | F125: 243.80 | G125: 240.50 | H125: 253.00 | I125: 256.30 | J125: 259.25 | K125: 253.35 | L125: 247.1 | M125: 53.86836
A126: 117 | B126: JINDALSTEL | C126: 138.05 | D126: 138.07 | E126: 133.73 | F126: 129.42 | G126: 125.08 | H126: 142.38 | I126: 146.72 | J126: 151.03 | K126: 142.4 | L126: 133.75 | M126: 124.64765
A127: 118 | B127: JUBLFOOD | C127: 1214.15 | D127: 1197.08 | E127: 1175.17 | F127: 1136.18 | G127: 1114.27 | H127: 1236.07 | I127: 1257.98 | J127: 1296.97 | K127: 1219 | L127: 1158.1 | M127: 12.63526
A128: 119 | B128: JUBILANT | C128: 445.25 | D128: 446.12 | E128: 430.23 | F128: 415.22 | G128: 399.33 | H128: 461.13 | I128: 477.02 | J128: 492.03 | K128: 462 | L128: 431.1 | M128: 12.00192
A129: 120 | B129: KOTAKBANK | C129: 1511.85 | D129: 1502.28 | E129: 1486.62 | F129: 1461.38 | G129: 1445.72 | H129: 1527.52 | I129: 1543.18 | J129: 1568.42 | K129: 1517.95 | L129: 1477.05 | M129: 16.81353
A130: 121 | B130: L&TFH | C130: 103.75 | D130: 103.85 | E130: 101.60 | F130: 99.45 | G130: 97.20 | H130: 106.00 | I130: 108.25 | J130: 110.40 | K130: 106.1 | L130: 101.7 | M130: 66.55041
A131: 122 | B131: LTTS | C131: 1448.7 | D131: 1454.75 | E131: 1435.30 | F131: 1421.90 | G131: 1402.45 | H131: 1468.15 | I131: 1487.60 | J131: 1501.00 | K131: 1474.2 | L131: 1441.35 | M131: 1.58953
A132: 123 | B132: LICHSGFIN | C132: 523.4 | D132: 523.58 | E132: 518.27 | F132: 513.13 | G132: 507.82 | H132: 528.72 | I132: 534.03 | J132: 539.17 | K132: 528.9 | L132: 518.45 | M132: 12.71764
A133: 124 | B133: LTI | C133: 1497.5 | D133: 1504.12 | E133: 1478.68 | F133: 1459.87 | G133: 1434.43 | H133: 1522.93 | I133: 1548.37 | J133: 1567.18 | K133: 1529.55 | L133: 1485.3 | M133: 1.00016
A134: 125 | B134: LT | C134: 1392.15 | D134: 1384.17 | E134: 1371.08 | F134: 1350.02 | G134: 1336.93 | H134: 1405.23 | I134: 1418.32 | J134: 1439.38 | K134: 1397.25 | L134: 1363.1 | M134: 30.1985
A135: 126 | B135: LUPIN | C135: 777.3 | D135: 772.77 | E135: 765.53 | F135: 753.77 | G135: 746.53 | H135: 784.53 | I135: 791.77 | J135: 803.53 | K135: 780 | L135: 761 | M135: 10.97292
A136: 127 | B136: MRF | C136: 54338.5 | D136: 54440.08 | E136: 53898.42 | F136: 53458.33 | G136: 52916.67 | H136: 54880.17 | I136: 55421.83 | J136: 55861.92 | K136: 54981.75 | L136: 54000 | M136: 0.02683
A137: 128 | B137: MGL | C137: 778.75 | D137: 775.03 | E137: 768.07 | F137: 757.38 | G137: 750.42 | H137: 785.72 | I137: 792.68 | J137: 803.37 | K137: 782 | L137: 764.35 | M137: 2.52811
A138: 129 | B138: M&MFIN | C138: 296.75 | D138: 299.12 | E138: 292.23 | F138: 287.72 | G138: 280.83 | H138: 303.63 | I138: 310.52 | J138: 315.03 | K138: 306 | L138: 294.6 | M138: 41.06776
A139: 130 | B139: M&M | C139: 564.45 | D139: 558.62 | E139: 550.83 | F139: 537.22 | G139: 529.43 | H139: 572.23 | I139: 580.02 | J139: 593.63 | K139: 566.4 | L139: 545 | M139: 50.6375
A140: 131 | B140: MANAPPURAM | C140: 113.35 | D140: 114.15 | E140: 111.80 | F140: 110.25 | G140: 107.90 | H140: 115.70 | I140: 118.05 | J140: 119.60 | K140: 116.5 | L140: 112.6 | M140: 41.20894
A141: 132 | B141: MRPL | C141: 55 | D141: 55.05 | E141: 54.45 | F141: 53.90 | G141: 53.30 | H141: 55.60 | I141: 56.20 | J141: 56.75 | K141: 55.65 | L141: 54.5 | M141: 2.46445
A142: 133 | B142: MARICO | C142: 361.05 | D142: 360.50 | E142: 358.00 | F142: 354.95 | G142: 352.45 | H142: 363.55 | I142: 366.05 | J142: 369.10 | K142: 363 | L142: 357.45 | M142: 3.8205
A143: 134 | B143: MARUTI | C143: 5805.65 | D143: 5814.85 | E143: 5674.70 | F143: 5543.75 | G143: 5403.60 | H143: 5945.80 | I143: 6085.95 | J143: 6216.90 | K143: 5955 | L143: 5683.9 | M143: 23.46714
A144: 135 | B144: MFSL | C144: 424.85 | D144: 421.90 | E144: 416.95 | F144: 409.05 | G144: 404.10 | H144: 429.80 | I144: 434.75 | J144: 442.65 | K144: 426.85 | L144: 414 | M144: 3.75851
A145: 136 | B145: MINDTREE | C145: 689.95 | D145: 690.28 | E145: 682.67 | F145: 675.38 | G145: 667.77 | H145: 697.57 | I145: 705.18 | J145: 712.47 | K145: 697.9 | L145: 683 | M145: 11.8178
A146: 137 | B146: MOTHERSUMI | C146: 113 | D146: 112.82 | E146: 110.48 | F146: 107.97 | G146: 105.63 | H146: 115.33 | I146: 117.67 | J146: 120.18 | K146: 115.15 | L146: 110.3 | M146: 44.60596
A147: 138 | B147: MPHASIS | C147: 929.7 | D147: 919.60 | E147: 900.30 | F147: 870.90 | G147: 851.60 | H147: 949.00 | I147: 968.30 | J147: 997.70 | K147: 938.9 | L147: 890.2 | M147: 7.37677
A148: 139 | B148: MUTHOOTFIN | C148: 591.1 | D148: 590.42 | E148: 583.53 | F148: 575.97 | G148: 569.08 | H148: 597.98 | I148: 604.87 | J148: 612.43 | K148: 597.3 | L148: 582.85 | M148: 6.54641
A149: 140 | B149: NATCOPHARM | C149: 517.85 | D149: 516.42 | E149: 511.33 | F149: 504.82 | G149: 499.73 | H149: 522.93 | I149: 528.02 | J149: 534.53 | K149: 521.5 | L149: 509.9 | M149: 0.59478
A150: 141 | B150: NBCC | C150: 48.85 | D150: 48.72 | E150: 47.83 | F150: 46.82 | G150: 45.93 | H150: 49.73 | I150: 50.62 | J150: 51.63 | K150: 49.6 | L150: 47.7 | M150: 94.15618
A151: 142 | B151: NHPC | C151: 22.45 | D151: 22.45 | E151: 22.30 | F151: 22.15 | G151: 22.00 | H151: 22.60 | I151: 22.75 | J151: 22.90 | K151: 22.6 | L151: 22.3 | M151: 12.0502
A152: 143 | B152: NMDC | C152: 111.25 | D152: 110.33 | E152: 108.67 | F152: 106.08 | G152: 104.42 | H152: 112.92 | I152: 114.58 | J152: 117.17 | K152: 112 | L152: 107.75 | M152: 26.71873
A153: 144 | B153: NTPC | C153: 128.8 | D153: 129.15 | E153: 127.90 | F153: 127.00 | G153: 125.75 | H153: 130.05 | I153: 131.30 | J153: 132.20 | K153: 130.4 | L153: 128.25 | M153: 114.11885
A154: 145 | B154: NATIONALUM | C154: 45.85 | D154: 45.60 | E154: 45.10 | F154: 44.35 | G154: 43.85 | H154: 46.35 | I154: 46.85 | J154: 47.60 | K154: 46.1 | L154: 44.85 | M154: 45.95237
A155: 146 | B155: OBEROIRLTY | C155: 549.9 | D155: 546.52 | E155: 538.03 | F155: 526.17 | G155: 517.68 | H155: 558.38 | I155: 566.87 | J155: 578.73 | K155: 555 | L155: 534.65 | M155: 1.61693
A156: 147 | B156: ONGC | C156: 141.9 | D156: 142.57 | E156: 140.73 | F156: 139.57 | G156: 137.73 | H156: 143.73 | I156: 145.57 | J156: 146.73 | K156: 144.4 | L156: 141.4 | M156: 100.5549
A157: 148 | B157: OIL | C157: 156.35 | D157: 156.60 | E157: 155.55 | F157: 154.75 | G157: 153.70 | H157: 157.40 | I157: 158.45 | J157: 159.25 | K157: 157.65 | L157: 155.8 | M157: 9.7633
A158: 149 | B158: OFSS | C158: 3352.9 | D158: 3340.02 | E158: 3310.88 | F158: 3268.87 | G158: 3239.73 | H158: 3382.03 | I158: 3411.17 | J158: 3453.18 | K158: 3369.15 | L158: 3298 | M158: 0.23901
A159: 150 | B159: PIIND | C159: 1094.2 | D159: 1095.05 | E159: 1082.15 | F159: 1070.10 | G159: 1057.20 | H159: 1107.10 | I159: 1120.00 | J159: 1132.05 | K159: 1107.95 | L159: 1083 | M159: 2.07757
A160: 151 | B160: PNBHOUSING | C160: 709.3 | D160: 709.80 | E160: 702.60 | F160: 695.90 | G160: 688.70 | H160: 716.50 | I160: 723.70 | J160: 730.40 | K160: 717 | L160: 703.1 | M160: 0.72366
A161: 152 | B161: PAGEIND | C161: 18494.9 | D161: 18565.32 | E161: 18130.63 | F161: 17766.37 | G161: 17331.68 | H161: 18929.58 | I161: 19364.27 | J161: 19728.53 | K161: 19000 | L161: 18201.05 | M161: 0.17154
A162: 153 | B162: PETRONET | C162: 237.9 | D162: 235.33 | E162: 232.12 | F162: 226.33 | G162: 223.12 | H162: 241.12 | I162: 244.33 | J162: 250.12 | K162: 238.55 | L162: 229.55 | M162: 14.84905
A163: 154 | B163: PFIZER | C163: 3169.65 | D163: 3161.05 | E163: 3143.60 | F163: 3117.55 | G163: 3100.10 | H163: 3187.10 | I163: 3204.55 | J163: 3230.60 | K163: 3178.5 | L163: 3135 | M163: 0.07449
A164: 155 | B164: PIDILITIND | C164: 1243.9 | D164: 1241.30 | E164: 1228.60 | F164: 1213.30 | G164: 1200.60 | H164: 1256.60 | I164: 1269.30 | J164: 1284.60 | K164: 1254 | L164: 1226 | M164: 6.41034
A165: 156 | B165: PEL | C165: 1797.85 | D165: 1786.78 | E165: 1734.07 | F165: 1670.28 | G165: 1617.57 | H165: 1850.57 | I165: 1903.28 | J165: 1967.07 | K165: 1839.5 | L165: 1723 | M165: 12.31877
A166: 157 | B166: PFC | C166: 112.6 | D166: 112.77 | E166: 111.53 | F166: 110.47 | G166: 109.23 | H166: 113.83 | I166: 115.07 | J166: 116.13 | K166: 114 | L166: 111.7 | M166: 61.31932
A167: 158 | B167: POWERGRID | C167: 211.55 | D167: 211.93 | E167: 209.87 | F167: 208.18 | G167: 206.12 | H167: 213.62 | I167: 215.68 | J167: 217.37 | K167: 214 | L167: 210.25 | M167: 61.59906
A168: 159 | B168: PRESTIGE | C168: 263.75 | D168: 264.72 | E168: 261.43 | F168: 259.12 | G168: 255.83 | H168: 267.03 | I168: 270.32 | J168: 272.63 | K168: 268 | L168: 262.4 | M168: 0.61609
A169: 160 | B169: PGHH | C169: 10747.2 | D169: 10715.67 | E169: 10531.33 | F169: 10315.47 | G169: 10131.13 | H169: 10931.53 | I169: 11115.87 | J169: 11331.73 | K169: 10900 | L169: 10499.8 | M169: 0.01342
A170: 161 | B170: PNB | C170: 68 | D170: 67.87 | E170: 66.08 | F170: 64.17 | G170: 62.38 | H170: 69.78 | I170: 71.57 | J170: 73.48 | K170: 69.65 | L170: 65.95 | M170: 587.77562
A171: 162 | B171: QUESS | C171: 449.2 | D171: 449.55 | E171: 444.10 | F171: 439.00 | G171: 433.55 | H171: 454.65 | I171: 460.10 | J171: 465.20 | K171: 455 | L171: 444.45 | M171: 1.04404
A172: 163 | B172: RBLBANK | C172: 456.6 | D172: 458.65 | E172: 450.95 | F172: 445.30 | G172: 437.60 | H172: 464.30 | I172: 472.00 | J172: 477.65 | K172: 466.35 | L172: 453 | M172: 44.38657
A173: 164 | B173: RECLTD | C173: 142 | D173: 143.72 | E173: 139.48 | F173: 136.97 | G173: 132.73 | H173: 146.23 | I173: 150.47 | J173: 152.98 | K173: 147.95 | L173: 141.2 | M173: 51.10491
A174: 165 | B174: RAJESHEXPO | C174: 714.1 | D174: 708.80 | E174: 690.05 | F174: 666.00 | G174: 647.25 | H174: 732.85 | I174: 751.60 | J174: 775.65 | K174: 727.55 | L174: 684.75 | M174: 2.72269
A175: 166 | B175: RELCAPITAL | C175: 54.05 | D175: 53.00 | E175: 51.50 | F175: 48.95 | G175: 47.45 | H175: 55.55 | I175: 57.05 | J175: 59.60 | K175: 54.5 | L175: 50.45 | M175: 271.91937
A176: 167 | B176: RELIANCE | C176: 1213.8 | D176: 1222.10 | E176: 1201.70 | F176: 1189.60 | G176: 1169.20 | H176: 1234.20 | I176: 1254.60 | J176: 1266.70 | K176: 1242.5 | L176: 1210 | M176: 93.20481
A177: 168 | B177: RELINFRA | C177: 50.5 | D177: 49.60 | E177: 47.80 | F177: 45.10 | G177: 43.30 | H177: 52.30 | I177: 54.10 | J177: 56.80 | K177: 51.4 | L177: 46.9 | M177: 363.22166
A178: 169 | B178: RPOWER | C178: 3.65 | D178: 3.63 | E178: 3.57 | F178: 3.48 | G178: 3.42 | H178: 3.72 | I178: 3.78 | J178: 3.87 | K178: 3.7 | L178: 3.55 | M178: 101.45296
A179: 170 | B179: SBILIFE | C179: 795.1 | D179: 795.03 | E179: 783.07 | F179: 771.03 | G179: 759.07 | H179: 807.07 | I179: 819.03 | J179: 831.07 | K179: 807 | L179: 783 | M179: 8.48649
A180: 171 | B180: SRF | C180: 2737.55 | D180: 2717.27 | E180: 2670.28 | F180: 2603.02 | G180: 2556.03 | H180: 2784.53 | I180: 2831.52 | J180: 2898.78 | K180: 2764.25 | L180: 2650 | M180: 3.14316
A181: 172 | B181: SHREECEM | C181: 21431.3 | D181: 21309.28 | E181: 21077.17 | F181: 20723.03 | G181: 20490.92 | H181: 21663.42 | I181: 21895.53 | J181: 22249.67 | K181: 21541.4 | L181: 20955.15 | M181: 0.16163
A182: 173 | B182: SRTRANSFIN | C182: 976.1 | D182: 985.12 | E182: 962.43 | F182: 948.77 | G182: 926.08 | H182: 998.78 | I182: 1021.47 | J182: 1035.13 | K182: 1007.8 | L182: 971.45 | M182: 20.2769
A183: 174 | B183: SIEMENS | C183: 1186.3 | D183: 1184.85 | E183: 1171.50 | F183: 1156.70 | G183: 1143.35 | H183: 1199.65 | I183: 1213.00 | J183: 1227.80 | K183: 1198.2 | L183: 1170.05 | M183: 2.05316
A184: 175 | B184: SBIN | C184: 342.6 | D184: 343.08 | E184: 340.02 | F184: 337.43 | G184: 334.37 | H184: 345.67 | I184: 348.73 | J184: 351.32 | K184: 346.15 | L184: 340.5 | M184: 161.39052
A185: 176 | B185: SAIL | C185: 45.2 | D185: 44.53 | E185: 43.52 | F185: 41.83 | G185: 40.82 | H185: 46.22 | I185: 47.23 | J185: 48.92 | K185: 45.55 | L185: 42.85 | M185: 272.41668
A186: 177 | B186: STRTECH | C186: 157.15 | D186: 155.00 | E186: 151.65 | F186: 146.15 | G186: 142.80 | H186: 160.50 | I186: 163.85 | J186: 169.35 | K186: 158.35 | L186: 149.5 | M186: 12.91996
A187: 178 | B187: SPARC | C187: 165.05 | D187: 165.42 | E187: 162.83 | F187: 160.62 | G187: 158.03 | H187: 167.63 | I187: 170.22 | J187: 172.43 | K187: 168 | L187: 163.2 | M187: 9.88799
A188: 179 | B188: SUNPHARMA | C188: 439.95 | D188: 438.42 | E188: 434.63 | F188: 429.32 | G188: 425.53 | H188: 443.73 | I188: 447.52 | J188: 452.83 | K188: 442.2 | L188: 433.1 | M188: 50.94438
A189: 180 | B189: SUNTV | C189: 491.05 | D189: 486.13 | E189: 476.42 | F189: 461.78 | G189: 452.07 | H189: 500.77 | I189: 510.48 | J189: 525.12 | K189: 495.85 | L189: 471.5 | M189: 16.0628
A190: 181 | B190: SYNGENE | C190: 311.7 | D190: 310.77 | E190: 308.43 | F190: 305.17 | G190: 302.83 | H190: 314.03 | I190: 316.37 | J190: 319.63 | K190: 313.1 | L190: 307.5 | M190: 0.36659
A191: 182 | B191: TVSMOTOR | C191: 375.85 | D191: 372.65 | E191: 365.30 | F191: 354.75 | G191: 347.40 | H191: 383.20 | I191: 390.55 | J191: 401.10 | K191: 380 | L191: 362.1 | M191: 19.30642
A192: 183 | B192: TATACHEM | C192: 594.55 | D192: 595.82 | E192: 591.13 | F192: 587.72 | G192: 583.03 | H192: 599.23 | I192: 603.92 | J192: 607.33 | K192: 600.5 | L192: 592.4 | M192: 2.80533
A193: 184 | B193: TCS | C193: 2109.05 | D193: 2111.28 | E193: 2092.77 | F193: 2076.48 | G193: 2057.97 | H193: 2127.57 | I193: 2146.08 | J193: 2162.37 | K193: 2129.8 | L193: 2095 | M193: 17.20592
A194: 185 | B194: TATAGLOBAL | C194: 258.35 | D194: 256.42 | E194: 252.33 | F194: 246.32 | G194: 242.23 | H194: 262.43 | I194: 266.52 | J194: 272.53 | K194: 260.5 | L194: 250.4 | M194: 20.06636
A195: 186 | B195: TATAMTRDVR | C195: 70.9 | D195: 70.08 | E195: 67.72 | F195: 64.53 | G195: 62.17 | H195: 73.27 | I195: 75.63 | J195: 78.82 | K195: 72.45 | L195: 66.9 | M195: 61.9709
A196: 187 | B196: TATAMOTORS | C196: 147.15 | D196: 145.13 | E196: 140.12 | F196: 133.08 | G196: 128.07 | H196: 152.17 | I196: 157.18 | J196: 164.22 | K196: 150.15 | L196: 138.1 | M196: 839.05651
A197: 188 | B197: TATAPOWER | C197: 62.3 | D197: 62.13 | E197: 61.12 | F197: 59.93 | G197: 58.92 | H197: 63.32 | I197: 64.33 | J197: 65.52 | K197: 63.15 | L197: 60.95 | M197: 50.26025
A198: 189 | B198: TATASTEEL | C198: 445.5 | D198: 443.12 | E198: 438.03 | F198: 430.57 | G198: 425.48 | H198: 450.58 | I198: 455.67 | J198: 463.13 | K198: 448.2 | L198: 435.65 | M198: 65.85786
A199: 190 | B199: TECHM | C199: 643.5 | D199: 645.18 | E199: 639.37 | F199: 635.23 | G199: 629.42 | H199: 649.32 | I199: 655.13 | J199: 659.27 | K199: 651 | L199: 641.05 | M199: 16.37706
A200: 191 | B200: NIACL | C200: 123.5 | D200: 123.82 | E200: 122.83 | F200: 122.17 | G200: 121.18 | H200: 124.48 | I200: 125.47 | J200: 126.13 | K200: 124.8 | L200: 123.15 | M200: 0.40832
A201: 192 | B201: RAMCOCEM | C201: 750.7 | D201: 746.10 | E201: 738.20 | F201: 725.70 | G201: 717.80 | H201: 758.60 | I201: 766.50 | J201: 779.00 | K201: 754 | L201: 733.6 | M201: 2.01531
A202: 193 | B202: TITAN | C202: 1106.4 | D202: 1100.53 | E202: 1088.87 | F202: 1071.33 | G202: 1059.67 | H202: 1118.07 | I202: 1129.73 | J202: 1147.27 | K202: 1112.2 | L202: 1083 | M202: 11.2887
A203: 194 | B203: TORNTPHARM | C203: 1673.75 | D203: 1655.10 | E203: 1626.85 | F203: 1579.95 | G203: 1551.70 | H203: 1702.00 | I203: 1730.25 | J203: 1777.15 | K203: 1683.35 | L203: 1608.2 | M203: 6.18068
A204: 195 | B204: TORNTPOWER | C204: 304.3 | D204: 302.80 | E204: 299.60 | F204: 294.90 | G204: 291.70 | H204: 307.50 | I204: 310.70 | J204: 315.40 | K204: 306 | L204: 298.1 | M204: 6.94162
A205: 196 | B205: UPL | C205: 601.55 | D205: 600.33 | E205: 590.22 | F205: 578.88 | G205: 568.77 | H205: 611.67 | I205: 621.78 | J205: 633.12 | K205: 610.45 | L205: 589 | M205: 67.39394
... 30 more rows

Sheet MidCap Intra
L5: Back To Main Page
A6: FOR INTRA DAY TRADING | K6: =Main!B10 -> 2019-07-29
A9: Sr.no | B9: Scrip | C9: CLOSE RATE | D9: Pivot Point | E9: Supports | H9: Resistances
C10: Point | E10: S1 | F10: S2 | G10: S3 | H10: R1 | I10: R2 | J10: R3 | K10: HIGH | L10: LOW | M10: Total Trade Quanity in Lakhs
A11: 1 | B11: 3MINDIA | C11: 20903.4 | D11: 20934.72 | E11: 20711.78 | F11: 20520.17 | G11: 20297.23 | H11: 21126.33 | I11: 21349.27 | J11: 21540.88 | K11: 21157.65 | L11: 20743.1 | M11: 0.02335
A12: 2 | B12: ABB | C12: 1382.05 | D12: 1393.35 | E12: 1358.70 | F12: 1335.35 | G12: 1300.70 | H12: 1416.70 | I12: 1451.35 | J12: 1474.70 | K12: 1428 | L12: 1370 | M12: 0.93398
A13: 3 | B13: ACC | C13: 1581.95 | D13: 1579.68 | E13: 1570.37 | F13: 1558.78 | G13: 1549.47 | H13: 1591.27 | I13: 1600.58 | J13: 1612.17 | K13: 1589 | L13: 1568.1 | M13: 4.8042
A14: 4 | B14: AIAENG | C14: 1722.4 | D14: 1728.82 | E14: 1704.63 | F14: 1686.87 | G14: 1662.68 | H14: 1746.58 | I14: 1770.77 | J14: 1788.53 | K14: 1753 | L14: 1711.05 | M14: 0.48339
A15: 5 | B15: APLAPOLLO | C15: 1451.85 | D15: 1457.00 | E15: 1438.85 | F15: 1425.85 | G15: 1407.70 | H15: 1470.00 | I15: 1488.15 | J15: 1501.15 | K15: 1475.15 | L15: 1444 | M15: 0.07208
A16: 6 | B16: AUBANK | C16: 659.45 | D16: 663.82 | E16: 650.63 | F16: 641.82 | G16: 628.63 | H16: 672.63 | I16: 685.82 | J16: 694.63 | K16: 677 | L16: 655 | M16: 4.55634
A17: 7 | B17: AAVAS | C17: 1460.35 | D17: 1463.88 | E17: 1446.47 | F17: 1432.58 | G17: 1415.17 | H17: 1477.77 | I17: 1495.18 | J17: 1509.07 | K17: 1481.3 | L17: 1450 | M17: 0.04453
A18: 8 | B18: ADANIGREEN | C18: 49.6 | D18: 49.38 | E18: 48.42 | F18: 47.23 | G18: 46.27 | H18: 50.57 | I18: 51.53 | J18: 52.72 | K18: 50.35 | L18: 48.2 | M18: 7.7796
A19: 9 | B19: ADANIPORTS | C19: 381.65 | D19: 381.08 | E19: 377.77 | F19: 373.88 | G19: 370.57 | H19: 384.97 | I19: 388.28 | J19: 392.17 | K19: 384.4 | L19: 377.2 | M19: 27.01597
A20: 10 | B20: ADANIPOWER | C20: 62.9 | D20: 62.58 | E20: 61.77 | F20: 60.63 | G20: 59.82 | H20: 63.72 | I20: 64.53 | J20: 65.67 | K20: 63.4 | L20: 61.45 | M20: 85.97588
A21: 11 | B21: ADANITRANS | C21: 215.4 | D21: 215.90 | E21: 212.30 | F21: 209.20 | G21: 205.60 | H21: 219.00 | I21: 222.60 | J21: 225.70 | K21: 219.5 | L21: 212.8 | M21: 0.3251
A22: 12 | B22: ABCAPITAL | C22: 87.05 | D22: 86.00 | E22: 84.60 | F22: 82.15 | G22: 80.75 | H22: 88.45 | I22: 89.85 | J22: 92.30 | K22: 87.4 | L22: 83.55 | M22: 15.66872
A23: 13 | B23: ABFRL | C23: 196.85 | D23: 198.85 | E23: 194.00 | F23: 191.15 | G23: 186.30 | H23: 201.70 | I23: 206.55 | J23: 209.40 | K23: 203.7 | L23: 196 | M23: 4.29929
A24: 14 | B24: ADVENZYMES | C24: 157.25 | D24: 156.33 | E24: 154.92 | F24: 152.58 | G24: 151.17 | H24: 158.67 | I24: 160.08 | J24: 162.42 | K24: 157.75 | L24: 154 | M24: 0.18797
A25: 15 | B25: AEGISCHEM | C25: 199.75 | D25: 198.80 | E25: 196.90 | F25: 194.05 | G25: 192.15 | H25: 201.65 | I25: 203.55 | J25: 206.40 | K25: 200.7 | L25: 195.95 | M25: 0.60416
A26: 16 | B26: AJANTPHARM | C26: 901.05 | D26: 895.68 | E26: 879.47 | F26: 857.88 | G26: 841.67 | H26: 917.27 | I26: 933.48 | J26: 955.07 | K26: 911.9 | L26: 874.1 | M26: 2.47296
A27: 17 | B27: AKZOINDIA | C27: 1726.35 | D27: 1723.02 | E27: 1705.98 | F27: 1685.62 | G27: 1668.58 | H27: 1743.38 | I27: 1760.42 | J27: 1780.78 | K27: 1740.05 | L27: 1702.65 | M27: 0.02028
A28: 18 | B28: APLLTD | C28: 535.6 | D28: 535.88 | E28: 527.77 | F28: 519.93 | G28: 511.82 | H28: 543.72 | I28: 551.83 | J28: 559.67 | K28: 544 | L28: 528.05 | M28: 0.13306
A29: 19 | B29: ALKEM | C29: 1815.15 | D29: 1812.08 | E29: 1796.17 | F29: 1777.18 | G29: 1761.27 | H29: 1831.07 | I29: 1846.98 | J29: 1865.97 | K29: 1828 | L29: 1793.1 | M29: 0.12032
A30: 20 | B30: ALBK | C30: 40.3 | D30: 40.35 | E30: 39.65 | F30: 39.00 | G30: 38.30 | H30: 41.00 | I30: 41.70 | J30: 42.35 | K30: 41.05 | L30: 39.7 | M30: 16.95839
A31: 21 | B31: ALLCARGO | C31: 100.85 | D31: 100.23 | E31: 99.27 | F31: 97.68 | G31: 96.72 | H31: 101.82 | I31: 102.78 | J31: 104.37 | K31: 101.2 | L31: 98.65 | M31: 0.53676
A32: 22 | B32: AMARAJABAT | C32: 651 | D32: 647.08 | E32: 639.17 | F32: 627.33 | G32: 619.42 | H32: 658.92 | I32: 666.83 | J32: 678.67 | K32: 655 | L32: 635.25 | M32: 8.69534
A33: 23 | B33: AMBUJACEM | C33: 213.45 | D33: 212.72 | E33: 209.83 | F33: 206.22 | G33: 203.33 | H33: 216.33 | I33: 219.22 | J33: 222.83 | K33: 215.6 | L33: 209.1 | M33: 44.79103
A34: 24 | B34: ANDHRABANK | C34: 21.75 | D34: 21.83 | E34: 21.27 | F34: 20.78 | G34: 20.22 | H34: 22.32 | I34: 22.88 | J34: 23.37 | K34: 22.4 | L34: 21.35 | M34: 7.00844
A35: 25 | B35: APOLLOHOSP | C35: 1363.05 | D35: 1351.23 | E35: 1334.72 | F35: 1306.38 | G35: 1289.87 | H35: 1379.57 | I35: 1396.08 | J35: 1424.42 | K35: 1367.75 | L35: 1322.9 | M35: 3.36855
A36: 26 | B36: APOLLOTYRE | C36: 164.05 | D36: 163.25 | E36: 161.00 | F36: 157.95 | G36: 155.70 | H36: 166.30 | I36: 168.55 | J36: 171.60 | K36: 165.5 | L36: 160.2 | M36: 27.68222
A37: 27 | B37: ASHOKLEY | C37: 74.2 | D37: 73.82 | E37: 72.73 | F37: 71.27 | G37: 70.18 | H37: 75.28 | I37: 76.37 | J37: 77.83 | K37: 74.9 | L37: 72.35 | M37: 202.15434
A38: 28 | B38: ASHOKA | C38: 121.05 | D38: 120.18 | E38: 118.37 | F38: 115.68 | G38: 113.87 | H38: 122.87 | I38: 124.68 | J38: 127.37 | K38: 122 | L38: 117.5 | M38: 2.49834
A39: 29 | B39: ASIANPAINT | C39: 1526.45 | D39: 1514.28 | E39: 1497.77 | F39: 1469.08 | G39: 1452.57 | H39: 1542.97 | I39: 1559.48 | J39: 1588.17 | K39: 1530.8 | L39: 1485.6 | M39: 24.20636
A40: 30 | B40: ASTERDM | C40: 126.3 | D40: 125.12 | E40: 122.73 | F40: 119.17 | G40: 116.78 | H40: 128.68 | I40: 131.07 | J40: 134.63 | K40: 127.5 | L40: 121.55 | M40: 1.3854
A41: 31 | B41: ASTRAZEN | C41: 1876.65 | D41: 1878.87 | E41: 1842.73 | F41: 1808.82 | G41: 1772.68 | H41: 1912.78 | I41: 1948.92 | J41: 1982.83 | K41: 1915 | L41: 1844.95 | M41: 0.08354
A42: 32 | B42: ASTRAL | C42: 1213.5 | D42: 1205.50 | E42: 1191.00 | F42: 1168.50 | G42: 1154.00 | H42: 1228.00 | I42: 1242.50 | J42: 1265.00 | K42: 1220 | L42: 1183 | M42: 1.0464
A43: 33 | B43: ATUL | C43: 3660.65 | D43: 3653.47 | E43: 3609.23 | F43: 3557.82 | G43: 3513.58 | H43: 3704.88 | I43: 3749.12 | J43: 3800.53 | K43: 3697.7 | L43: 3602.05 | M43: 1.52049
A44: 34 | B44: AUROPHARMA | C44: 563.45 | D44: 560.83 | E44: 552.87 | F44: 542.28 | G44: 534.32 | H44: 571.42 | I44: 579.38 | J44: 589.97 | K44: 568.8 | L44: 550.25 | M44: 16.45745
A45: 35 | B45: AVANTIFEED | C45: 322.6 | D45: 322.18 | E45: 315.47 | F45: 308.33 | G45: 301.62 | H45: 329.32 | I45: 336.03 | J45: 343.17 | K45: 328.9 | L45: 315.05 | M45: 2.89136
A46: 36 | B46: DMART | C46: 1425.05 | D46: 1427.73 | E46: 1411.37 | F46: 1397.68 | G46: 1381.32 | H46: 1441.42 | I46: 1457.78 | J46: 1471.47 | K46: 1444.1 | L46: 1414.05 | M46: 3.45535
A47: 37 | B47: AXISBANK | C47: 729.85 | D47: 727.02 | E47: 722.03 | F47: 714.22 | G47: 709.23 | H47: 734.83 | I47: 739.82 | J47: 747.63 | K47: 732 | L47: 719.2 | M47: 54.5001
A48: 38 | B48: BASF | C48: 1096 | D48: 1092.00 | E48: 1084.00 | F48: 1072.00 | G48: 1064.00 | H48: 1104.00 | I48: 1112.00 | J48: 1124.00 | K48: 1100 | L48: 1080 | M48: 0.04279
A49: 39 | B49: BEML | C49: 900.65 | D49: 900.88 | E49: 892.77 | F49: 884.88 | G49: 876.77 | H49: 908.77 | I49: 916.88 | J49: 924.77 | K49: 909 | L49: 893 | M49: 6.26588
A50: 40 | B50: BSE | C50: 532.6 | D50: 536.08 | E50: 524.87 | F50: 517.13 | G50: 505.92 | H50: 543.82 | I50: 555.03 | J50: 562.77 | K50: 547.3 | L50: 528.35 | M50: 1.95119
A51: 41 | B51: BAJAJ-AUTO | C51: 2618.65 | D51: 2601.62 | E51: 2523.28 | F51: 2427.92 | G51: 2349.58 | H51: 2696.98 | I51: 2775.32 | J51: 2870.68 | K51: 2679.95 | L51: 2506.25 | M51: 21.05536
A52: 42 | B52: BAJAJCON | C52: 284.85 | D52: 286.33 | E52: 281.67 | F52: 278.48 | G52: 273.82 | H52: 289.52 | I52: 294.18 | J52: 297.37 | K52: 291 | L52: 283.15 | M52: 0.29342
A53: 43 | B53: BAJAJELEC | C53: 378.25 | D53: 387.93 | E53: 366.27 | F53: 354.28 | G53: 332.62 | H53: 399.92 | I53: 421.58 | J53: 433.57 | K53: 409.6 | L53: 375.95 | M53: 5.38514
A54: 44 | B54: BAJFINANCE | C54: 3264.6 | D54: 3178.87 | E54: 3079.73 | F54: 2894.87 | G54: 2795.73 | H54: 3363.73 | I54: 3462.87 | J54: 3647.73 | K54: 3278 | L54: 2994 | M54: 69.4508
A55: 45 | B55: BAJAJFINSV | C55: 7233 | D55: 7054.23 | E55: 6810.47 | F55: 6387.93 | G55: 6144.17 | H55: 7476.77 | I55: 7720.53 | J55: 8143.07 | K55: 7298 | L55: 6631.7 | M55: 12.82898
A56: 46 | B56: BAJAJHLDNG | C56: 3384.75 | D56: 3369.25 | E56: 3327.50 | F56: 3270.25 | G56: 3228.50 | H56: 3426.50 | I56: 3468.25 | J56: 3525.50 | K56: 3411 | L56: 3312 | M56: 0.48703
A57: 47 | B57: BALKRISIND | C57: 720.6 | D57: 723.43 | E57: 714.42 | F57: 708.23 | G57: 699.22 | H57: 729.62 | I57: 738.63 | J57: 744.82 | K57: 732.45 | L57: 717.25 | M57: 2.66652
A58: 48 | B58: BALMLAWRIE | C58: 173 | D58: 173.30 | E58: 172.35 | F58: 171.70 | G58: 170.75 | H58: 173.95 | I58: 174.90 | J58: 175.55 | K58: 174.25 | L58: 172.65 | M58: 0.35478
A59: 49 | B59: BALRAMCHIN | C59: 152.35 | D59: 152.00 | E59: 150.60 | F59: 148.85 | G59: 147.45 | H59: 153.75 | I59: 155.15 | J59: 156.90 | K59: 153.4 | L59: 150.25 | M59: 5.55689
A60: 50 | B60: BANDHANBNK | C60: 490.2 | D60: 482.73 | E60: 471.57 | F60: 452.93 | G60: 441.77 | H60: 501.37 | I60: 512.53 | J60: 531.17 | K60: 493.9 | L60: 464.1 | M60: 17.84947
A61: 51 | B61: BANKBARODA | C61: 112.55 | D61: 112.25 | E61: 110.30 | F61: 108.05 | G61: 106.10 | H61: 114.50 | I61: 116.45 | J61: 118.70 | K61: 114.2 | L61: 110 | M61: 328.7884
A62: 52 | B62: BANKINDIA | C62: 76.05 | D62: 76.40 | E62: 74.50 | F62: 72.95 | G62: 71.05 | H62: 77.95 | I62: 79.85 | J62: 81.40 | K62: 78.3 | L62: 74.85 | M62: 100.20072
A63: 53 | B63: MAHABANK | C63: 14.5 | D63: 14.40 | E63: 14.15 | F63: 13.80 | G63: 13.55 | H63: 14.75 | I63: 15.00 | J63: 15.35 | K63: 14.65 | L63: 14.05 | M63: 4.12131
A64: 54 | B64: BATAINDIA | C64: 1316.55 | D64: 1312.63 | E64: 1296.67 | F64: 1276.78 | G64: 1260.82 | H64: 1332.52 | I64: 1348.48 | J64: 1368.37 | K64: 1328.6 | L64: 1292.75 | M64: 4.84288
A65: 55 | B65: BERGEPAINT | C65: 327.9 | D65: 328.00 | E65: 324.50 | F65: 321.10 | G65: 317.60 | H65: 331.40 | I65: 334.90 | J65: 338.30 | K65: 331.5 | L65: 324.6 | M65: 10.329
A66: 56 | B66: BDL | C66: 300.55 | D66: 300.22 | E66: 295.43 | F66: 290.32 | G66: 285.53 | H66: 305.33 | I66: 310.12 | J66: 315.23 | K66: 305 | L66: 295.1 | M66: 0.67581
A67: 57 | B67: BEL | C67: 98.65 | D67: 98.80 | E67: 97.70 | F67: 96.75 | G67: 95.65 | H67: 99.75 | I67: 100.85 | J67: 101.80 | K67: 99.9 | L67: 97.85 | M67: 70.19827
A68: 58 | B68: BHARATFORG | C68: 434.15 | D68: 432.23 | E68: 425.52 | F68: 416.88 | G68: 410.17 | H68: 440.87 | I68: 447.58 | J68: 456.22 | K68: 438.95 | L68: 423.6 | M68: 7.7651
A69: 59 | B69: BHEL | C69: 60.65 | D69: 61.17 | E69: 59.78 | F69: 58.92 | G69: 57.53 | H69: 62.03 | I69: 63.42 | J69: 64.28 | K69: 62.55 | L69: 60.3 | M69: 102.47067
A70: 60 | B70: BPCL | C70: 343.8 | D70: 341.43 | E70: 337.37 | F70: 330.93 | G70: 326.87 | H70: 347.87 | I70: 351.93 | J70: 358.37 | K70: 345.5 | L70: 335 | M70: 46.59856
A71: 61 | B71: BHARTIARTL | C71: 334.9 | D71: 334.00 | E71: 329.10 | F71: 323.30 | G71: 318.40 | H71: 339.80 | I71: 344.70 | J71: 350.50 | K71: 338.9 | L71: 328.2 | M71: 49.95313
A72: 62 | B72: INFRATEL | C72: 270.2 | D72: 268.37 | E72: 264.93 | F72: 259.67 | G72: 256.23 | H72: 273.63 | I72: 277.07 | J72: 282.33 | K72: 271.8 | L72: 263.1 | M72: 19.60464
A73: 63 | B73: BIOCON | C73: 241.85 | D73: 244.55 | E73: 237.50 | F73: 233.15 | G73: 226.10 | H73: 248.90 | I73: 255.95 | J73: 260.30 | K73: 251.6 | L73: 240.2 | M73: 102.021
A74: 64 | B74: BIRLACORPN | C74: 590.7 | D74: 585.87 | E74: 578.58 | F74: 566.47 | G74: 559.18 | H74: 597.98 | I74: 605.27 | J74: 617.38 | K74: 593.15 | L74: 573.75 | M74: 1.40184
A75: 65 | B75: BLISSGVS | C75: 155 | D75: 155.50 | E75: 153.95 | F75: 152.90 | G75: 151.35 | H75: 156.55 | I75: 158.10 | J75: 159.15 | K75: 157.05 | L75: 154.45 | M75: 9.47546
A76: 66 | B76: BLUEDART | C76: 2405.2 | D76: 2409.58 | E76: 2394.17 | F76: 2383.13 | G76: 2367.72 | H76: 2420.62 | I76: 2436.03 | J76: 2447.07 | K76: 2425 | L76: 2398.55 | M76: 0.01785
A77: 67 | B77: BLUESTARCO | C77: 748.9 | D77: 747.12 | E77: 741.73 | F77: 734.57 | G77: 729.18 | H77: 754.28 | I77: 759.67 | J77: 766.83 | K77: 752.5 | L77: 739.95 | M77: 0.18008
A78: 68 | B78: BBTC | C78: 867.45 | D78: 871.72 | E78: 855.53 | F78: 843.62 | G78: 827.43 | H78: 883.63 | I78: 899.82 | J78: 911.73 | K78: 887.9 | L78: 859.8 | M78: 0.36665
A79: 69 | B79: BOMDYEING | C79: 85.35 | D79: 85.13 | E79: 83.72 | F79: 82.08 | G79: 80.67 | H79: 86.77 | I79: 88.18 | J79: 89.82 | K79: 86.55 | L79: 83.5 | M79: 7.71089
A80: 70 | B80: BOSCHLTD | C80: 15028.4 | D80: 14993.00 | E80: 14842.00 | F80: 14655.60 | G80: 14504.60 | H80: 15179.40 | I80: 15330.40 | J80: 15516.80 | K80: 15144 | L80: 14806.6 | M80: 0.09761
A81: 71 | B81: BRIGADE | C81: 271.85 | D81: 273.58 | E81: 268.97 | F81: 266.08 | G81: 261.47 | H81: 276.47 | I81: 281.08 | J81: 283.97 | K81: 278.2 | L81: 270.7 | M81: 0.34423
A82: 72 | B82: BRITANNIA | C82: 2668.45 | D82: 2656.62 | E82: 2628.38 | F82: 2588.32 | G82: 2560.08 | H82: 2696.68 | I82: 2724.92 | J82: 2764.98 | K82: 2684.85 | L82: 2616.55 | M82: 3.93941
A83: 73 | B83: CARERATING | C83: 739.1 | D83: 744.02 | E83: 730.08 | F83: 721.07 | G83: 707.13 | H83: 753.03 | I83: 766.97 | J83: 775.98 | K83: 757.95 | L83: 735 | M83: 0.47654
A84: 74 | B84: CCL | C84: 245.35 | D84: 247.38 | E84: 240.02 | F84: 234.68 | G84: 227.32 | H84: 252.72 | I84: 260.08 | J84: 265.42 | K84: 254.75 | L84: 242.05 | M84: 0.29342
A85: 75 | B85: CESC | C85: 752.7 | D85: 755.32 | E85: 743.58 | F85: 734.47 | G85: 722.73 | H85: 764.43 | I85: 776.17 | J85: 785.28 | K85: 767.05 | L85: 746.2 | M85: 1.98039
A86: 76 | B86: CGPOWER | C86: 20.1 | D86: 20.15 | E86: 19.55 | F86: 19.00 | G86: 18.40 | H86: 20.70 | I86: 21.30 | J86: 21.85 | K86: 20.75 | L86: 19.6 | M86: 13.9965
A87: 77 | B87: CRISIL | C87: 1357.6 | D87: 1360.07 | E87: 1347.58 | F87: 1337.57 | G87: 1325.08 | H87: 1370.08 | I87: 1382.57 | J87: 1392.58 | K87: 1372.55 | L87: 1350.05 | M87: 0.03204
A88: 78 | B88: CADILAHC | C88: 234.15 | D88: 232.40 | E88: 229.90 | F88: 225.65 | G88: 223.15 | H88: 236.65 | I88: 239.15 | J88: 243.40 | K88: 234.9 | L88: 228.15 | M88: 6.0819
A89: 79 | B89: CANFINHOME | C89: 386.7 | D89: 388.75 | E89: 382.50 | F89: 378.30 | G89: 372.05 | H89: 392.95 | I89: 399.20 | J89: 403.40 | K89: 395 | L89: 384.55 | M89: 3.02893
A90: 80 | B90: CANBK | C90: 240.35 | D90: 241.98 | E90: 237.57 | F90: 234.78 | G90: 230.37 | H90: 244.77 | I90: 249.18 | J90: 251.97 | K90: 246.4 | L90: 239.2 | M90: 69.65463
A91: 81 | B91: CAPLIPOINT | C91: 415.65 | D91: 415.60 | E91: 405.10 | F91: 394.55 | G91: 384.05 | H91: 426.15 | I91: 436.65 | J91: 447.20 | K91: 426.1 | L91: 405.05 | M91: 0.39986
A92: 82 | B92: CARBORUNIV | C92: 333.5 | D92: 332.78 | E92: 330.77 | F92: 328.03 | G92: 326.02 | H92: 335.52 | I92: 337.53 | J92: 340.27 | K92: 334.8 | L92: 330.05 | M92: 0.08562
A93: 83 | B93: CASTROLIND | C93: 126.1 | D93: 125.78 | E93: 124.32 | F93: 122.53 | G93: 121.07 | H93: 127.57 | I93: 129.03 | J93: 130.82 | K93: 127.25 | L93: 124 | M93: 9.38375
A94: 84 | B94: CEATLTD | C94: 850.35 | D94: 852.52 | E94: 839.83 | F94: 829.32 | G94: 816.63 | H94: 863.03 | I94: 875.72 | J94: 886.23 | K94: 865.2 | L94: 842 | M94: 1.20686
A95: 85 | B95: CENTRALBK | C95: 18.2 | D95: 18.12 | E95: 17.83 | F95: 17.47 | G95: 17.18 | H95: 18.48 | I95: 18.77 | J95: 19.13 | K95: 18.4 | L95: 17.75 | M95: 3.32455
A96: 86 | B96: CDSL | C96: 194.45 | D96: 194.72 | E96: 192.38 | F96: 190.32 | G96: 187.98 | H96: 196.78 | I96: 199.12 | J96: 201.18 | K96: 197.05 | L96: 192.65 | M96: 2.20724
A97: 87 | B97: CENTURYPLY | C97: 128.1 | D97: 127.58 | E97: 125.52 | F97: 122.93 | G97: 120.87 | H97: 130.17 | I97: 132.23 | J97: 134.82 | K97: 129.65 | L97: 125 | M97: 0.76335
A98: 88 | B98: CERA | C98: 2574.8 | D98: 2573.55 | E98: 2527.30 | F98: 2479.80 | G98: 2433.55 | H98: 2621.05 | I98: 2667.30 | J98: 2714.80 | K98: 2619.8 | L98: 2526.05 | M98: 0.01376
A99: 89 | B99: CHAMBLFERT | C99: 154.9 | D99: 154.40 | E99: 152.60 | F99: 150.30 | G99: 148.50 | H99: 156.70 | I99: 158.50 | J99: 160.80 | K99: 156.2 | L99: 152.1 | M99: 0.86135
A100: 90 | B100: CHENNPETRO | C100: 194.05 | D100: 193.43 | E100: 190.57 | F100: 187.08 | G100: 184.22 | H100: 196.92 | I100: 199.78 | J100: 203.27 | K100: 196.3 | L100: 189.95 | M100: 1.02546
A101: 91 | B101: CHOLAHLDNG | C101: 465.1 | D101: 470.15 | E101: 457.30 | F101: 449.50 | G101: 436.65 | H101: 477.95 | I101: 490.80 | J101: 498.60 | K101: 483 | L101: 462.35 | M101: 1.28917
A102: 92 | B102: CHOLAFIN | C102: 245.45 | D102: 245.98 | E102: 241.52 | F102: 237.58 | G102: 233.12 | H102: 249.92 | I102: 254.38 | J102: 258.32 | K102: 250.45 | L102: 242.05 | M102: 12.56711
A103: 93 | B103: CIPLA | C103: 532.1 | D103: 533.42 | E103: 526.93 | F103: 521.77 | G103: 515.28 | H103: 538.58 | I103: 545.07 | J103: 550.23 | K103: 539.9 | L103: 528.25 | M103: 13.71242
A104: 94 | B104: CUB | C104: 195.05 | D104: 195.53 | E104: 193.72 | F104: 192.38 | G104: 190.57 | H104: 196.87 | I104: 198.68 | J104: 200.02 | K104: 197.35 | L104: 194.2 | M104: 6.14347
A105: 95 | B105: COALINDIA | C105: 210.65 | D105: 209.70 | E105: 206.45 | F105: 202.25 | G105: 199.00 | H105: 213.90 | I105: 217.15 | J105: 221.35 | K105: 212.95 | L105: 205.5 | M105: 104.90177
A106: 96 | B106: COCHINSHIP | C106: 359.3 | D106: 358.98 | E106: 356.07 | F106: 352.83 | G106: 349.92 | H106: 362.22 | I106: 365.13 | J106: 368.37 | K106: 361.9 | L106: 355.75 | M106: 0.16762
A107: 97 | B107: COFFEEDAY | C107: 194.8 | D107: 194.88 | E107: 193.77 | F107: 192.73 | G107: 191.62 | H107: 195.92 | I107: 197.03 | J107: 198.07 | K107: 196 | L107: 193.85 | M107: 0.42097
A108: 98 | B108: COLPAL | C108: 1160.8 | D108: 1155.25 | E108: 1145.75 | F108: 1130.70 | G108: 1121.20 | H108: 1170.30 | I108: 1179.80 | J108: 1194.85 | K108: 1164.75 | L108: 1140.2 | M108: 2.66736
A109: 99 | B109: CONCOR | C109: 519.15 | D109: 519.10 | E109: 512.30 | F109: 505.45 | G109: 498.65 | H109: 525.95 | I109: 532.75 | J109: 539.60 | K109: 525.9 | L109: 512.25 | M109: 13.56495
A110: 100 | B110: COROMANDEL | C110: 381.8 | D110: 381.77 | E110: 377.03 | F110: 372.27 | G110: 367.53 | H110: 386.53 | I110: 391.27 | J110: 396.03 | K110: 386.5 | L110: 377 | M110: 0.18826
A111: 101 | B111: CORPBANK | C111: 24.15 | D111: 24.08 | E111: 23.87 | F111: 23.58 | G111: 23.37 | H111: 24.37 | I111: 24.58 | J111: 24.87 | K111: 24.3 | L111: 23.8 | M111: 1.2086
A112: 102 | B112: COX&KINGS | C112: 13.4 | D112: 13.40 | E112: 13.40 | F112: 13.40 | G112: 13.40 | H112: 13.40 | I112: 13.40 | J112: 13.40 | K112: 13.4 | L112: 13.4 | M112: 0.82927
A113: 103 | B113: CREDITACC | C113: 535.2 | D113: 534.33 | E113: 529.67 | F113: 524.13 | G113: 519.47 | H113: 539.87 | I113: 544.53 | J113: 550.07 | K113: 539 | L113: 528.8 | M113: 0.50263
A114: 104 | B114: CROMPTON | C114: 225.3 | D114: 226.58 | E114: 222.72 | F114: 220.13 | G114: 216.27 | H114: 229.17 | I114: 233.03 | J114: 235.62 | K114: 230.45 | L114: 224 | M114: 17.74639
A115: 105 | B115: CUMMINSIND | C115: 739.15 | D115: 740.13 | E115: 731.42 | F115: 723.68 | G115: 714.97 | H115: 747.87 | I115: 756.58 | J115: 764.32 | K115: 748.85 | L115: 732.4 | M115: 2.80334
A116: 106 | B116: CYIENT | C116: 471.4 | D116: 475.85 | E116: 463.65 | F116: 455.90 | G116: 443.70 | H116: 483.60 | I116: 495.80 | J116: 503.55 | K116: 488.05 | L116: 468.1 | M116: 5.17674
A117: 107 | B117: DBCORP | C117: 164.7 | D117: 165.18 | E117: 163.07 | F117: 161.43 | G117: 159.32 | H117: 166.82 | I117: 168.93 | J117: 170.57 | K117: 167.3 | L117: 163.55 | M117: 3.20243
A118: 108 | B118: DCBBANK | C118: 194.5 | D118: 194.12 | E118: 191.48 | F118: 188.47 | G118: 185.83 | H118: 197.13 | I118: 199.77 | J118: 202.78 | K118: 196.75 | L118: 191.1 | M118: 8.16531
A119: 109 | B119: DCMSHRIRAM | C119: 457.2 | D119: 452.42 | E119: 441.83 | F119: 426.47 | G119: 415.88 | H119: 467.78 | I119: 478.37 | J119: 493.73 | K119: 463 | L119: 437.05 | M119: 1.96912
A120: 110 | B120: DLF | C120: 180.5 | D120: 179.23 | E120: 177.22 | F120: 173.93 | G120: 171.92 | H120: 182.52 | I120: 184.53 | J120: 187.82 | K120: 181.25 | L120: 175.95 | M120: 45.83743
A121: 111 | B121: DABUR | C121: 428.15 | D121: 426.40 | E121: 423.30 | F121: 418.45 | G121: 415.35 | H121: 431.25 | I121: 434.35 | J121: 439.20 | K121: 429.5 | L121: 421.55 | M121: 15.17097
A122: 112 | B122: DEEPAKFERT | C122: 88.45 | D122: 88.25 | E122: 86.50 | F122: 84.55 | G122: 82.80 | H122: 90.20 | I122: 91.95 | J122: 93.90 | K122: 90 | L122: 86.3 | M122: 1.73506
A123: 113 | B123: DEEPAKNTR | C123: 283.6 | D123: 281.78 | E123: 277.62 | F123: 271.63 | G123: 267.47 | H123: 287.77 | I123: 291.93 | J123: 297.92 | K123: 285.95 | L123: 275.8 | M123: 1.67805
A124: 114 | B124: DELTACORP | C124: 146.95 | D124: 147.43 | E124: 143.52 | F124: 140.08 | G124: 136.17 | H124: 150.87 | I124: 154.78 | J124: 158.22 | K124: 151.35 | L124: 144 | M124: 6.70428
A125: 115 | B125: DHFL | C125: 55 | D125: 55.03 | E125: 53.42 | F125: 51.83 | G125: 50.22 | H125: 56.62 | I125: 58.23 | J125: 59.82 | K125: 56.65 | L125: 53.45 | M125: 260.21137
A126: 116 | B126: DBL | C126: 423.3 | D126: 422.10 | E126: 412.20 | F126: 401.10 | G126: 391.20 | H126: 433.20 | I126: 443.10 | J126: 454.20 | K126: 432 | L126: 411 | M126: 1.96972
A127: 117 | B127: DISHTV | C127: 31.4 | D127: 31.40 | E127: 30.30 | F127: 29.20 | G127: 28.10 | H127: 32.50 | I127: 33.60 | J127: 34.70 | K127: 32.5 | L127: 30.3 | M127: 205.1379
A128: 118 | B128: DCAL | C128: 210.15 | D128: 210.38 | E128: 206.57 | F128: 202.98 | G128: 199.17 | H128: 213.97 | I128: 217.78 | J128: 221.37 | K128: 214.2 | L128: 206.8 | M128: 0.42877
A129: 119 | B129: DIVISLAB | C129: 1666.7 | D129: 1655.50 | E129: 1636.10 | F129: 1605.50 | G129: 1586.10 | H129: 1686.10 | I129: 1705.50 | J129: 1736.10 | K129: 1674.9 | L129: 1624.9 | M129: 5.86809
A130: 120 | B130: DIXON | C130: 2197.8 | D130: 2186.58 | E130: 2168.22 | F130: 2138.63 | G130: 2120.27 | H130: 2216.17 | I130: 2234.53 | J130: 2264.12 | K130: 2204.95 | L130: 2157 | M130: 0.12262
A131: 121 | B131: LALPATHLAB | C131: 1122.1 | D131: 1136.48 | E131: 1098.57 | F131: 1075.03 | G131: 1037.12 | H131: 1160.02 | I131: 1197.93 | J131: 1221.47 | K131: 1174.4 | L131: 1112.95 | M131: 0.40166
A132: 122 | B132: DRREDDY | C132: 2704.95 | D132: 2680.22 | E132: 2646.43 | F132: 2587.92 | G132: 2554.13 | H132: 2738.73 | I132: 2772.52 | J132: 2831.03 | K132: 2714 | L132: 2621.7 | M132: 5.37619
A133: 123 | B133: EIDPARRY | C133: 159.45 | D133: 160.45 | E133: 157.85 | F133: 156.25 | G133: 153.65 | H133: 162.05 | I133: 164.65 | J133: 166.25 | K133: 163.05 | L133: 158.85 | M133: 0.54116
A134: 124 | B134: EIHOTEL | C134: 164.75 | D134: 164.18 | E134: 162.87 | F134: 160.98 | G134: 159.67 | H134: 166.07 | I134: 167.38 | J134: 169.27 | K134: 165.5 | L134: 162.3 | M134: 0.34153
A135: 125 | B135: EDELWEISS | C135: 147.1 | D135: 146.53 | E135: 144.07 | F135: 141.03 | G135: 138.57 | H135: 149.57 | I135: 152.03 | J135: 155.07 | K135: 149 | L135: 143.5 | M135: 12.44137
A136: 126 | B136: EICHERMOT | C136: 17186.55 | D136: 16996.88 | E136: 16516.87 | F136: 15847.18 | G136: 15367.17 | H136: 17666.57 | I136: 18146.58 | J136: 18816.27 | K136: 17476.9 | L136: 16327.2 | M136: 2.30056
A137: 127 | B137: ELGIEQUIP | C137: 257.95 | D137: 257.15 | E137: 254.85 | F137: 251.75 | G137: 249.45 | H137: 260.25 | I137: 262.55 | J137: 265.65 | K137: 259.45 | L137: 254.05 | M137: 0.05942
A138: 128 | B138: EMAMILTD | C138: 321.55 | D138: 321.80 | E138: 317.75 | F138: 313.95 | G138: 309.90 | H138: 325.60 | I138: 329.65 | J138: 333.45 | K138: 325.85 | L138: 318 | M138: 5.37817
A139: 129 | B139: ENDURANCE | C139: 924 | D139: 929.98 | E139: 910.97 | F139: 897.93 | G139: 878.92 | H139: 943.02 | I139: 962.03 | J139: 975.07 | K139: 949 | L139: 916.95 | M139: 0.31657
A140: 130 | B140: ENGINERSIN | C140: 106.65 | D140: 105.52 | E140: 104.08 | F140: 101.52 | G140: 100.08 | H140: 108.08 | I140: 109.52 | J140: 112.08 | K140: 106.95 | L140: 102.95 | M140: 12.70803
A141: 131 | B141: EQUITAS | C141: 114.15 | D141: 113.63 | E141: 111.62 | F141: 109.08 | G141: 107.07 | H141: 116.17 | I141: 118.18 | J141: 120.72 | K141: 115.65 | L141: 111.1 | M141: 15.41069
A142: 132 | B142: ERIS | C142: 401.3 | D142: 401.10 | E142: 395.20 | F142: 389.10 | G142: 383.20 | H142: 407.20 | I142: 413.10 | J142: 419.20 | K142: 407 | L142: 395 | M142: 0.34128
A143: 133 | B143: ESCORTS | C143: 473.45 | D143: 475.72 | E143: 463.63 | F143: 453.82 | G143: 441.73 | H143: 485.53 | I143: 497.62 | J143: 507.43 | K143: 487.8 | L143: 465.9 | M143: 25.78951
A144: 134 | B144: ESSELPACK | C144: 132.95 | D144: 132.73 | E144: 132.47 | F144: 131.98 | G144: 131.72 | H144: 133.22 | I144: 133.48 | J144: 133.97 | K144: 133 | L144: 132.25 | M144: 3.88241
A145: 135 | B145: EXIDEIND | C145: 184.6 | D145: 184.07 | E145: 181.53 | F145: 178.47 | G145: 175.93 | H145: 187.13 | I145: 189.67 | J145: 192.73 | K145: 186.6 | L145: 181 | M145: 17.76308
A146: 136 | B146: FDC | C146: 159.2 | D146: 160.22 | E146: 156.43 | F146: 153.67 | G146: 149.88 | H146: 162.98 | I146: 166.77 | J146: 169.53 | K146: 164 | L146: 157.45 | M146: 0.22826
A147: 137 | B147: FEDERALBNK | C147: 95.3 | D147: 94.45 | E147: 93.10 | F147: 90.90 | G147: 89.55 | H147: 96.65 | I147: 98.00 | J147: 100.20 | K147: 95.8 | L147: 92.25 | M147: 111.15786
A148: 138 | B148: FINEORG | C148: 1420.45 | D148: 1418.50 | E148: 1406.95 | F148: 1393.45 | G148: 1381.90 | H148: 1432.00 | I148: 1443.55 | J148: 1457.05 | K148: 1430.05 | L148: 1405 | M148: 0.00907
A149: 139 | B149: FINCABLES | C149: 378.75 | D149: 378.72 | E149: 374.53 | F149: 370.32 | G149: 366.13 | H149: 382.93 | I149: 387.12 | J149: 391.33 | K149: 382.9 | L149: 374.5 | M149: 0.43975
A150: 140 | B150: FINPIPE | C150: 514.7 | D150: 511.43 | E150: 503.87 | F150: 493.03 | G150: 485.47 | H150: 522.27 | I150: 529.83 | J150: 540.67 | K150: 519 | L150: 500.6 | M150: 0.25896
A151: 141 | B151: FSL | C151: 50.75 | D151: 50.18 | E151: 49.37 | F151: 47.98 | G151: 47.17 | H151: 51.57 | I151: 52.38 | J151: 53.77 | K151: 51 | L151: 48.8 | M151: 16.32091
A152: 142 | B152: FORTIS | C152: 124.95 | D152: 125.33 | E152: 123.67 | F152: 122.38 | G152: 120.72 | H152: 126.62 | I152: 128.28 | J152: 129.57 | K152: 127 | L152: 124.05 | M152: 8.43695
A153: 143 | B153: FCONSUMER | C153: 30.15 | D153: 29.80 | E153: 28.65 | F153: 27.15 | G153: 26.00 | H153: 31.30 | I153: 32.45 | J153: 33.95 | K153: 30.95 | L153: 28.3 | M153: 31.30745
A154: 144 | B154: FLFL | C154: 466.9 | D154: 467.63 | E154: 460.27 | F154: 453.63 | G154: 446.27 | H154: 474.27 | I154: 481.63 | J154: 488.27 | K154: 475 | L154: 461 | M154: 0.46397
A155: 145 | B155: FRETAIL | C155: 425.8 | D155: 422.95 | E155: 418.00 | F155: 410.20 | G155: 405.25 | H155: 430.75 | I155: 435.70 | J155: 443.50 | K155: 427.9 | L155: 415.15 | M155: 1.24803
A156: 146 | B156: GAIL | C156: 132.95 | D156: 133.68 | E156: 131.67 | F156: 130.38 | G156: 128.37 | H156: 134.97 | I156: 136.98 | J156: 138.27 | K156: 135.7 | L156: 132.4 | M156: 58.83152
A157: 147 | B157: GEPIL | C157: 801.55 | D157: 798.82 | E157: 777.73 | F157: 753.92 | G157: 732.83 | H157: 822.63 | I157: 843.72 | J157: 867.53 | K157: 819.9 | L157: 775 | M157: 0.09404
A158: 148 | B158: GET&D | C158: 183.85 | D158: 188.08 | E158: 178.87 | F158: 173.88 | G158: 164.67 | H158: 193.07 | I158: 202.28 | J158: 207.27 | K158: 197.3 | L158: 183.1 | M158: 0.80182
A159: 149 | B159: GHCL | C159: 217.95 | D159: 214.85 | E159: 209.70 | F159: 201.45 | G159: 196.30 | H159: 223.10 | I159: 228.25 | J159: 236.50 | K159: 220 | L159: 206.6 | M159: 1.712
A160: 150 | B160: GMRINFRA | C160: 14.65 | D160: 14.63 | E160: 14.52 | F160: 14.38 | G160: 14.27 | H160: 14.77 | I160: 14.88 | J160: 15.02 | K160: 14.75 | L160: 14.5 | M160: 83.79443
A161: 151 | B161: GALAXYSURF | C161: 1227.05 | D161: 1222.67 | E161: 1213.33 | F161: 1199.62 | G161: 1190.28 | H161: 1236.38 | I161: 1245.72 | J161: 1259.43 | K161: 1232 | L161: 1208.95 | M161: 0.09092
A162: 152 | B162: GDL | C162: 114.3 | D162: 115.40 | E162: 112.80 | F162: 111.30 | G162: 108.70 | H162: 116.90 | I162: 119.50 | J162: 121.00 | K162: 118 | L162: 113.9 | M162: 0.32012
A163: 153 | B163: GAYAPROJ | C163: 144.55 | D163: 143.62 | E163: 141.23 | F163: 137.92 | G163: 135.53 | H163: 146.93 | I163: 149.32 | J163: 152.63 | K163: 146 | L163: 140.3 | M163: 0.21433
A164: 154 | B164: GICRE | C164: 209.4 | D164: 210.90 | E164: 206.80 | F164: 204.20 | G164: 200.10 | H164: 213.50 | I164: 217.60 | J164: 220.20 | K164: 215 | L164: 208.3 | M164: 0.64572
A165: 155 | B165: GILLETTE | C165: 7084.1 | D165: 7085.60 | E165: 7026.20 | F165: 6968.30 | G165: 6908.90 | H165: 7143.50 | I165: 7202.90 | J165: 7260.80 | K165: 7145 | L165: 7027.7 | M165: 0.02271
A166: 156 | B166: GSKCONS | C166: 7369.15 | D166: 7400.23 | E166: 7318.62 | F166: 7268.08 | G166: 7186.47 | H166: 7450.77 | I166: 7532.38 | J166: 7582.92 | K166: 7481.85 | L166: 7349.7 | M166: 0.17449
A167: 157 | B167: GLAXO | C167: 1201.4 | D167: 1200.80 | E167: 1190.60 | F167: 1179.80 | G167: 1169.60 | H167: 1211.60 | I167: 1221.80 | J167: 1232.60 | K167: 1211 | L167: 1190 | M167: 0.16382
A168: 158 | B168: GLENMARK | C168: 426.15 | D168: 428.30 | E168: 422.60 | F168: 419.05 | G168: 413.35 | H168: 431.85 | I168: 437.55 | J168: 441.10 | K168: 434 | L168: 424.75 | M168: 6.29174
A169: 159 | B169: GODFRYPHLP | C169: 709.55 | D169: 712.18 | E169: 702.37 | F169: 695.18 | G169: 685.37 | H169: 719.37 | I169: 729.18 | J169: 736.37 | K169: 722 | L169: 705 | M169: 0.22323
A170: 160 | B170: GODREJAGRO | C170: 455.7 | D170: 456.05 | E170: 448.65 | F170: 441.60 | G170: 434.20 | H170: 463.10 | I170: 470.50 | J170: 477.55 | K170: 463.45 | L170: 449 | M170: 1.13658
A171: 161 | B171: GODREJCP | C171: 619.4 | D171: 617.67 | E171: 613.93 | F171: 608.47 | G171: 604.73 | H171: 623.13 | I171: 626.87 | J171: 632.33 | K171: 621.4 | L171: 612.2 | M171: 2.21434
A172: 162 | B172: GODREJIND | C172: 452.85 | D172: 456.45 | E172: 447.90 | F172: 442.95 | G172: 434.40 | H172: 461.40 | I172: 469.95 | J172: 474.90 | K172: 465 | L172: 451.5 | M172: 0.84004
A173: 163 | B173: GODREJPROP | C173: 949.3 | D173: 945.58 | E173: 937.27 | F173: 925.23 | G173: 916.92 | H173: 957.62 | I173: 965.93 | J173: 977.97 | K173: 953.9 | L173: 933.55 | M173: 1.38038
A174: 164 | B174: GRANULES | C174: 85.75 | D174: 85.38 | E174: 84.37 | F174: 82.98 | G174: 81.97 | H174: 86.77 | I174: 87.78 | J174: 89.17 | K174: 86.4 | L174: 84 | M174: 3.13196
A175: 165 | B175: GRAPHITE | C175: 319.95 | D175: 312.02 | E175: 301.53 | F175: 283.12 | G175: 272.63 | H175: 330.43 | I175: 340.92 | J175: 359.33 | K175: 322.5 | L175: 293.6 | M175: 39.61909
A176: 166 | B176: GRASIM | C176: 874.95 | D176: 873.97 | E176: 868.03 | F176: 861.12 | G176: 855.18 | H176: 880.88 | I176: 886.82 | J176: 893.73 | K176: 879.9 | L176: 867.05 | M176: 7.07596
A177: 167 | B177: GESHIP | C177: 242.1 | D177: 240.87 | E177: 239.23 | F177: 236.37 | G177: 234.73 | H177: 243.73 | I177: 245.37 | J177: 248.23 | K177: 242.5 | L177: 238 | M177: 0.1868
A178: 168 | B178: GREAVESCOT | C178: 142.25 | D178: 141.70 | E178: 139.55 | F178: 136.85 | G178: 134.70 | H178: 144.40 | I178: 146.55 | J178: 149.25 | K178: 143.85 | L178: 139 | M178: 1.28591
A179: 169 | B179: GRINDWELL | C179: 544.5 | D179: 542.88 | E179: 528.77 | F179: 513.03 | G179: 498.92 | H179: 558.62 | I179: 572.73 | J179: 588.47 | K179: 557 | L179: 527.15 | M179: 0.06915
A180: 170 | B180: GRUH | C180: 255.9 | D180: 255.00 | E180: 248.95 | F180: 242.00 | G180: 235.95 | H180: 261.95 | I180: 268.00 | J180: 274.95 | K180: 261.05 | L180: 248.05 | M180: 9.38115
A181: 171 | B181: GUJALKALI | C181: 432.25 | D181: 433.23 | E181: 427.02 | F181: 421.78 | G181: 415.57 | H181: 438.47 | I181: 444.68 | J181: 449.92 | K181: 439.45 | L181: 428 | M181: 0.34234
A182: 172 | B182: GUJFLUORO
A183: 173 | B183: GUJGASLTD | C183: 158.95 | D183: 159.78 | E183: 156.62 | F183: 154.28 | G183: 151.12 | H183: 162.12 | I183: 165.28 | J183: 167.62 | K183: 162.95 | L183: 157.45 | M183: 0.93779
A184: 174 | B184: GMDCLTD | C184: 70.4 | D184: 70.72 | E184: 69.93 | F184: 69.47 | G184: 68.68 | H184: 71.18 | I184: 71.97 | J184: 72.43 | K184: 71.5 | L184: 70.25 | M184: 0.69665
A185: 175 | B185: GNFC | C185: 212.6 | D185: 212.65 | E185: 210.50 | F185: 208.40 | G185: 206.25 | H185: 214.75 | I185: 216.90 | J185: 219.00 | K185: 214.8 | L185: 210.55 | M185: 1.32119
A186: 176 | B186: GPPL | C186: 79.45 | D186: 79.90 | E186: 78.30 | F186: 77.15 | G186: 75.55 | H186: 81.05 | I186: 82.65 | J186: 83.80 | K186: 81.5 | L186: 78.75 | M186: 3.19953
A187: 177 | B187: GSFC | C187: 83.85 | D187: 83.98 | E187: 83.17 | F187: 82.48 | G187: 81.67 | H187: 84.67 | I187: 85.48 | J187: 86.17 | K187: 84.8 | L187: 83.3 | M187: 2.51916
A188: 178 | B188: GSPL | C188: 209.35 | D188: 208.32 | E188: 206.13 | F188: 202.92 | G188: 200.73 | H188: 211.53 | I188: 213.72 | J188: 216.93 | K188: 210.5 | L188: 205.1 | M188: 9.59917
A189: 179 | B189: GULFOILLUB | C189: 746.7 | D189: 752.48 | E189: 734.07 | F189: 721.43 | G189: 703.02 | H189: 765.12 | I189: 783.53 | J189: 796.17 | K189: 770.9 | L189: 739.85 | M189: 0.06861
A190: 180 | B190: HEG | C190: 1038.4 | D190: 1016.37 | E190: 984.03 | F190: 929.67 | G190: 897.33 | H190: 1070.73 | I190: 1103.07 | J190: 1157.43 | K190: 1048.7 | L190: 962 | M190: 13.33811
A191: 181 | B191: HCLTECH | C191: 1001.45 | D191: 1003.65 | E191: 995.20 | F191: 988.95 | G191: 980.50 | H191: 1009.90 | I191: 1018.35 | J191: 1024.60 | K191: 1012.1 | L191: 997.4 | M191: 11.66192
A192: 182 | B192: HDFCAMC | C192: 2195.35 | D192: 2164.17 | E192: 2120.33 | F192: 2045.32 | G192: 2001.48 | H192: 2239.18 | I192: 2283.02 | J192: 2358.03 | K192: 2208 | L192: 2089.15 | M192: 5.17878
A193: 183 | B193: HDFCBANK | C193: 2277.3 | D193: 2281.27 | E193: 2268.88 | F193: 2260.47 | G193: 2248.08 | H193: 2289.68 | I193: 2302.07 | J193: 2310.48 | K193: 2293.65 | L193: 2272.85 | M193: 32.07457
A194: 184 | B194: HDFCLIFE | C194: 499.1 | D194: 500.73 | E194: 493.47 | F194: 487.83 | G194: 480.57 | H194: 506.37 | I194: 513.63 | J194: 519.27 | K194: 508 | L194: 495.1 | M194: 17.06982
A195: 185 | B195: HATHWAY | C195: 20.95 | D195: 21.53 | E195: 20.02 | F195: 19.08 | G195: 17.57 | H195: 22.47 | I195: 23.98 | J195: 24.92 | K195: 23.05 | L195: 20.6 | M195: 1.27205
A196: 186 | B196: HATSUN | C196: 690.2 | D196: 693.15 | E196: 687.05 | F196: 683.90 | G196: 677.80 | H196: 696.30 | I196: 702.40 | J196: 705.55 | K196: 699.25 | L196: 690 | M196: 0.01705
A197: 187 | B197: HAVELLS | C197: 698.25 | D197: 693.58 | E197: 683.17 | F197: 668.08 | G197: 657.67 | H197: 708.67 | I197: 719.08 | J197: 734.17 | K197: 704 | L197: 678.5 | M197: 17.31276
A198: 188 | B198: HEIDELBERG | C198: 206.15 | D198: 203.37 | E198: 198.28 | F198: 190.42 | G198: 185.33 | H198: 211.23 | I198: 216.32 | J198: 224.18 | K198: 208.45 | L198: 195.5 | M198: 2.52154
A199: 189 | B199: HERITGFOOD | C199: 366.7 | D199: 365.93 | E199: 351.77 | F199: 336.83 | G199: 322.67 | H199: 380.87 | I199: 395.03 | J199: 409.97 | K199: 380.1 | L199: 351 | M199: 0.2132
A200: 190 | B200: HEROMOTOCO | C200: 2467.3 | D200: 2440.45 | E200: 2393.35 | F200: 2319.40 | G200: 2272.30 | H200: 2514.40 | I200: 2561.50 | J200: 2635.45 | K200: 2487.55 | L200: 2366.5 | M200: 10.85566
A201: 191 | B201: HEXAWARE | C201: 357.9 | D201: 359.47 | E201: 351.28 | F201: 344.67 | G201: 336.48 | H201: 366.08 | I201: 374.27 | J201: 380.88 | K201: 367.65 | L201: 352.85 | M201: 12.55702
A202: 192 | B202: HFCL | C202: 19.35 | D202: 19.30 | E202: 19.20 | F202: 19.05 | G202: 18.95 | H202: 19.45 | I202: 19.55 | J202: 19.70 | K202: 19.4 | L202: 19.15 | M202: 7.04866
A203: 193 | B203: HSCL | C203: 82.35 | D203: 82.10 | E203: 81.10 | F203: 79.85 | G203: 78.85 | H203: 83.35 | I203: 84.35 | J203: 85.60 | K203: 83.1 | L203: 80.85 | M203: 3.66553
A204: 194 | B204: HIMATSEIDE | C204: 143.85 | D204: 144.22 | E204: 141.63 | F204: 139.42 | G204: 136.83 | H204: 146.43 | I204: 149.02 | J204: 151.23 | K204: 146.8 | L204: 142 | M204: 0.45889
A205: 195 | B205: HINDALCO | C205: 198 | D205: 197.37 | E205: 195.38 | F205: 192.77 | G205: 190.78 | H205: 199.98 | I205: 201.97 | J205: 204.58 | K205: 199.35 | L205: 194.75 | M205: 53.73373
A206: 196 | B206: HAL | C206: 675.95 | D206: 679.15 | E206: 670.30 | F206: 664.65 | G206: 655.80 | H206: 684.80 | I206: 693.65 | J206: 699.30 | K206: 688 | L206: 673.5 | M206: 0.13994
... 320 more rows

Sheet Bulk Deals
E6: Back To Main Page
A7: Subject : | B7: BULK DEAL | D7: =Main!B10 -> 2019-07-29
A9: Date | B9: Scrip code | C9: Scrip Name | D9: Client Name | E9: Buy / Sell | F9: Quantity Traded | G9: Trade Price / Wt.Avg.trade price | H9: Exchange
A10: 2019-07-26 | B10: 537766 | C10: BCP | D10: ACHINTYA COMMODITIES PRIVATE LIMITED | E10: BUY | F10: 528,903 | G10: 41.73 | H10: BSE
A11: 2019-07-26 | B11: 537766 | C11: BCP | D11: ACHINTYA COMMODITIES PRIVATE LIMITED | E11: SELL | F11: 531,817 | G11: 41.67 | H11: BSE
A12: 2019-07-26 | B12: 542727 | C12: CPML | D12: MOHAMED ZAHEED | E12: SELL | F12: 28,000 | G12: 30.1 | H12: BSE
A13: 2019-07-26 | B13: 542727 | C13: CPML | D13: VIJETA BROKING INDIA PRIVATE LIMITED | E13: BUY | F13: 36,000 | G13: 30.09 | H13: BSE
A14: 2019-07-26 | B14: 538432 | C14: DIVINUS | D14: MANOJKUMAR GUNVANTRAI SOMANI | E14: SELL | F14: 42,600 | G14: 24.25 | H14: BSE
A15: 2019-07-26 | B15: 542724 | C15: EARUM | D15: MOHIT PRAKASH JALAN | E15: SELL | F15: 45,000 | G15: 46.25 | H15: BSE
A16: 2019-07-26 | B16: 533704 | C16: ESSARSHPNG | D16: INDIA OPPORTUNITIES GROWTH FUND LTD - PINEWOOD STRATEGY | E16: BUY | F16: 7,400,000 | G16: 9.5 | H16: BSE
A17: 2019-07-26 | B17: 533704 | C17: ESSARSHPNG | D17: CITOC INVESTMENT SERVICES LLP | E17: SELL | F17: 7,364,883 | G17: 9.50 | H17: BSE
A18: 2019-07-26 | B18: 540937 | C18: MEDICO | D18: ARYAMAN BROKING LIMITED | E18: BUY | F18: 30,000 | G18: 83.50 | H18: BSE
A19: 2019-07-26 | B19: 540937 | C19: MEDICO | D19: ARYAMAN BROKING LIMITED | E19: SELL | F19: 22,800 | G19: 86.75 | H19: BSE
A20: 2019-07-26 | B20: 540937 | C20: MEDICO | D20: PANKAJ PIYUSH TRADE AND INVESTMENT LTD | E20: SELL | F20: 30,000 | G20: 83.5 | H20: BSE
A21: 2019-07-26 | B21: 540937 | C21: MEDICO | D21: GOODPOINT COMMODEAL PRIVATE LIMITED | E21: BUY | F21: 22,800 | G21: 86.75 | H21: BSE
A22: 2019-07-26 | B22: 540404 | C22: PRIME | D22: KRISMA INVESTMENTS PRIVATE LIMITED | E22: BUY | F22: 19,000 | G22: 111.00 | H22: BSE
A23: 2019-07-26 | B23: 536659 | C23: PVVINFRA | D23: GKML SOFTWARE TECHNOLOGIES PRIVATE LIMITED | E23: BUY | F23: 71,587 | G23: 23 | H23: BSE
A24: 2019-07-26 | B24: 536659 | C24: PVVINFRA | D24: CHOZEN TECHNOLOGY SOLUTIONS PRIVATE LIMITED | E24: SELL | F24: 66,665 | G24: 23.00 | H24: BSE
A25: 2019-07-26 | B25: 539814 | C25: RADHEY | D25: RAJESH SHANTILAL VAKHARIA | E25: BUY | F25: 21,211 | G25: 18.28 | H25: BSE
A26: 2019-07-26 | B26: 539760 | C26: RELICAB | D26: OVERSKUD MULTI ASSET MANAGEMENT PRIVATE LIMITED | E26: SELL | F26: 150,000 | G26: 49.22 | H26: BSE
A27: 2019-07-26 | B27: 539760 | C27: RELICAB | D27: EMRALD COMMERCIAL LIMITED | E27: BUY | F27: 150,000 | G27: 49.22 | H27: BSE
A28: 2019-07-26 | B28: 534734 | C28: RMCHEM | D28: TAIYAB HAIDERALI NOORANI . | E28: SELL | F28: 6,000,000 | G28: 0.75 | H28: BSE
A29: 2019-07-26 | B29: 534734 | C29: RMCHEM | D29: PRAMOD KUMAR SULTANIA & SONS | E29: BUY | F29: 1,320,000 | G29: 0.75 | H29: BSE
A30: 2019-07-26 | B30: 534734 | C30: RMCHEM | D30: MANOJKUMAR GUNVANTRAI SOMANI | E30: BUY | F30: 1,400,000 | G30: 0.75 | H30: BSE
A31: 2019-07-26 | B31: 534734 | C31: RMCHEM | D31: BHIM SINGH CHAUDHARY | E31: BUY | F31: 2,000,000 | G31: 0.75 | H31: BSE
A32: 2019-07-26 | B32: 531797 | C32: SCANPRO | D32: ALKA CHANDRA | E32: BUY | F32: 24,900 | G32: 3.72 | H32: NSE
A33: 2019-07-26 | B33: 531797 | C33: SCANPRO | D33: SUMAN AZAD | E33: SELL | F33: 24,900 | G33: 3.72 | H33: NSE
A34: 2019-07-26 | B34: 539026 | C34: SSPNFIN | D34: DINANATH YADAV | E34: SELL | F34: 12,000 | G34: 47.85 | H34: NSE
A35: 2019-07-26 | B35: 539026 | C35: SSPNFIN | D35: DEVJEET CHAKRABORTY | E35: BUY | F35: 12,000 | G35: 47.85 | H35: NSE
A36: 2019-07-26 | B36: 540738 | C36: STL | D36: ARYAMAN BROKING LIMITED | E36: SELL | F36: 21,000 | G36: 147.3 | H36: NSE
A37: 2019-07-26 | B37: 540738 | C37: STL | D37: S K GROWTH FUND PVT LTD | E37: BUY | F37: 21,000 | G37: 147.3 | H37: NSE
A38: 2019-07-26 | B38: 524717 | C38: TITANBIO | D38: TITAN SECURITIES LTD | E38: BUY | F38: 50,000 | G38: 40.32 | H38: NSE
A39: 2019-07-26 | B39: 530045 | C39: TITANSEC | D39: S UDIT SECURITIES (P) LTD | E39: SELL | F39: 125,100 | G39: 3.37 | H39: NSE
A40: 2019-07-26 | B40: 530045 | C40: TITANSEC | D40: APARNA SINGHAL | E40: BUY | F40: 179,500 | G40: 3.34 | H40: NSE
A41: 2019-07-26 | B41: 530045 | C41: TITANSEC | D41: AVB SHARES TRADING PRIVATE LIMITED | E41: SELL | F41: 143,301 | G41: 3.33 | H41: NSE
A42: 2019-07-26 | B42: 539331 | C42: VETO | D42: SHIKHA MALPANI | E42: SELL | F42: 100,000 | G42: 76.77 | H42: NSE
A43: 2019-07-26 | B43: 539331 | C43: VETO | D43: ANANT JAIN | E43: BUY | F43: 100,000 | G43: 76.86 | H43: NSE
A44: 2019-07-26 | B44: ABINFRA | C44: A B Infrabuild Limited | D44: KUSUM JAGDISH GUPTA | E44: BUY | F44: 100,000 | G44: 26.7 | H44: NSE
A45: 2019-07-26 | B45: ABINFRA | C45: A B Infrabuild Limited | D45: SONAL KAMAL GUPTA | E45: BUY | F45: 100,000 | G45: 26.7 | H45: NSE
A46: 2019-07-26 | B46: ABINFRA | C46: A B Infrabuild Limited | D46: SHALINI NALIN GUPTA | E46: BUY | F46: 80000 | G46: 26.7 | H46: NSE
A47: 2019-07-26 | B47: ARTEDZ | C47: Artedz Fabs Limited | D47: BHAVNA HITESH PATEL | E47: BUY | F47: 90000 | G47: 28.5 | H47: NSE
A48: 2019-07-26 | B48: ARTEDZ | C48: Artedz Fabs Limited | D48: HITESH MOHANBHAI PATEL | E48: BUY | F48: 141000 | G48: 28.5 | H48: NSE
A49: 2019-07-26 | B49: ARVIND | C49: Arvind Limited | D49: TOWER RESEARCH CAPITAL MARKETS INDIA PRIVATE LIMITED | E49: BUY | F49: 1572107 | G49: 60.66 | H49: NSE
A50: 2019-07-26 | B50: DHFL | C50: Dewan Housing Fin Corp | D50: TOWER RESEARCH CAPITAL MARKETS INDIA PRIVATE LIMITED | E50: BUY | F50: 2209461 | G50: 54.85 | H50: NSE
A51: 2019-07-26 | B51: GSS | C51: GSS Infotech Limited | D51: YADVENDRA SHARMA | E51: BUY | F51: 94000 | G51: 41.39 | H51: NSE
A52: 2019-07-26 | B52: RELCAPITAL | C52: Reliance Capital Limited | D52: QE SECURITIES | E52: BUY | F52: 1294865 | G52: 52.93 | H52: NSE
A53: 2019-07-26 | B53: RELCAPITAL | C53: Reliance Capital Limited | D53: TOWER RESEARCH CAPITAL MARKETS INDIA PRIVATE LIMITED | E53: BUY | F53: 3071433 | G53: 52.24 | H53: NSE
A54: 2019-07-26 | B54: RELINFRA | C54: Reliance Infrastructu Ltd | D54: TOWER RESEARCH CAPITAL MARKETS INDIA PRIVATE LIMITED | E54: BUY | F54: 4530529 | G54: 48.84 | H54: NSE
A55: 2019-07-26 | B55: RELINFRA | C55: Reliance Infrastructu Ltd | D55: ALPHAGREP SECURITIES PRIVATE LIMITED | E55: BUY | F55: 2412248 | G55: 49.25 | H55: NSE
A56: 2019-07-26 | B56: TEJASNET | C56: Tejas Networks Limited | D56: HDFC MUTUAL FUND - HDFC GROWTH FUND | E56: BUY | F56: 3000000 | G56: 84 | H56: NSE
A57: 2019-07-26 | B57: VETO | C57: Veto Switchgear Cable Ltd | D57: ANANT JAIN | E57: BUY | F57: 100000 | G57: 76.32 | H57: NSE
A58: 2019-07-26 | B58: YESBANK | C58: Yes Bank Limited | D58: TOWER RESEARCH CAPITAL MARKETS INDIA PRIVATE LIMITED | E58: BUY | F58: 18090945 | G58: 92.77 | H58: NSE
A59: 2019-07-26 | B59: ABINFRA | C59: A B Infrabuild Limited | D59: MARK CORPORATE ADVIOSRS PVT LTD | E59: SELL | F59: 284000 | G59: 26.7 | H59: NSE
A60: 2019-07-26 | B60: ARTEDZ | C60: Artedz Fabs Limited | D60: NAMITA HITESH PATEL | E60: SELL | F60: 231000 | G60: 28.5 | H60: NSE
A61: 2019-07-26 | B61: ARVIND | C61: Arvind Limited | D61: TOWER RESEARCH CAPITAL MARKETS INDIA PRIVATE LIMITED | E61: SELL | F61: 1572107 | G61: 60.64 | H61: NSE
A62: 2019-07-26 | B62: DHFL | C62: Dewan Housing Fin Corp | D62: TOWER RESEARCH CAPITAL MARKETS INDIA PRIVATE LIMITED | E62: SELL | F62: 2209461 | G62: 54.58 | H62: NSE
A63: 2019-07-26 | B63: RELCAPITAL | C63: Reliance Capital Limited | D63: QE SECURITIES | E63: SELL | F63: 1438913 | G63: 53.22 | H63: NSE
A64: 2019-07-26 | B64: RELCAPITAL | C64: Reliance Capital Limited | D64: TOWER RESEARCH CAPITAL MARKETS INDIA PRIVATE LIMITED | E64: SELL | F64: 3071433 | G64: 52.34 | H64: NSE
A65: 2019-07-26 | B65: RELINFRA | C65: Reliance Infrastructu Ltd | D65: TOWER RESEARCH CAPITAL MARKETS INDIA PRIVATE LIMITED | E65: SELL | F65: 4530529 | G65: 48.82 | H65: NSE
A66: 2019-07-26 | B66: RELINFRA | C66: Reliance Infrastructu Ltd | D66: ALPHAGREP SECURITIES PRIVATE LIMITED | E66: SELL | F66: 2412248 | G66: 49.28 | H66: NSE
A67: 2019-07-26 | B67: TEJASNET | C67: Tejas Networks Limited | D67: EMERGING MARKETS STOCK COMMON TRUST FUND | E67: SELL | F67: 482031 | G67: 84.32 | H67: NSE
A68: 2019-07-26 | B68: TEJASNET | C68: Tejas Networks Limited | D68: COLUMBIA EMERGING MARKETS FUND E407698 | E68: SELL | F68: 1845804 | G68: 84.32 | H68: NSE
A69: 2019-07-26 | B69: TEJASNET | C69: Tejas Networks Limited | D69: COLUMBIA VARIABLE PORTFOLIO-EMERGING MARKETS OPPORTUNITY FUND | E69: SELL | F69: 669865 | G69: 84.32 | H69: NSE
A70: 2019-07-26 | B70: YESBANK | C70: Yes Bank Limited | D70: TOWER RESEARCH CAPITAL MARKETS INDIA PRIVATE LIMITED | E70: SELL | F70: 18090945 | G70: 92.84 | H70: NSE

Sheet Call Tracker (Equity & F&O)
M5: Back To Main Page
A6: Retail Research Technical Calls & Fundamental Performance Report for the month of July-2019
M7: =Main!B10 -> 2019-07-29
B8: Positional Call
A9: Sr.no | B9: Date | D9: Company | E9: Rec | F9: Rec Price | G9: Stop Loss*** | H9: Call Closed At | I9: Target | J9: Remark | K9: Profit / Loss per Share | L9: Gain / Loss % | M9: Status | N9: Closed Date | O9: NSE Closed Price
A10: 1 | B10: 2019-05-27 | D10: TATAELXSI | E10: Buy | F10: 874 | G10: 818.7 | H10: 863 | I10: 970-990 | J10: Loss of Rs.11/- | K10: =H10-F10 -> -11 | L10: =K10/F10 -> -1.26% | M10: Unsuccessful | N10: 2019-07-16 | R10: R
A11: 2 | B11: 2019-05-28 | D11: BAJAJFINSV | E11: Sell | F11: 8175 | G11: 8625 | H11: 7925 | I11: 7300 | J11: Profit of Rs.250/- | K11: =F11-H11 -> 250 | L11: 3.06% | M11: Successful | N11: 2019-07-08 | R11: H
A12: 3 | B12: 2019-05-31 | D12: ITC | E12: Buy | F12: 286 | G12: 268.3 | H12: 265.5 | I12: 315-325 | J12: Loss of Rs.20.5/- | K12: =H12-F12 -> -20.5 | L12: =K12/F12 -> -7.17% | M12: Unsuccessful | N12: 2019-07-22 | R12: R
A13: 4 | B13: 2019-06-13 | D13: GODREJCP | E13: Buy | F13: 677.5 | G13: 644 | H13: 639.5 | I13: 740-750 | J13: Loss of Rs.38/- | K13: =H13-F13 -> -38 | L13: =K13/F13 -> -5.61% | M13: Unsuccessful | N13: 2019-07-10 | R13: H
A14: 5 | B14: 2019-06-17 | D14: SUNTV | E14: Buy | F14: 517 | G14: 476 | H14: 507 | I14: 575-585 | J14: Loss of Rs.10/- | K14: =H14-F14 -> -10 | L14: =K14/F14 -> -1.93% | M14: Unsuccessful | N14: 2019-07-08 | R14: R
A15: 6 | B15: 2019-06-21 | D15: AJANTPHARM | E15: Buy | F15: 955 | G15: 897.7 | H15: 894 | I15: 1060-1080 | J15: Loss of Rs.61/- | K15: =H15-F15 -> -61 | L15: =K15/F15 -> -6.39% | M15: Unsuccessful | N15: 2019-07-11 | R15: R
A16: 7 | B16: 2019-06-24 | D16: ESCORTS | E16: Buy | F16: 549.5 | G16: 518 | H16: 545.25 | I16: 600 | J16: Loss of Rs.4.25/- | K16: -4.25 | L16: -0.77% | M16: Neutral | N16: 2019-07-08 | R16: H
A17: 8 | B17: 2019-06-25 | D17: JUBLFOOD | E17: Buy | F17: 1262.5 | G17: 1158.3 | H17: 1145 | I17: 1450 -1470 | J17: Loss of Rs.117.50/- | K17: -117.5 | L17: -9.31% | M17: Unsuccessful | N17: 2019-07-24 | R17: R
A18: 9 | B18: 2019-07-04 | D18: TORNTPHARM | E18: Buy | F18: 1545 | G18: 1454 | H18: 1638 | I18: 1730-1750 | J18: Profit of Rs.93/- | K18: =H18-F18 -> 93 | L18: =K18/F18 -> 6.02% | M18: Successful | N18: 2019-07-26 | R18: R
A19: 10 | B19: 2019-07-10 | D19: TCS | E19: Buy | F19: 2105-2115 | G19: 1973 | I19: 2295-2345 | J19: Open | O19: =VLOOKUP(D19,Sheet2!A6:M1645,6,0) -> 2109.05 | R19: H
A20: 11 | B20: 2019-07-11 | D20: BAJAJ-AUTO | E20: Buy | F20: 2670 | G20: 2527 | H20: 2527 | I20: 1920-1950 | J20: Loss of Rs.143/- | K20: =H20-F20 -> -143 | L20: =K20/F20 -> -5.36% | M20: Unsuccessful | N20: 2019-07-22 | R20: R
A21: 12 | B21: 2019-07-11 | D21: BERGEPAINT | E21: Buy | F21: 304 | G21: 288 | H21: 316.25 | I21: 330-340 | J21: Profit of Rs.12.25/- | K21: =H21-F21 -> 12.25 | L21: =K21/F21 -> 4.03% | M21: Successful | N21: 2019-07-24 | R21: H
A22: 13 | B22: 2019-07-12 | D22: ABFRL | E22: Buy | F22: 201 | G22: 189.3 | H22: 208.75 | I22: 222-226 | J22: Profit of Rs.7.75/- | K22: =H22-F22 -> 7.75 | L22: =K22/F22 -> 3.86% | M22: Successful | N22: 2019-07-12 | R22: R
A23: 14 | B23: 2019-07-12 | D23: LT | E23: Buy<> | F23: 1457 | G23: 1353 | I23: 1630-1680 | J23: Open | O23: =VLOOKUP(D23,Sheet2!A10:M1649,6,0) -> 1392.15 | R23: H
A24: 15 | B24: 2019-07-15 | D24: BIOCON | E24: Buy | F24: 251.5 | G24: 237 | H24: 262.25 | I24: 270 -280 | J24: Part Profit of Rs.10.75/- | K24: =H24-F24 -> 10.75 | L24: =K24/F24 -> 4.27% | M24: Successful | N24: 2019-07-17 | O24: =VLOOKUP(D24,Sheet2!A11:M1650,6,0) -> 241.85 | R24: H
A25: 16 | B25: 2019-07-16 | D25: ABFRL | E25: Buy | F25: 201-203 | G25: 189.3 | I25: 222-226 | J25: Open | O25: =VLOOKUP(D25,Sheet2!A12:M1651,6,0) -> 196.85 | R25: R
A26: 17 | B26: 2019-07-17 | D26: BANKINDIA | E26: Buy | F26: 84.5 | G26: 82 | H26: 80.5 | I26: 90 | J26: Loss of Rs.4/- | K26: =H26-F26 -> -4 | L26: =K26/F26 -> -4.73% | M26: Unsuccessful | N26: 2019-07-19 | R26: H
A27: 18 | B27: 2019-07-17 | D27: BHARTIARTL | E27: Buy | F27: 347-349 | G27: 322 | I27: 392 -396 | J27: Open | O27: =VLOOKUP(D27,Sheet2!A14:M1653,6,0) -> 334.9 | R27: R
A28: 19 | B28: 2019-07-18 | D28: NAVINFLUOR | E28: Buy | F28: 608-616 | G28: 570 | I28: 680 -700 | J28: Open | O28: =VLOOKUP(D28,Sheet2!A15:M1654,6,0) -> 583.1 | R28: H
A29: 20 | B29: 2019-07-19 | D29: ACC | E29: Buy | F29: 1615-1625 | G29: 1518 | I29: 1750-1800 | J29: Open | O29: =VLOOKUP(D29,Sheet2!A16:M1655,6,0) -> 1581.95 | R29: H
A30: 21 | B30: 2019-07-22 | D30: BAJFINANCE | E30: Buy | F30: 3290 | G30: 3140 | H30: 3115 | I30: 3500-3600 | J30: Loss of Rs.175/- | K30: =H30-F30 -> -175 | L30: =K30/F30 -> -5.32% | M30: Unsuccessful | N30: 2019-07-25 | R30: H
A31: 22 | B31: 2019-07-22 | D31: MOTHERSUMI | E31: Buy | F31: 109-111 | G31: 103 | I31: 121-123 | J31: Open | O31: =VLOOKUP(D31,Sheet2!A18:M1657,6,0) -> 113 | R31: R
A32: 23 | B32: 2019-07-26 | D32: M&M | E32: Buy | F32: 550-555 | G32: 530 | I32: 590-600 | J32: Open | O32: =VLOOKUP(D32,Sheet2!A19:M1658,6,0) -> 564.45
A33: 24 | B33: 2019-07-26 | D33: GLENMARK | E33: Buy | F33: 424-427 | G33: 395 | I33: 490-500 | J33: Open | O33: =VLOOKUP(D33,Sheet2!A20:M1659,6,0) -> 426.15
A35: CLBS = Closing Basis *** | F35: Reinitiated $
A36: Dividend adjusted <> | F36: Revised stoploss #
A37: Part book {}
B39: Momentum Call
A40: Sr.no | B40: Date | D40: Company | E40: Rec | F40: Rec Price | G40: Stop Loss | H40: Call Closed At | I40: Target | J40: Remark | K40: Profit / Loss per Share/Lot | L40: Gain / Loss % | M40: Gain / Loss per Lot | N40: Lot | O40: Status | P40: Closed Date
A41: 1 | B41: 2019-06-26 | D41: INDUSINDBK | E41: Buy | F41: 1437.5 | G41: 1395 | H41: 1475.5 | I41: 1480-1500 | J41: Profit of Rs.38 /- | K41: =H41-F41 -> 38 | L41: =K41/F41 -> 2.64% | O41: Successful | P41: 2019-07-03 | R41: H
A42: 2 | B42: 2019-06-26 | D42: HEROMOTOCO | E42: Buy | F42: 2590 | G42: 2490 | H42: 2530 | I42: 2750-2800 | J42: Loss of Rs.9.5 /- | K42: =H42-F42 -> -60 | L42: -2.32% | O42: Unsuccessful | P42: 2019-07-05 | R42: H
A43: 3 | B43: 2019-06-27 | D43: ASIANPAINT JUL FUT | E43: Buy | F43: 1372 | G43: 1352 | H43: 1352 | I43: 1400 -1410 | J43: Loss of Rs.20 /- | K43: =H43-F43 -> -20 | M43: =K43*N43 -> -12000 | N43: 600 | O43: Unsuccessful | P43: 2019-07-02 | R43: N
A44: 4 | B44: 2019-06-27 | D44: TITAN JULY FUT | E44: Sell | F44: 1331 | G44: 1350 | H44: 1322 | I44: 1290 | J44: Profit of Rs.9 /- | K44: =F44-H44 -> 9 | M44: 6750 | N44: 750 | O44: Successful | P44: 2019-07-02 | R44: H
A45: 5 | B45: 2019-06-27 | D45: COLPAL JUL FUT | E45: Buy | F45: 1137 | G45: 1120 | H45: 1149 | I45: 1170 | J45: Profit of Rs.12 /- | K45: =H45-F45 -> 12 | M45: 8400 | N45: 700 | O45: Successful | P45: 2019-07-02 | R45: N
A46: 6 | B46: 2019-06-28 | D46: CIPLA JULY FUT | E46: Buy | F46: 556 | G46: 545 | H46: 545 | I46: 575-580 | J46: Loss of Rs.11 /- | K46: =H46-F46 -> -11 | M46: -11000 | N46: 1000 | O46: Unsuccessful | P46: 2019-07-08 | R46: H
A47: 7 | B47: 2019-06-28 | D47: NIITTECH JUL FUT | E47: Sell | F47: 1326.5 | G47: 1345 | H47: 1318 | I47: 1290 | J47: Profit of Rs.8.5 /- | K47: =F47-H47 -> 8.5 | M47: 6375 | N47: 750 | O47: Successful | P47: 2019-07-05 | R47: R
A48: 8 | B48: 2019-06-28 | D48: POWERGRID JUL FUT | E48: Buy | F48: 206.25 | G48: 203 | H48: 208.5 | I48: 213 | J48: Profit of Rs.2.25 /- | K48: =H48-F48 -> 2.25 | M48: 9000 | N48: 4000 | O48: Successful | P48: 2019-07-01 | R48: N
A49: 9 | B49: 2019-06-28 | D49: LT JUL FUT | E49: Buy | F49: 1549 | G49: 1519 | H49: 1568 | I49: 1600 | J49: Profit of Rs.19 /- | K49: =H49-F49 -> 19 | M49: 7125 | N49: 375 | O49: Successful | P49: 2019-07-03 | R49: N
A50: 10 | B50: 2019-07-01 | D50: BATAINDIA JUL FUT | E50: Sell | F50: 1435 | G50: 1458.7 | H50: 1458.7 | I50: 1400 | J50: Loss of Rs.23.7 /- | K50: =F50-H50 -> -23.7 | M50: -13035 | N50: 550 | O50: Unsuccessful | P50: 2019-07-03 | R50: R
A51: 11 | B51: 2019-07-01 | D51: CADILAHC JUL FUT | E51: Buy | F51: 242.5 | G51: 235 | H51: 235 | I51: 260 | J51: Loss of Rs.7.5 /- | K51: =H51-F51 -> -7.5 | M51: -12000 | N51: 1600 | O51: Unsuccessful | P51: 2019-07-02 | R51: H
A52: 12 | B52: 2019-07-01 | D52: MCDOWELL-N | E52: Sell | F52: 592.5 | G52: 610 | H52: 580 | I52: 565-560 | J52: Profit of Rs.12.5 /- | K52: =F52-H52 -> 12.5 | L52: =K52/F52 -> 2.11% | O52: Successful | P52: 2019-07-03 | R52: H
A53: 13 | B53: 2019-07-02 | D53: HDFC JULY FUT | E53: Sell | F53: 2239 | G53: 2262 | H53: 2259 | I53: 2200 | J53: Loss of Rs.20/- | K53: =F53-H53 -> -20 | M53: =K53*N53 -> -10000 | N53: 500 | O53: Unsuccessful | P53: 2019-07-02 | R53: H
A54: 14 | B54: 2019-07-02 | D54: BHARTIARTL JUL FUT | E54: Buy | F54: 351 | G54: 344.3 | H54: 355.5 | I54: 362-365 | J54: Profit of Rs.4.5 /- | K54: =H54-F54 -> 4.5 | M54: =K54*N54 -> 8329.5 | N54: 1851 | O54: Successful | P54: 2019-07-02 | R54: R
A55: 15 | B55: 2019-07-02 | D55: TVSMOTOR JUL FUT | E55: Sell | F55: 429 | G55: 441 | H55: 429 | I55: 410 | J55: Neutral | K55: =H55-F55 -> 0 | M55: =K55*N55 -> 0 | N55: 1100 | O55: Neutral | P55: 2019-07-05 | R55: N
A56: 16 | B56: 2019-07-02 | D56: RECLTD | E56: Sell | F56: 163.5 | G56: 168.2 | H56: 166.5 | I56: 156-154 | J56: Loss of Rs.3/- | K56: =F56-H56 -> -3 | L56: =K56/F56 -> -1.83% | O56: Unsuccessful | P56: 2019-07-03 | R56: R
A57: 17 | B57: 2019-07-02 | D57: TITAN JUL FUT | E57: Sell | F57: 1333.5 | G57: 1353 | H57: 1324.5 | I57: 1300-1290 | J57: Profit of Rs.9 /- | K57: =F57-H57 -> 9 | M57: =K57*N57 -> 6750 | N57: 750 | O57: Successful | P57: 2019-07-03 | R57: H
A58: 18 | B58: 2019-07-02 | D58: RAYMOND JUL FUT | E58: Buy | F58: 745 | G58: 730 | H58: 754.5 | I58: 765-770 | J58: Profit of Rs.9.5 /- | K58: =H58-F58 -> 9.5 | M58: =K58*N58 -> 7600 | N58: 800 | O58: Successful | P58: 2019-07-03 | R58: N
A59: 19 | B59: 2019-07-03 | D59: IGL | E59: Buy | F59: 307.5 | G59: 298 | H59: 298 | I59: 325-339 | J59: Loss of Rs.9.5 /- | K59: =H59-F59 -> -9.5 | L59: =K59/F59 -> -3.09% | O59: Unsuccessful | P59: 2019-07-05 | R59: H
A60: 20 | B60: 2019-07-03 | D60: SUNPHARMA | E60: Buy | F60: 395.5 | G60: 379 | H60: 385.5 | I60: 420-425 | J60: Loss of Rs.10 /- | K60: =H60-F60 -> -10 | L60: =K60/F60 -> -2.53% | O60: Unsuccessful | P60: 2019-07-05 | R60: H
A61: 21 | B61: 2019-07-03 | D61: BANKBARODA | E61: Buy | F61: 121.5 | G61: 118 | H61: 124.1 | I61: 128 | J61: Profit of Rs.2.6 /- | K61: =H61-F61 -> 2.6 | L61: =K61/F61 -> 2.14% | O61: Successful | P61: 2019-07-03 | R61: H
A62: 22 | B62: 2019-07-03 | D62: M&MFIN JUL FUT | E62: Buy | F62: 387.5 | G62: 379 | H62: 394 | I62: 408 | J62: Profit of Rs.6.5 /- | K62: =H62-F62 -> 6.5 | M62: =K62*N62 -> 8125 | N62: 1250 | O62: Successful | P62: 2019-07-04 | R62: H
A63: 23 | B63: 2019-07-04 | D63: UPL JUL FUT | E63: Sell | F63: 667 | G63: 681 | H63: 681 | I63: 645 | J63: Loss of Rs.14/- | K63: =F63-H63 -> -14 | M63: =K63*N63 -> -12600 | N63: 900 | O63: Unsuccessful | P63: 2019-07-04 | R63: R
A64: 24 | B64: 2019-07-04 | D64: INDUSINDBK JUL FUT | E64: Buy | F64: 1497.5 | G64: 1467 | H64: 1517.5 | I64: 1550-1560 | J64: Profit of Rs.20 /- | K64: =H64-F64 -> 20 | M64: =K64*N64 -> 8000 | N64: 400 | O64: Successful | P64: 2019-07-05 | R64: N
A65: 25 | B65: 2019-07-05 | D65: BERGEPAINT | E65: Buy | F65: 314 | G65: 304 | H65: 304 | I65: 330-333 | J65: Loss of Rs.10/- | K65: =H65-F65 -> -10 | L65: =K65/F65 -> -3.18% | O65: Unsuccessful | P65: 2019-07-08 | R65: H
A66: 26 | B66: 2019-07-05 | D66: WIPRO JULY FUT | E66: Sell | F66: 278 | G66: 282 | H66: 274.75 | I66: 270 | J66: Profit of Rs.3.25/- | K66: =F66-H66 -> 3.25 | M66: =K66*N66 -> 10400 | N66: 3200 | O66: Successful | P66: 2019-07-05 | R66: H
A67: 27 | B67: 2019-07-05 | D67: MUTHOOTFIN JUL FUT | E67: Buy | F67: 635 | G67: 625 | H67: 629 | I67: 655 | J67: Loss of Rs.6 /- | K67: =H67-F67 -> -6 | M67: -9000 | N67: 1500 | O67: Unsuccessful | P67: 2019-07-05 | R67: N
A68: 28 | B68: 2019-07-05 | D68: EXIDEIND JUL FUT | E68: Buy | F68: 204 | G68: 199.5 | H68: 199.5 | I68: 215 | J68: Loss of Rs.4.5 /- | K68: -4.5 | M68: -10800 | N68: 2400 | O68: Unsuccessful | P68: 2019-07-08 | R68: N
A69: 29 | B69: 2019-07-05 | D69: TVSMOTOR JUL FUT | E69: Buy | F69: 429 | G69: 417.3 | H69: 417.3 | I69: 450 | J69: Loss of Rs.11.7/- | K69: -11.7 | M69: -12870 | N69: 1100 | O69: Unsuccessful | P69: 2019-07-08 | R69: R
A70: 30 | B70: 2019-07-08 | D70: CANBK JUL FUT | E70: Buy | F70: 289 | G70: 284 | H70: 284 | I70: 300 | J70: Loss of Rs.5 /- | K70: -5 | M70: -10000 | N70: 2000 | O70: Unsuccessful | P70: 2019-07-08 | R70: H
A71: 31 | B71: 2019-07-08 | D71: KOTAKBANK JUL FUT | E71: Buy | F71: 1500 | G71: 1470 | H71: 1470 | I71: 1550-1560 | J71: Loss of Rs.30 /- | K71: -30 | M71: -12000 | N71: 400 | O71: Unsuccessful | P71: 2019-07-09 | R71: H
A72: 32 | B72: 2019-07-09 | D72: RELIANCE | E72: Buy | F72: 1255 | G72: 1218 | H72: 1276 | I72: 1320-1330 | J72: Profit of Rs.21/- | K72: 21 | L72: =K72/F72 -> 1.67% | O72: Successful | P72: 2019-07-09 | R72: H
A73: 33 | B73: 2019-07-09 | D73: NIFTY JUL FUT | E73: Buy | F73: 11525 | G73: 11470 | H73: 11575 | I73: 11600 | J73: Profit of Rs.50/- | K73: 50 | M73: =K73*N73 -> 3750 | N73: 75 | O73: Successful | P73: 2019-07-09 | R73: R
A74: 34 | B74: 2019-07-09 | D74: M&MFIN | E74: Buy | F74: 390.5 | G74: 378 | H74: 379 | I74: 410-415 | J74: Loss of Rs.11.50/- | K74: =H74-F74 -> -11.5 | L74: =K74/F74 -> -2.94% | O74: Unsuccessful | P74: 2019-07-11 | R74: H
A75: 35 | B75: 2019-07-09 | D75: RBLBANK JUL FUT | E75: Buy | F75: 628 | G75: 618 | H75: 635 | I75: 645-650 | J75: Profit of Rs.7/- | K75: =H75-F75 -> 7 | M75: =K75*N75 -> 8400 | N75: 1200 | O75: Successful | P75: 2019-07-10 | R75: N
A76: 36 | B76: 2019-07-09 | D76: BANKNIFTY JUL FUT | E76: Buy | F76: 30560 | G76: 30440 | H76: 30670 | I76: 30750-30800 | J76: Profit of Rs.110/- | K76: =H76-F76 -> 110 | M76: =K76*N76 -> 2200 | N76: 20 | O76: Successful | P76: 2019-07-09 | R76: R
A77: 37 | B77: 2019-07-10 | D77: AMARAJABAT JUL FUT | E77: Buy | F77: 637 | G77: 620 | H77: 646.5 | I77: 670 | J77: Profit of Rs.9.50/- | K77: =H77-F77 -> 9.5 | M77: =K77*N77 -> 6650 | N77: 700 | O77: Successful | P77: 2019-07-11 | R77: N
A78: 38 | B78: 2019-07-10 | D78: CIPLA | E78: Buy | F78: 550 | G78: 535 | H78: 562 | I78: 575-580 | J78: Profit of Rs.12/- | K78: =H78-F78 -> 12 | L78: =K78/F78 -> 2.18% | O78: Successful | P78: 2019-07-12 | R78: H
A79: 39 | B79: 2019-07-10 | D79: BANKINDIA | E79: Buy | F79: 85.4 | G79: 83.5 | H79: 87.1 | I79: 90-92 | J79: Profit of Rs.1.70/- | K79: =H79-F79 -> 1.7 | L79: 1.99% | O79: Successful | P79: 2019-07-11 | R79: H
A80: 40 | B80: 2019-07-10 | D80: COLPAL JUL FUT | E80: Buy | F80: 1156.5 | G80: 1139 | H80: 1140 | I80: 1180-1190 | J80: Loss of Rs.16.50 /- | K80: =H80-F80 -> -16.5 | M80: =K80*N80 -> -11550 | N80: 700 | O80: Unsuccessful | P80: 2019-07-11 | R80: N
A81: 41 | B81: 2019-07-10 | D81: APOLLOHOSP | E81: Buy | F81: 1312.5 | G81: 1277 | H81: 1348.5 | I81: 1370-1380 | J81: Profit of Rs.36- | K81: 36 | L81: 2.74% | O81: Successful | P81: 2019-07-12 | R81: R
A82: 42 | B82: 2019-07-10 | D82: NIFTY JUL FUT | E82: Buy | F82: 11492.5 | G82: 11445 | H82: 11555 | I82: 11570-11590 | J82: Profit of Rs.62.50/- | K82: =H82-F82 -> 62.5 | M82: =K82*N82 -> 4687.5 | N82: 75 | O82: Successful | P82: 2019-07-11 | R82: R
A83: 43 | B83: 2019-07-11 | D83: HINDUNILVR | E83: Buy | F83: 1710 | G83: 1645 | H83: 1736 | I83: 1800 | J83: Profit of Rs.26/- | K83: =H83-F83 -> 26 | L83: =K83/F83 -> 1.52% | O83: Successful | P83: 2019-07-11 | R83: H
A84: 44 | B84: 2019-07-11 | D84: EXIDEIND | E84: Buy | F84: 201.5 | G84: 195 | H84: 204.75 | I84: 210-212 | J84: Profit of Rs.3.25/- | K84: 3.25 | L84: 1.61% | O84: Successful | P84: 2019-07-11 | R84: H
A85: 45 | B85: 2019-07-12 | D85: BATAINDIA JUL FUT | E85: Buy | F85: 1337.5 | G85: 1315 | H85: 1353 | I85: 1375 | J85: Profit of Rs.15.5/- | K85: 15.5 | M85: =K85*N85 -> 8525 | N85: 550 | O85: Successful | P85: 2019-07-12 | R85: N
A86: 46 | B86: 2019-07-12 | D86: POWERGRID JUL FUT | E86: Buy | F86: 206.75 | G86: 203.75 | H86: 208.75 | I86: 212 -213 | J86: Profit of Rs.2/- | K86: 2 | M86: =K86*N86 -> 8000 | N86: 4000 | O86: Successful | P86: 2019-07-16 | R86: N
A87: 47 | B87: 2019-07-12 | D87: RBLBANK JUL FUT | E87: Buy | F87: 637 | G87: 627 | H87: 627 | I87: 660 | J87: Loss of Rs.10 /- | K87: -10 | M87: =K87*N87 -> -12000 | N87: 1200 | O87: Unsuccessful | P87: 2019-07-15 | R87: N
A88: 48 | B88: 2019-07-15 | D88: TVSMOTORS | E88: Buy | F88: 430.5 | G88: 417 | H88: 417 | I88: 450 | J88: Loss of Rs.13.5 /- | K88: =H88-F88 -> -13.5 | L88: =K88/F88 -> -3.14% | O88: Unsuccessful | P88: 2019-07-18 | R88: H
A89: 49 | B89: 2019-07-15 | D89: NIFTY JUL FUT | E89: Buy | F89: 11525 | G89: 11470 | H89: 11565 | I89: 11600 | J89: Profit of Rs.40/- | K89: =H89-F89 -> 40 | M89: =K89*N89 -> 3000 | N89: 75 | O89: Successful | P89: 2019-07-15 | R89: R
A90: 50 | B90: 2019-07-15 | D90: APOLLOHOSP | E90: Sell | F90: 1399 | G90: 1430 | H90: 1382 | I90: 1360-1350 | J90: Profit of Rs.17/- | K90: =F90-H90 -> 17 | L90: =K90/F90 -> 1.22% | O90: Successful | P90: 2019-07-15 | R90: H
A91: 51 | B91: 2019-07-15 | D91: AMBUJACEM JUL FUT | E91: Sell | F91: 219.5 | G91: 225.3 | H91: 216.25 | I91: 212-210 | J91: Profit of Rs.3.25/- | K91: =F91-H91 -> 3.25 | M91: =K91*N91 -> 8125 | N91: 2500 | O91: Successful | P91: 2019-07-18 | R91: R
A92: 52 | B92: 2019-07-16 | D92: NTPC JUL FUT | E92: Sell | F92: 128.5 | G92: 131.5 | H92: 131 | I92: 123-122 | J92: Loss of Rs.2.5 /- | K92: =F92-H92 -> -2.5 | M92: -12000 | N92: 4800 | O92: Unsuccessful | P92: 2019-07-17 | R92: N
A93: 53 | B93: 2019-07-16 | D93: M&M JUL FUT | E93: Buy | F93: 616 | G93: 605 | H93: 605 | I93: 640 | J93: Loss of Rs.11 /- | K93: =H93-F93 -> -11 | M93: -11000 | N93: 1000 | O93: Unsuccessful | P93: 2019-07-18 | R93: H
A94: 54 | B94: 2019-07-16 | D94: ACC JUL FUT | E94: Sell | F94: 1597 | G94: 1625 | H94: 1580.5 | I94: 1550 | J94: Profit of Rs.16.5/- | K94: =F94-H94 -> 16.5 | M94: 6600 | N94: 400 | O94: Successful | P94: 2019-07-18 | R94: H
A95: 55 | B95: 2019-07-16 | D95: INDUSINDBK JUL FUT | E95: Buy | F95: 1485.5 | G95: 1457 | H95: 1505.5 | I95: 1540 -1550 | J95: Profit of Rs.20/- | K95: =H95-F95 -> 20 | M95: 8000 | N95: 400 | O95: Successful | P95: 2019-07-17 | R95: N
A96: 56 | B96: 2019-07-16 | D96: NIFTY JUL FUT | E96: Sell | F96: 11655 | G96: 11740 | H96: 11635 | I96: 11500 | J96: Profit of Rs.20/- | K96: =F96-H96 -> 20 | M96: 1500 | N96: 75 | O96: Successful | P96: 2019-07-18 | R96: R
A97: 57 | B97: 2019-07-17 | D97: CIPLA | E97: Buy | F97: 549 | G97: 535 | H97: 557.5 | I97: 575-580 | J97: Profit of Rs.8.5/- | K97: =H97-F97 -> 8.5 | L97: =K97/F97 -> 1.55% | O97: Successful | P97: 2019-07-17 | R97: H
A98: 58 | B98: 2019-07-17 | D98: AXISBANK | E98: Buy | F98: 758.5 | G98: 738 | H98: 734 | I98: 790-800 | J98: Loss of Rs.24.5 /- | K98: -24.5 | L98: -3.23% | O98: Unsuccessful | P98: 2019-07-19 | R98: H
A99: 59 | B99: 2019-07-17 | D99: IGL | E99: Sell | F99: 319.5 | G99: 328 | H99: 318 | I99: 310 -305 | J99: Profit of Rs.1.5/- | K99: =F99-H99 -> 1.5 | L99: 0.47% | O99: Neutral | P99: 2019-07-22 | R99: H
A100: 60 | B100: 2019-07-17 | D100: RAYMOND JUL FUT | E100: Buy | F100: 701 | G100: 686 | H100: 686 | I100: 730 | J100: Loss of Rs.15 /- | K100: =H100-F100 -> -15 | M100: =K100*N100 -> -12000 | N100: 800 | O100: Unsuccessful | P100: 2019-07-19 | R100: N
A101: 61 | B101: 2019-07-18 | D101: LICHSGFIN | E101: Buy | F101: 541.5 | G101: 524.3 | H101: 524.3 | I101: 570-575 | J101: Loss of Rs.17.2 /- | K101: -17.2 | L101: =K101/F101 -> -3.18% | O101: Unsuccessful | P101: 2019-07-19 | R101: R
A102: 62 | B102: 2019-07-18 | D102: APOLLOHOSP JUL FUT | E102: Buy | F102: 1393 | G102: 1367 | H102: 1373 | I102: 1430-1440 | J102: Loss of Rs.20 /- | K102: =H102-F102 -> -20 | M102: =K102*N102 -> -10000 | N102: 500 | O102: Unsuccessful | P102: 2019-07-19 | R102: N
A103: 63 | B103: 2019-07-18 | D103: POWERGRID JUL FUT | E103: Buy | F103: 206.25 | G103: 203.25 | H103: 208.25 | I103: 212-213 | J103: Profit of Rs.2/- | K103: =H103-F103 -> 2 | M103: =K103*N103 -> 8000 | N103: 4000 | O103: Successful | P103: 2019-07-19 | R103: N
A104: 64 | B104: 2019-07-19 | D104: MCDOWELL-N | E104: Sell | F104: 602 | G104: 618 | H104: 591 | I104: 570 | J104: Profit of Rs.11/- | K104: =F104-H104 -> 11 | L104: =K104/F104 -> 1.83% | O104: Successful | P104: 2019-07-19 | R104: R
A105: 65 | B105: 2019-07-19 | D105: AMBUJACEM JUL FUT | E105: Buy | F105: 219.5 | G105: 214 | H105: 215 | I105: 230 | J105: Loss of Rs.4.5 /- | K105: =H105-F105 -> -4.5 | M105: =K105*N105 -> -11250 | N105: 2500 | O105: Unsuccessful | P105: 2019-07-19 | R105: N
A106: 66 | B106: 2019-07-19 | D106: NIFTY JUL FUT | E106: Buy | F106: 11532.5 | G106: 11487 | H106: 11487 | I106: 11600 | J106: Loss of Rs.45.5 /- | K106: =H106-F106 -> -45.5 | M106: =K106*N106 -> -3412.5 | N106: 75 | O106: Unsuccessful | P106: 2019-07-19 | R106: R
A107: 67 | B107: 2019-07-22 | D107: VEDL JUL FUT | E107: Sell | F107: 165 | G107: 169 | H107: 168.5 | I107: 155 | J107: Loss of Rs.3.5 /- | K107: 3.5 | M107: =K107*N107 -> 10500 | N107: 3000 | O107: Unsuccessful | P107: 2019-07-22 | R107: N
A108: 68 | B108: 2019-07-22 | D108: AXISBANK | E108: Buy | F108: 732 | G108: 715 | H108: 712.5 | I108: 755-765 | J108: Loss of Rs.19.50/- | K108: -19.5 | L108: =K108/F108 -> -2.66% | O108: Unsuccessful | P108: 2019-07-24 | R108: H
A109: 69 | B109: 2019-07-22 | D109: BANKINDIA | E109: Buy | F109: 80.5 | G109: 78 | H109: 78 | I109: 84-85 | J109: Loss of Rs.2.50/- | K109: =H109-F109 -> -2.5 | L109: =K109/F109 -> -3.11% | O109: Unsuccessful | P109: 2019-07-24 | R109: H
A110: 70 | B110: 2019-07-22 | D110: RAYMOND JUL FUT | E110: Buy | F110: 681 | G110: 666 | H110: 666 | I110: 700 | J110: Loss of Rs.15/- | K110: =H110-F110 -> -15 | M110: =K110*N110 -> -12000 | N110: 800 | O110: Unsuccessful | P110: 2019-07-23 | R110: R
A111: 71 | B111: 2019-07-22 | D111: POWERGRID JUL FUT | E111: Buy | F111: 204.25 | G111: 201.25 | H111: 206.15 | I111: 211 | J111: Profit of Rs.1.90/- | K111: =H111-F111 -> 1.9 | M111: =K111*N111 -> 7600 | N111: 4000 | O111: Successful | P111: 2019-07-23 | R111: N
A112: 72 | B112: 2019-07-23 | D112: MFSL AUG FUT | E112: Buy | F112: 408 | G112: 397 | H112: 414.5 | I112: 430 | J112: Profit of Rs.6.50/- | K112: =H112-F112 -> 6.5 | M112: =K112*N112 -> 7800 | N112: 1200 | O112: Successful | P112: 2019-07-24 | R112: N
A113: 73 | B113: 2019-07-24 | D113: IGL | E113: Sell | F113: 322.5 | G113: 331 | H113: 318.5 | I113: 310-305 | J113: Profit of Rs.4/- | K113: =F113-H113 -> 4 | L113: =K113/F113 -> 1.24% | O113: Successful | P113: 2019-07-24 | R113: H
A114: 74 | B114: 2019-07-24 | D114: NIFTY JUL FUT | E114: Buy | F114: 11235 | G114: 11177 | H114: 11277.5 | I114: 11280-11300 | J114: Profit of Rs.42.50/- | K114: =H114-F114 -> 42.5 | M114: =K114*N114 -> 3187.5 | N114: 75 | O114: Successful | P114: 2019-07-24 | R114: R
A115: 75 | B115: 2019-07-25 | D115: RELIANCE AUG FUT | E115: Buy | F115: 1241.5 | G115: 1218 | H115: 1218 | I115: 1275-1280 | J115: Loss of Rs.23.50/- | K115: -23.5 | M115: -11750 | N115: 500 | O115: Unsuccessful | P115: 2019-07-26
A116: 76 | B116: 2019-07-25 | D116: AMARAJABAT AUG FUT | E116: Buy | F116: 630 | G116: 613 | H116: 641.5 | I116: 650-660 | J116: Profit of Rs.11.50/- | K116: =H116-F116 -> 11.5 | M116: =K116*N116 -> 8050 | N116: 700 | O116: Successful | P116: 2019-07-26
A117: 77 | B117: 2019-07-26 | D117: AMBUJACEM AUG FUT | E117: Buy | F117: 212-213 | G117: 206 | I117: 222-224 | J117: Open
A118: 78 | B118: 2019-07-26 | D118: NIFTY AUG FUT | E118: Buy | F118: 11275 | G118: 11220 | H118: 11325 | I118: 11370-11400 | J118: Profit of Rs.50/- | K118: =H118-F118 -> 50 | M118: =K118*N118 -> 3750 | N118: 75 | O118: Successful | P118: 2019-07-26
A119: 79 | B119: 2019-07-26 | D119: SBIN | E119: Buy | F119: 342-344 | G119: 334 | I119: 355-360 | J119: Open
A120: 80 | B120: 2019-07-26 | D120: BAJFINANCE AUG FUT | E120: Sell | F120: 3230 | G120: 3277.7 | H120: 3277.7 | I120: 3120-3100 | J120: Loss of Rs.47.70/- | K120: =H120-F120 -> 47.7 | M120: =K120*N120 -> 11925 | N120: 250 | O120: Unsuccessful | P120: 2019-07-26
A121: 81 | B121: 2019-07-26 | D121: KOTAKBANK AUG FUT | E121: Buy | F121: 1494 | G121: 1463 | H121: 1513.5 | I121: 1540-1550 | J121: Profit of Rs.19.5/- | K121: 19.5 | M121: 7800 | N121: 400 | O121: Successful | P121: 2019-07-26
A122: 82 | B122: 2019-07-26 | D122: TATAGLOBAL AUG FUT | E122: Sell | F122: 261-262 | G122: 266.5 | I122: 250 | J122: Open
A126: CLBS = Closing Basis ***
A127: Dividend adjusted <> | F127: Reinitiated $
F128: Revised stoploss #
A130: Master Trade High Risk
A131: Sr.no | B131: Date | D131: Company | E131: Rec | F131: Rec Price | G131: Stop Loss | H131: Call Closed At | I131: Target | J131: Remark | K131: Profit / Loss per share | L131: Gain / Loss per Lot | M131: Lot | N131: Status | O131: Closed Date
A132: 1 | B132: 2019-07-01 | D132: GAIL JUL FUT | E132: Buy | F132: 310.5 | G132: 298 | H132: 314.25 | I132: 325 | J132: Profit of Rs.3 /- | K132: =H132-F132 -> 3.75 | L132: =3*M132 -> 8001 | M132: 2667 | N132: Successful | O132: 2019-07-01 | R132: H
D133: GAIL 320 CE | E133: Sell | F133: 6 | H133: 6.75 | K133: =F133-H133 -> -0.75
A134: 2 | B134: 2019-07-03 | D134: BIOCON JUL FUT | E134: Buy | F134: 252 | G134: 243 | H134: 244 | I134: 265-268 | J134: Loss of Rs.8 /- | K134: =H134-F134 -> -8 | L134: =K134*M134 -> -14400 | M134: 1800 | N134: Unsuccessful | O134: 2019-07-05 | R134: R
A135: 3 | B135: 2019-07-03 | D135: GAIL JUL FUT | E135: Buy | F135: 153.25 | G135: 148.5 | H135: 148.5 | I135: 162.5 | J135: Loss of Rs.2.75 /- | K135: =H135-F135 -> -4.75 | L135: =-2.75*M135 -> -14668.5 | M135: 5334 | N135: Unsuccessful | O135: 2019-07-09 | R135: H
D136: GAIL 315 CE | E136: Sell | F136: 3 | H136: 1 | K136: =F136-H136 -> 2
A137: 4 | B137: 2019-07-12 | D137: HINDUNILVR JUL FUT | E137: Buy | F137: 1727.5 | G137: 1680 | H137: 1758 | I137: 1800 | J137: Profit of Rs.26.5 /- | K137: =H137-F137 -> 30.5 | L137: =26.5*M137 -> 7950 | M137: 300 | N137: Successful | O137: 2019-07-17 | R137: H
D138: HINDUNILVR 1760 CE | E138: Sell | F138: 21 | H138: 25 | K138: =F138-H138 -> -4
A139: 5 | B139: 2019-07-12 | D139: BRITANNIA JUL FUT | E139: Buy | F139: 2755 | G139: 2685 | H139: 2797.5 | I139: 2900 | J139: Profit of Rs.42.5/- | K139: =H139-F139 -> 42.5 | L139: =K139*M139 -> 8500 | M139: 200 | N139: Successful | O139: 2019-07-12 | R139: R
A140: 6 | B140: 2019-07-16 | D140: BRITANNIA JUL FUT | E140: Buy | F140: 2750 | G140: 2675 | H140: 2797.5 | I140: 2900 | J140: Profit of Rs.47.5/- | K140: =H140-F140 -> 47.5 | L140: =K140*M140 -> 9500 | M140: 200 | N140: Successful | O140: 2019-07-17 | R140: R
A141: 7 | B141: 2019-07-24 | D141: NIFTY AUG FUT | E141: Buy | F141: 11310-11330 | G141: 11130 | I141: 11600 | J141: Open | R141: H
D142: NIFTY 29AUG 11500 CE | E142: Sell | F142: 95-100 | R142: H
A143: 8 | B143: 2019-07-24 | D143: BANKNIFTY AUG FUT | E143: Buy | F143: 29085 | G143: 28450 | H143: 29395 | I143: 30000 | J143: Profit of Rs.240 /- | K143: =H143-F143 -> 310 | L143: =240*20 -> 4800 | M143: 20 | N143: Successful | O143: 2019-07-26 | R143: H
D144: BANKNIFTY 29AUG 29500 CE | E144: Sell | F144: 350 | H144: 420 | K144: =F144-H144 -> -70 | R144: H
A145: 9 | B145: 2019-07-26 | D145: BAJAJFINSERV AUG FUT | E145: Buy | F145: 7280-7300 | G145: 7550 | I145: 7000-6900 | J145: Open
D146: BAJAJFINSERV 29AUG 7100 PE | E146: Sell | F146: 165-175
A149: Master Trade Medium Risk
A150: Sr.no | B150: Date | D150: Company | E150: Rec | F150: Rec Price | G150: Stop Loss | H150: Call Closed At | I150: Target | J150: Remark | K150: Profit/ Loss per lot | L150: Gain / Loss per Lot | M150: Lot | N150: Status | O150: Closed Date
A151: 1 | B151: 2019-06-28 | D151: NIFTY 11950 CE 4-JULY | E151: Buy | F151: 39.5 | G151: 18 | H151: 18 | I151: 70-80 | J151: Loss of Rs.21.5 /- | K151: =H151-F151 -> -21.5 | L151: =K151*M151 -> -1612.5 | M151: 75 | N151: Unsuccessful | O151: 2019-07-02 | R151: H
A152: 2 | B152: 2019-07-04 | D152: NIFTY 4-Jul 11950 PE | E152: Buy | F152: 16 | H152: 27 | I152: 45 | J152: Profit of Rs.11 /- | K152: 11 | L152: 825 | M152: 75 | N152: Successful | O152: 2019-07-04 | R152: R
A153: 3 | B153: 2019-07-05 | D153: NIFTY 11-Jul 11850 PE | E153: Buy | F153: 45 | H153: 60 | I153: 100 | J153: Profit of Rs.15 /- | K153: 15 | L153: 1125 | M153: 75 | N153: Successful | O153: 2019-07-05 | R153: H
A154: 4 | B154: 2019-07-05 | D154: NIFTY 11-Jul 11850 PE | E154: Buy | F154: 49 | H154: 64.5 | I154: 100 | J154: Profit of Rs.15.5 /- | K154: 15.5 | L154: 1162.5 | M154: 75 | N154: Successful | O154: 2019-07-05 | R154: H
A155: 5 | B155: 2019-07-05 | D155: NIFTY 11-Jul 11850 PE | E155: Buy | F155: 45 | H155: 59 | I155: 100 | J155: Profit of Rs.14 /- | K155: 14 | L155: 1050 | M155: 75 | N155: Successful | O155: 2019-07-05 | R155: H
A156: 6 | B156: 2019-07-08 | D156: NIFTY 11-Jul 11750 CE | E156: Buy | F156: 29.31 | H156: 12 | I156: 60-80 | J156: Loss of Rs.17.31/- | K156: -17.31 | L156: -1298.25 | M156: 75 | N156: Unsuccessful | O156: 2019-07-08 | R156: H
A157: 7 | B157: 2019-07-09 | D157: NIFTY 11550 CE 11-JULY | E157: Buy | F157: 42.5 | G157: 18 | H157: 55.5 | I157: 80-90 | J157: Profit of Rs.13 /- | K157: 13 | L157: 975 | M157: 75 | N157: Successful | O157: 2019-07-09 | R157: H
A158: 8 | B158: 2019-07-09 | D158: COALINDIA 240 CE JULY | E158: Buy | F158: 3.25 | G158: 1.8 | H158: 1.9 | I158: 6-6.5 | J158: Loss of Rs.1.35/- | K158: -1.35 | L158: -2970 | M158: 2200 | N158: Unsuccessful | O158: 2019-07-09 | R158: H
A159: 9 | B159: 2019-07-09 | D159: NIFTY 11550 CE 11-JULY | E159: Buy | F159: 38.5 | G159: 13 | H159: 49 | I159: 80-90 | J159: Profit of Rs.10.5 /- | K159: =H159-F159 -> 10.5 | L159: =K159*M159 -> 787.5 | M159: 75 | N159: Successful | O159: 2019-07-09 | R159: H
A160: 10 | B160: 2019-07-09 | D160: NIFTY 11550 CE 11-JULY | E160: Buy | F160: 31.5 | G160: 10 | H160: 48 | I160: 70 | J160: Profit of Rs.16.5/- | K160: =H160-F160 -> 16.5 | L160: =K160*M160 -> 1237.5 | M160: 75 | N160: Successful | O160: 2019-07-09 | R160: H
A161: 11 | B161: 2019-07-10 | D161: NIFTY 11600 CE 18-JULY | E161: Buy | F161: 61 | G161: 37 | H161: 37 | I161: 100 | J161: Loss of Rs.24/- | K161: =H161-F161 -> -24 | L161: =K161*M161 -> -1800 | M161: 75 | N161: Unsuccessful | O161: 2019-07-10 | R161: H
A162: 12 | B162: 2019-07-12 | D162: NIFTY 11550 PE 18-JULY | E162: Buy | F162: 31.5 | G162: 15 | H162: 41 | I162: 55 -60 | J162: Profit of Rs.9.5/- | K162: 9.5 | L162: 712.5 | M162: 75 | N162: Successful | O162: 2019-07-12 | R162: H
A163: 13 | B163: 2019-07-16 | D163: NIFTY 11600 PE 18-JULY | E163: Buy | F163: 30.5 | G163: 17 | H163: 20 | I163: 55 -60 | J163: Loss of Rs.10.5/- | K163: -10.5 | L163: -787.5 | M163: 75 | N163: Unsuccessful | O163: 2019-07-16 | R163: H
A164: 14 | B164: 2019-07-17 | D164: BANKNIFTY 30700 PE 18 JUL | E164: Buy | F164: 82.5 | H164: 122.5 | I164: 200 | J164: Profit of Rs.40/- | K164: 40 | L164: 800 | M164: 20 | N164: Successful | O164: 2019-07-17 | R164: R
A165: 15 | B165: 2019-07-18 | D165: HDFCBANK 2420 CE JULY | E165: Buy | F165: 29 | G165: 10 | H165: 8.5 | I165: 60 | J165: Loss of Rs.20.5/- | K165: -20.5 | L165: -5125 | M165: 250 | N165: Unsuccessful | O165: 2019-07-22 | R165: H
A166: 16 | B166: 2019-07-18 | D166: NIFTY 11700 PE 18 JUL | E166: Buy | F166: 37.5 | G166: 80 | H166: 55 | J166: Profit of Rs.17.5/- | K166: 17.5 | L166: 1312.5 | M166: 75 | N166: Successful | O166: 2019-07-18 | R166: R
A167: 17 | B167: 2019-07-18 | D167: DABUR 420 PE JUL | E167: Buy | F167: 3.55 | H167: 5.05 | I167: 6.-8 | J167: Profit of Rs.1.5/- | K167: 1.5 | L167: 1875 | M167: 1250 | N167: Successful | O167: 2019-07-18 | R167: H
A168: 18 | B168: 2019-07-19 | D168: BANKNIFTY 30700 CE JUL | E168: Buy | F168: 100 | H168: 0 | I168: 250 | J168: Loss of Rs.100/- | K168: -100 | L168: -2000 | M168: 20 | N168: Unsuccessful | O168: 2019-07-25 | R168: H
A169: 19 | B169: 2019-07-22 | D169: YESBANK JUL 90 PE | E169: Buy | F169: 2.1 | H169: 3.8 | I169: 7 | J169: Profit of Rs.1.7/- | K169: =H169-F169 -> 1.7 | L169: =K169*M169 -> 3740 | M169: 2200 | N169: Successful | O169: 2019-07-22 | R169: R
A170: 20 | B170: 2019-07-23 | D170: HINDALCO JUL 200 PE | E170: Buy | F170: 1.25 | H170: 2.9 | I170: 5 | J170: Profit of Rs.1.65/- | K170: =H170-F170 -> 1.65 | L170: =K170*M170 -> 5775 | M170: 3500 | N170: Successful | O170: 2019-07-24 | R170: R
A171: 21 | B171: 2019-07-23 | D171: SBIN JUL 350 CE | E171: Buy | F171: 2.25 | G171: 0.5 | H171: 0.5 | I171: 6 | J171: Loss of Rs.1.75/- | K171: =H171-F171 -> -1.75 | L171: =K171*M171 -> -5250 | M171: 3000 | N171: Unsuccessful | O171: 2019-07-24 | R171: R
A172: 22 | B172: 2019-07-24 | D172: NIFTY JUL 11300 CE | E172: Buy | F172: 26 | H172: 36.5 | I172: 70 | J172: Profit of Rs.10.50/- | K172: =H172-F172 -> 10.5 | L172: =K172*M172 -> 787.5 | M172: 75 | N172: Successful | O172: 2019-07-25 | R172: R
A173: 23 | B173: 2019-07-25 | D173: NIFTY 01-AUG 11350 CE | E173: Buy | F173: 35 | H173: 49 | I173: 60-80 | J173: Profit of Rs.14/- | K173: =H173-F173 -> 14 | L173: =K173*M173 -> 1050 | M173: 75 | N173: Successful | O173: 2019-07-25
A174: 24 | B174: 2019-07-25 | D174: NIFTY 01-AUG 11350 CE | E174: Buy | F174: 33 | H174: 43 | I174: 60-80 | J174: Profit of Rs.10/- | K174: =H174-F174 -> 10 | L174: =K174*M174 -> 750 | M174: 75 | N174: Successful | O174: 2019-07-26
A176: Techno -Funda (positional)
A177: Sr.no | B177: Date | D177: Company | E177: Rec | F177: Rec Price | G177: Stop Loss*** | H177: Call Closed At | I177: Target | J177: Remark | K177: Profit / Loss per Share | L177: Gain / Loss % | M177: Status | N177: Closed Date | O177: NSE Closed Price
A178: 1 | B178: 2019-04-04 | D178: FINPIPE | E178: Buy | F178: 474.5 | G178: 435 | H178: 524 | I178: 560 | J178: Profit of Rs.49.5 /- | K178: =H178-F178 -> 49.5 | L178: =K178/F178 -> 10.43% | M178: Successful | N178: 2019-07-01 | R178: H
A179: 2 | B179: 2019-05-24 | D179: APOLLOTYRE | E179: Buy | F179: 183.5 | G179: 178.7 | H179: 181.5 | I179: 220-230 | J179: Loss of Rs.2/- | K179: =H179-F179 -> -2 | L179: -1.09% | M179: Unsuccessful | N179: 2019-07-24 | R179: R
A182: CLBS = Closing Basis *** | F182: Reinitiated $
A183: Dividend adjusted <> | F183: Revised stoploss #
B188: Investment Idea
A189: Sr.no | B189: Date | D189: Company | E189: Rec | F189: Rec Price | G189: Point of Review | H189: Close Rate | I189: Target | J189: Remark | K189: Profit / Loss per Share | L189: Gain / Loss % | M189: Status | N189: Closed Date
A190: 1 | B190: 2013-11-01 | D190: L&T Finance Holding | E190: Accu | F190: 82.00 | G190: - | H190: 100 | I190: 100.00 | J190: Target Achieved | K190: =H190-F190 -> 18.00 | L190: =K190/F190 -> 21.95% | M190: Successful | N190: 2016-10-14
A191: 2 | B191: 2014-06-04 | D191: Finolex Inds | E191: Buy | F191: 257.00 | G191: - | H191: 300 | I191: 300.00 | J191: Target Achieved | K191: =H191-F191 -> 43.00 | L191: 16.73% | M191: Successful | N191: 2014-07-02
A192: 3 | B192: 2014-07-08 | D192: JK Cement | E192: Buy | F192: 393.00 | G192: - | H192: 468 | I192: 468.00 | J192: Target Achieved | K192: =H192-F192 -> 75.00 | L192: 19.08% | M192: Successful | N192: 2014-08-12
A193: 4 | B193: 2014-08-06 | D193: Finolex Cables | E193: Buy | F193: 205.00 | G193: - | H193: 275 | I193: 250.00 | J193: Target Achieved | K193: 70.00 | L193: 34.15% | M193: Successful | N193: 2014-11-19
A194: 5 | B194: 2014-09-04 | D194: Exide Inds | E194: Buy | F194: 162.00 | G194: - | H194: 190 | I194: 190.00 | J194: Target Achieved | K194: 28.00 | L194: 17.28% | M194: Successful | N194: 2015-01-02
A195: 6 | B195: 2014-09-04 | D195: Deepak Nitrite | E195: Buy | F195: 75.00 | G195: - | H195: 91.5 | I195: 95-100 | J195: Profit of Rs.16.50/- | K195: 16.50 | L195: 22.00% | M195: Successful | N195: 2014-11-11
A196: 7 | B196: 2014-10-01 | D196: Mercks | E196: Buy | F196: 850.00 | G196: - | H196: 982.5 | I196: 1050.00 | J196: Profit of Rs.132.50/- | K196: 132.50 | L196: 15.59% | M196: Successful | N196: 2015-02-04
A197: 8 | B197: 2014-10-01 | D197: Grindwell Norton | E197: Buy | F197: 475.00 | G197: - | H197: 515 | I197: 600.00 | J197: Profit of Rs.40/- | K197: 40.00 | L197: 8.42% | M197: Successful | N197: 2014-10-27
A198: 9 | B198: 2014-10-01 | D198: Snowman Logistics | E198: Buy | F198: 86.00 | G198: - | H198: 99 | I198: 140.00 | J198: Profit of Rs.13.00/- | K198: 13.00 | L198: 15.12% | M198: Successful | N198: 2014-10-27
A199: 10 | B199: 2014-10-14 | D199: Birla Corp | E199: Buy | F199: 496.60 | G199: - | H199: 621 | I199: 580.00 | J199: Target Achieved | K199: 124.40 | L199: 25.05% | M199: Successful | N199: 2016-08-23
A200: 11 | B200: 2014-10-14 | D200: Ultratech Cem | E200: Buy | F200: 2481.90 | G200: - | H200: 2840 | I200: 2870.00 | J200: Profit of Rs.358.10/- | K200: 358.10 | L200: 14.43% | M200: Successful | N200: 2015-01-13
A201: 12 | B201: 2014-10-16 | D201: Sintex Inds | E201: Buy | F201: 84.50 | G201: - | H201: 93 | I201: 110.00 | J201: Profit of Rs.8.50/- | K201: 8.50 | L201: 10.06% | M201: Successful | N201: 2014-10-27
A202: 13 | B202: 2014-10-16 | D202: HSIL | E202: Buy | F202: 401.00 | G202: - | H202: 428 | I202: 450.00 | J202: Profit of Rs.27.00/- | K202: 27.00 | L202: 6.73% | M202: Successful | N202: 2015-01-16
A203: 14 | B203: 2014-10-16 | D203: Eveready Inds | E203: Buy | F203: 101.00 | G203: - | H203: 112 | I203: 120.00 | J203: Profit of Rs.11.00/- | K203: 11.00 | L203: 10.89% | M203: Successful | N203: 2014-10-27
A204: 15 | B204: 2014-11-11 | D204: Pennar Inds | E204: Buy | F204: 59.00 | G204: - | H204: 76 | I204: 76.00 | J204: Target Achieved | K204: 17.00 | L204: 28.81% | M204: Successful | N204: 2017-10-24
A205: 16 | B205: 2014-11-11 | D205: Snowman Logistics | E205: Buy | F205: 99.00 | G205: - | H205: 120 | I205: 120.00 | J205: Profit of Rs.21/- | K205: 21.00 | L205: 21.21% | M205: Successful | N205: 2014-11-17
A206: 17 | B206: 2014-11-13 | D206: Dharamsi Morarji Chem | E206: Buy | F206: 22.00 | G206: - | H206: 33.55 | I206: 32.00 | J206: Profit of Rs 11.55/- | K206: 11.55 | L206: 52.50% | M206: Successful | N206: 2015-07-03
A207: 18 | B207: 2014-12-03 | D207: Tatachem | E207: Buy | F207: 440.00 | G207: - | H207: 520 | I207: 520.00 | J207: Profit of Rs 80.00/- | K207: 80.00 | L207: 18.18% | M207: Successful | N207: 2015-07-23
A208: 19 | B208: 2014-12-03 | D208: Advanta | E208: Buy | F208: 360.00 | G208: - | H208: 427 | I208: 425.00 | J208: Profit of Rs.67.00/- | K208: 67.00 | L208: 18.61% | M208: Successful | N208: 2015-02-23
A209: 20 | B209: 2015-01-08 | D209: GDL | E209: Buy | F209: 360.00 | G209: - | H209: 455 | I209: 420.00 | J209: Profit of Rs.95.00/- | K209: 95.00 | L209: 26.39% | M209: Successful | N209: 2015-01-20
A210: 21 | B210: 2015-01-08 | D210: NRB Bearing | E210: Buy | F210: 130.00 | H210: 175.5 | I210: 165.00 | J210: Profit of Rs 45.50/- | K210: 45.50 | L210: 35.00% | M210: Successful | N210: 2017-12-19
A211: 22 | B211: 2015-02-05 | D211: GSFC | E211: Accu | F211: 98.00 | H211: 120 | I211: 120.00 | J211: Target Achieved | K211: 22.00 | L211: 22.45% | M211: Successful | N211: 2017-01-18
A212: 23 | B212: 2015-02-05 | D212: Sundrmfast | E212: Accu | F212: 196.00 | H212: 262 | I212: 255.00 | J212: Target Achieved | K212: 66.00 | L212: 33.67% | M212: Successful | N212: 2016-08-17
A213: 24 | B213: 2015-03-04 | D213: GPPL | E213: Accu | F213: 235 | H213: 77.00 | I213: 280-285 | J213: Loss of Rs.158/- | K213: =H213-F213 -> -158.00 | L213: -67.23% | M213: Unsuccessful | N213: 2019-02-26
A214: 25 | B214: 2015-03-04 | D214: ORIENTCEM | E214: Accu | F214: 185.00 | H214: 224 | I214: 220-225 | J214: Target Achieved | K214: 39.00 | L214: =K214/F214 -> 21.08% | M214: Successful | N214: 2016-10-04
A215: 26 | B215: 2015-03-27 | D215: PFS | E215: Accu | F215: 49.5 | H215: 15.85 | I215: 67.00 | J215: Loss of Rs.33.65/- | K215: =H215-F215 -> -33.65 | L215: =K215/F215 -> -68% | M215: Unsuccessful | N215: 2019-06-11
A216: 27 | B216: 2015-03-30 | D216: Walchandnagar Ind Ltd | E216: Accu | F216: 183.50 | H216: 219 | I216: 218.00 | J216: Profit of Rs.35.50/- | K216: 35.50 | L216: =K216/F216 -> 19.35% | M216: Successful | N216: 2015-04-09
A217: 28 | B217: 2015-04-20 | D217: Kalpataru Power Transmission Ltd | E217: Accu | F217: =(227+237)/2 -> 232.00 | H217: 298 | I217: 298.00 | J217: Target Achieved | K217: 66.00 | L217: 28.45% | M217: Successful | N217: 2017-03-29
A218: 29 | B218: 2015-05-04 | D218: Mastek Ltd | E218: Buy | F218: 385.00 | H218: =212.5+331 -> 543.5 | I218: 510.00 | J218: Profit of Rs 158.50/- | K218: 158.50 | L218: 41.17% | M218: Successful | N218: 2015-08-19
A219: 30 | B219: 2015-05-04 | D219: Suprajit Eng | E219: Buy | F219: 115.50 | H219: 146 | I219: 142.00 | J219: Profit of Rs 30.50/- | K219: 30.50 | L219: 26.41% | M219: Successful | N219: 2015-07-17
... 118 more rows

Sheet Sheet2 (hidden)
A1: SYMBOL | B1: SERIES | C1: OPEN | D1: HIGH | E1: LOW | F1: CLOSE | G1: LAST | H1: PREVCLOSE | I1: TOTTRDQTY | J1: TOTTRDVAL | K1: TIMESTAMP | L1: TOTALTRADES | M1: ISIN | N1: ISIN
A2: 20MICRONS | B2: EQ | C2: 35.9 | D2: 35.9 | E2: 34.7 | F2: 35.15 | G2: 35.05 | H2: 35.1 | I2: 7698 | J2: 272092.8 | K2: 2019-07-26 | L2: 101 | M2: INE144J01027
A3: 3IINFOTECH | B3: EQ | C3: 2.5 | D3: 2.65 | E3: 2.4 | F3: 2.55 | G3: 2.55 | H3: 2.45 | I3: 1486242 | J3: 3785973.3 | K3: 2019-07-26 | L3: 616 | M3: INE748C01020
A4: 3MINDIA | B4: EQ | C4: 20900 | D4: 21157.65 | E4: 20743.1 | F4: 20903.4 | G4: 20950 | H4: 21162.15 | I4: 2335 | J4: 48721582.85 | K4: 2019-07-26 | L4: 578 | M4: INE470A01017
A5: 3PLAND | B5: EQ | C5: 7.5 | D5: 7.85 | E5: 7.4 | F5: 7.85 | G5: 7.65 | H5: 7.5 | I5: 1425 | J5: 10633.85 | K5: 2019-07-26 | L5: 8 | M5: INE105C01023
A6: 5PAISA | B6: EQ | C6: 195 | D6: 203 | E6: 190 | F6: 195.45 | G6: 195.75 | H6: 196.6 | I6: 11362 | J6: 2241283.3 | K6: 2019-07-26 | L6: 650 | M6: INE618L01018
A7: 63MOONS | B7: EQ | C7: 93.3 | D7: 93.3 | E7: 88.35 | F7: 88.9 | G7: 89.2 | H7: 92.9 | I7: 94402 | J7: 8550672.8 | K7: 2019-07-26 | L7: 1628 | M7: INE111B01023
A8: 8KMILES | B8: EQ | C8: 66.35 | D8: 66.35 | E8: 66.35 | F8: 66.35 | G8: 66.35 | H8: 69.8 | I8: 67142 | J8: 4454871.7 | K8: 2019-07-26 | L8: 412 | M8: INE650K01021
A9: A2ZINFRA | B9: EQ | C9: 10.1 | D9: 11.1 | E9: 9.9 | F9: 10.8 | G9: 11 | H9: 10.35 | I9: 748407 | J9: 7776878 | K9: 2019-07-26 | L9: 1103 | M9: INE619I01012
A10: AARTIDRUGS | B10: EQ | C10: 487.9 | D10: 495 | E10: 480 | F10: 487 | G10: 486.4 | H10: 484.25 | I10: 7876 | J10: 3824241.65 | K10: 2019-07-26 | L10: 578 | M10: INE767A01016
A11: AARTIIND | B11: EQ | C11: 1661.65 | D11: 1661.65 | E11: 1621.05 | F11: 1638.4 | G11: 1638.85 | H11: 1648.05 | I11: 61817 | J11: 101071106.5 | K11: 2019-07-26 | L11: 2635 | M11: INE769A01020
A12: AARVEEDEN | B12: EQ | C12: 18.15 | D12: 18.15 | E12: 16.75 | F12: 17 | G12: 17 | H12: 16.75 | I12: 4257 | J12: 74050.8 | K12: 2019-07-26 | L12: 122 | M12: INE273D01019
A13: AAVAS | B13: EQ | C13: 1481.1 | D13: 1481.3 | E13: 1450 | F13: 1460.35 | G13: 1453 | H13: 1469.5 | I13: 4453 | J13: 6523617.45 | K13: 2019-07-26 | L13: 1124 | M13: INE216P01012
A14: ABAN | B14: EQ | C14: 31.85 | D14: 31.85 | E14: 30.5 | F14: 30.85 | G14: 31.1 | H14: 31.5 | I14: 99289 | J14: 3067493.4 | K14: 2019-07-26 | L14: 972 | M14: INE421A01028
A15: ABB | B15: EQ | C15: 1410 | D15: 1428 | E15: 1370 | F15: 1382.05 | G15: 1379.9 | H15: 1402.8 | I15: 93398 | J15: 129778088.5 | K15: 2019-07-26 | L15: 6523 | M15: INE117A01022
A16: ABBOTINDIA | B16: EQ | C16: 8673.2 | D16: 8673.2 | E16: 8536 | F16: 8571.7 | G16: 8570 | H16: 8599.35 | I16: 3230 | J16: 27687836.95 | K16: 2019-07-26 | L16: 324 | M16: INE358A01014
A17: ABCAPITAL | B17: EQ | C17: 85.85 | D17: 87.4 | E17: 83.55 | F17: 87.05 | G17: 87 | H17: 85.9 | I17: 1566872 | J17: 134010540.6 | K17: 2019-07-26 | L17: 19339 | M17: INE674K01013
A18: ABFRL | B18: EQ | C18: 202.2 | D18: 203.7 | E18: 196 | F18: 196.85 | G18: 197 | H18: 204.95 | I18: 429929 | J18: 85711041.25 | K18: 2019-07-26 | L18: 14337 | M18: INE647O01011
A19: ABSLNN50ET | B19: EQ | C19: 262.26 | D19: 266 | E19: 261.93 | F19: 265 | G19: 265 | H19: 261.93 | I19: 1968 | J19: 523377.2 | K19: 2019-07-26 | L19: 9 | M19: INF209KB1B87
A20: ACC | B20: EQ | C20: 1585 | D20: 1589 | E20: 1568.1 | F20: 1581.95 | G20: 1580.5 | H20: 1585.25 | I20: 480420 | J20: 759421683.4 | K20: 2019-07-26 | L20: 30968 | M20: INE012A01025
A21: ACCELYA | B21: EQ | C21: 825 | D21: 835 | E21: 825 | F21: 830.3 | G21: 832.65 | H21: 829.45 | I21: 7762 | J21: 6442711.85 | K21: 2019-07-26 | L21: 461 | M21: INE793A01012
A22: ACE | B22: EQ | C22: 78.55 | D22: 79.8 | E22: 77.75 | F22: 78.15 | G22: 78 | H22: 79.15 | I22: 88038 | J22: 6882413.5 | K22: 2019-07-26 | L22: 901 | M22: INE731H01025
A23: ADANIENT | B23: EQ | C23: 129.4 | D23: 134.2 | E23: 128.4 | F23: 131.85 | G23: 131.6 | H23: 129.4 | I23: 3632048 | J23: 479057772.7 | K23: 2019-07-26 | L23: 20489 | M23: INE423A01024
A24: ADANIGAS | B24: EQ | C24: 161.9 | D24: 162.9 | E24: 159.15 | F24: 160.85 | G24: 160 | H24: 160.35 | I24: 274778 | J24: 44275871.4 | K24: 2019-07-26 | L24: 3864 | M24: INE399L01023
A25: ADANIGREEN | B25: EQ | C25: 48.8 | D25: 50.35 | E25: 48.2 | F25: 49.6 | G25: 49.3 | H25: 48.8 | I25: 777960 | J25: 38439247.6 | K25: 2019-07-26 | L25: 3032 | M25: INE364U01010
A26: ADANIPORTS | B26: EQ | C26: 380.65 | D26: 384.4 | E26: 377.2 | F26: 381.65 | G26: 380.6 | H26: 380.35 | I26: 2701597 | J26: 1029791508 | K26: 2019-07-26 | L26: 46337 | M26: INE742F01042
A27: ADANIPOWER | B27: EQ | C27: 62 | D27: 63.4 | E27: 61.45 | F27: 62.9 | G27: 62.85 | H27: 62.1 | I27: 8597588 | J27: 537040441.5 | K27: 2019-07-26 | L27: 18253 | M27: INE814H01011
A28: ADANITRANS | B28: EQ | C28: 214 | D28: 219.5 | E28: 212.8 | F28: 215.4 | G28: 214.8 | H28: 215.4 | I28: 32510 | J28: 7046969.6 | K28: 2019-07-26 | L28: 1977 | M28: INE931S01010
A29: ADFFOODS | B29: EQ | C29: 257.45 | D29: 265 | E29: 252.5 | F29: 261.9 | G29: 260 | H29: 254.6 | I29: 18077 | J29: 4660343.35 | K29: 2019-07-26 | L29: 590 | M29: INE982B01019
A30: ADHUNIK | B30: EQ | C30: 1.25 | D30: 1.25 | E30: 1.25 | F30: 1.25 | G30: 1.25 | H30: 1.2 | I30: 35860 | J30: 44825 | K30: 2019-07-26 | L30: 21 | M30: INE400H01019
A31: ADHUNIKIND | B31: EQ | C31: 94.9 | D31: 96.1 | E31: 94.55 | F31: 95.5 | G31: 94.7 | H31: 94.15 | I31: 14902 | J31: 1423132.85 | K31: 2019-07-26 | L31: 113 | M31: INE452L01012
A32: ADLABS | B32: EQ | C32: 4.25 | D32: 4.25 | E32: 4.15 | F32: 4.25 | G32: 4.25 | H32: 4.05 | I32: 592638 | J32: 2509285.05 | K32: 2019-07-26 | L32: 558 | M32: INE172N01012
A33: ADORWELD | B33: EQ | C33: 306.95 | D33: 356.6 | E33: 304.95 | F33: 312.85 | G33: 313 | H33: 302.2 | I33: 21849 | J33: 6818133.05 | K33: 2019-07-26 | L33: 980 | M33: INE045A01017
A34: ADROITINFO | B34: EQ | C34: 10.4 | D34: 10.4 | E34: 9.5 | F34: 9.8 | G34: 10 | H34: 9.95 | I34: 4661 | J34: 45713.7 | K34: 2019-07-26 | L34: 28 | M34: INE737B01033
A35: ADSL | B35: EQ | C35: 13.4 | D35: 13.55 | E35: 13 | F35: 13.35 | G35: 13.4 | H35: 13.55 | I35: 8686 | J35: 115258.1 | K35: 2019-07-26 | L35: 39 | M35: INE102I01027
A36: ADVANIHOTR | B36: EQ | C36: 56.95 | D36: 56.95 | E36: 55 | F36: 55.35 | G36: 55.35 | H36: 55.75 | I36: 2531 | J36: 140035.85 | K36: 2019-07-26 | L36: 43 | M36: INE199C01026
A37: ADVENZYMES | B37: EQ | C37: 155.1 | D37: 157.75 | E37: 154 | F37: 157.25 | G37: 157.65 | H37: 155.65 | I37: 18797 | J37: 2926817.8 | K37: 2019-07-26 | L37: 507 | M37: INE837H01020
A38: AEGISCHEM | B38: EQ | C38: 200.7 | D38: 200.7 | E38: 195.95 | F38: 199.75 | G38: 200 | H38: 200.4 | I38: 60416 | J38: 11999039.55 | K38: 2019-07-26 | L38: 2937 | M38: INE208C01025
A39: AGARIND | B39: EQ | C39: 114.15 | D39: 114.5 | E39: 112.4 | F39: 114.35 | G39: 114.4 | H39: 115.75 | I39: 820 | J39: 93140.6 | K39: 2019-07-26 | L39: 32 | M39: INE204E01012
A40: AGCNET | B40: EQ | C40: 87.25 | D40: 89.75 | E40: 86 | F40: 88.95 | G40: 88 | H40: 87.25 | I40: 338 | J40: 29674.4 | K40: 2019-07-26 | L40: 24 | M40: INE676A01019
A41: AGLSL | B41: EQ | C41: 46.1 | D41: 50.95 | E41: 46.1 | F41: 50.4 | G41: 50.95 | H41: 47.35 | I41: 759 | J41: 37602.45 | K41: 2019-07-26 | L41: 57 | M41: INE517U01013
A42: AGRITECH | B42: EQ | C42: 52.2 | D42: 54 | E42: 52.15 | F42: 53.9 | G42: 53.5 | H42: 53.45 | I42: 5381 | J42: 286735.85 | K42: 2019-07-26 | L42: 119 | M42: INE449G01018
A43: AGROPHOS | B43: BE | C43: 93 | D43: 93.75 | E43: 85.5 | F43: 90.85 | G43: 93 | H43: 89.9 | I43: 6791 | J43: 610209.3 | K43: 2019-07-26 | L43: 50 | M43: INE740V01019
A44: AHLEAST | B44: EQ | C44: 164 | D44: 175.75 | E44: 164 | F44: 172.55 | G44: 167.1 | H44: 168.7 | I44: 999 | J44: 169329.8 | K44: 2019-07-26 | L44: 98 | M44: INE926K01017
A45: AHLUCONT | B45: EQ | C45: 297.6 | D45: 301.95 | E45: 296.1 | F45: 297.55 | G45: 298.7 | H45: 300 | I45: 11063 | J45: 3317359.15 | K45: 2019-07-26 | L45: 1388 | M45: INE758C01029
A46: AHLWEST | B46: EQ | C46: 280 | D46: 280 | E46: 251.5 | F46: 266.7 | G46: 269 | H46: 265.75 | I46: 648 | J46: 171669.75 | K46: 2019-07-26 | L46: 66 | M46: INE915K01010
A47: AIAENG | B47: EQ | C47: 1753 | D47: 1753 | E47: 1711.05 | F47: 1722.4 | G47: 1722.8 | H47: 1756.55 | I47: 48339 | J47: 83438972.45 | K47: 2019-07-26 | L47: 3607 | M47: INE212H01026
A48: AIONJSW | B48: EQ | C48: 17.9 | D48: 17.9 | E48: 17.05 | F48: 17.25 | G48: 17.35 | H48: 17.3 | I48: 14615 | J48: 251189.3 | K48: 2019-07-26 | L48: 137 | M48: INE743C01021
A49: AIRAN | B49: EQ | C49: 22.45 | D49: 22.45 | E49: 17.95 | F49: 21.55 | G49: 21.55 | H49: 20.6 | I49: 129044 | J49: 2678819.65 | K49: 2019-07-26 | L49: 1317 | M49: INE645W01026
A50: AJANTPHARM | B50: EQ | C50: 882.75 | D50: 911.9 | E50: 874.1 | F50: 901.05 | G50: 904.85 | H50: 884.05 | I50: 247296 | J50: 218643688.9 | K50: 2019-07-26 | L50: 4258 | M50: INE031B01049
A51: AJMERA | B51: EQ | C51: 130.3 | D51: 134.3 | E51: 130.3 | F51: 133.2 | G51: 133.95 | H51: 132.9 | I51: 23249 | J51: 3092997.25 | K51: 2019-07-26 | L51: 758 | M51: INE298G01027
A52: AKSHARCHEM | B52: EQ | C52: 235.15 | D52: 241.75 | E52: 228.65 | F52: 235.65 | G52: 236.9 | H52: 235.5 | I52: 3091 | J52: 721442 | K52: 2019-07-26 | L52: 193 | M52: INE542B01011
A53: AKSHOPTFBR | B53: EQ | C53: 9 | D53: 9.6 | E53: 8.95 | F53: 9.45 | G53: 9.6 | H53: 9.1 | I53: 387974 | J53: 3589924.75 | K53: 2019-07-26 | L53: 826 | M53: INE523B01011
A54: AKZOINDIA | B54: EQ | C54: 1725.6 | D54: 1740.05 | E54: 1702.65 | F54: 1726.35 | G54: 1730 | H54: 1730.65 | I54: 2028 | J54: 3491123.35 | K54: 2019-07-26 | L54: 552 | M54: INE133A01011
A55: ALANKIT | B55: EQ | C55: 25.1 | D55: 25.3 | E55: 24.5 | F55: 25.05 | G55: 25.15 | H55: 25.1 | I55: 452451 | J55: 11315420 | K55: 2019-07-26 | L55: 2854 | M55: INE914E01040
A56: ALBERTDAVD | B56: EQ | C56: 365.2 | D56: 382.85 | E56: 360 | F56: 364.05 | G56: 366.9 | H56: 371.55 | I56: 1512 | J56: 555175.6 | K56: 2019-07-26 | L56: 139 | M56: INE155C01010
A57: ALBK | B57: EQ | C57: 40.3 | D57: 41.05 | E57: 39.7 | F57: 40.3 | G57: 40.1 | H57: 40.35 | I57: 1695839 | J57: 68457451.3 | K57: 2019-07-26 | L57: 6392 | M57: INE428A01015
A58: ALCHEM | B58: BE | C58: 1.1 | D58: 1.2 | E58: 1.1 | F58: 1.15 | G58: 1.15 | H58: 1.15 | I58: 5793 | J58: 6621.65 | K58: 2019-07-26 | L58: 16 | M58: INE964B01033
A59: ALEMBICLTD | B59: EQ | C59: 43 | D59: 43.7 | E59: 42.4 | F59: 43.4 | G59: 43.7 | H59: 42.7 | I59: 122663 | J59: 5305597.75 | K59: 2019-07-26 | L59: 631 | M59: INE426A01027
A60: ALICON | B60: EQ | C60: 491.05 | D60: 509.7 | E60: 481.15 | F60: 486.25 | G60: 483.05 | H60: 492 | I60: 500 | J60: 243303.4 | K60: 2019-07-26 | L60: 125 | M60: INE062D01024
A61: ALKALI | B61: EQ | C61: 36.5 | D61: 36.5 | E61: 35.45 | F61: 35.8 | G61: 35.5 | H61: 37 | I61: 4767 | J61: 170039.4 | K61: 2019-07-26 | L61: 91 | M61: INE773I01017
A62: ALKEM | B62: EQ | C62: 1810 | D62: 1828 | E62: 1793.1 | F62: 1815.15 | G62: 1810 | H62: 1815.15 | I62: 12032 | J62: 21847978.7 | K62: 2019-07-26 | L62: 3015 | M62: INE540L01014
A63: ALKYLAMINE | B63: EQ | C63: 745.1 | D63: 769.4 | E63: 745.1 | F63: 764.2 | G63: 760 | H63: 757.9 | I63: 1061 | J63: 808734.65 | K63: 2019-07-26 | L63: 195 | M63: INE150B01021
A64: ALLCARGO | B64: EQ | C64: 98.65 | D64: 101.2 | E64: 98.65 | F64: 100.85 | G64: 100.5 | H64: 100.15 | I64: 53676 | J64: 5389428.8 | K64: 2019-07-26 | L64: 1679 | M64: INE418H01029
A65: ALLSEC | B65: EQ | C65: 307.95 | D65: 307.95 | E65: 296 | F65: 296.5 | G65: 296.5 | H65: 296.35 | I65: 4231 | J65: 1253872.3 | K65: 2019-07-26 | L65: 160 | M65: INE835G01018
A66: ALMONDZ | B66: EQ | C66: 13.8 | D66: 14.4 | E66: 13.8 | F66: 14.4 | G66: 14.4 | H66: 14.3 | I66: 1211 | J66: 16832.3 | K66: 2019-07-26 | L66: 21 | M66: INE326B01027
A67: ALOKTEXT | B67: EQ | C67: 3.15 | D67: 3.15 | E67: 3.15 | F67: 3.15 | G67: 3.15 | H67: 3 | I67: 2826822 | J67: 8904489.3 | K67: 2019-07-26 | L67: 393 | M67: INE270A01011
A68: ALPA | B68: EQ | C68: 18.4 | D68: 18.5 | E68: 17 | F68: 17.15 | G68: 17.25 | H68: 17.9 | I68: 34090 | J68: 596718.75 | K68: 2019-07-26 | L68: 285 | M68: INE385I01010
A69: ALPHAGEO | B69: EQ | C69: 305.15 | D69: 315.5 | E69: 305 | F69: 310.75 | G69: 313.5 | H69: 305.15 | I69: 7096 | J69: 2199006.4 | K69: 2019-07-26 | L69: 508 | M69: INE137C01018
A70: ALPSINDUS | B70: BE | C70: 0.6 | D70: 0.6 | E70: 0.6 | F70: 0.6 | G70: 0.6 | H70: 0.6 | I70: 911 | J70: 546.6 | K70: 2019-07-26 | L70: 6 | M70: INE093B01015
A71: AMARAJABAT | B71: EQ | C71: 636.5 | D71: 655 | E71: 635.25 | F71: 651 | G71: 651.6 | H71: 635.95 | I71: 869534 | J71: 562856446.1 | K71: 2019-07-26 | L71: 15666 | M71: INE885A01032
A72: AMBER | B72: EQ | C72: 813.6 | D72: 823.7 | E72: 797 | F72: 808.8 | G72: 808 | H72: 806.35 | I72: 4098 | J72: 3320498.95 | K72: 2019-07-26 | L72: 443 | M72: INE371P01015
A73: AMBIKCO | B73: EQ | C73: 935 | D73: 945.9 | E73: 902.7 | F73: 909.2 | G73: 915 | H73: 934.4 | I73: 3005 | J73: 2750766.3 | K73: 2019-07-26 | L73: 488 | M73: INE540G01014
A74: AMBUJACEM | B74: EQ | C74: 215.3 | D74: 215.6 | E74: 209.1 | F74: 213.45 | G74: 213.5 | H74: 214.05 | I74: 4479103 | J74: 951243436.6 | K74: 2019-07-26 | L74: 46387 | M74: INE079A01024
A75: AMDIND | B75: EQ | C75: 15.25 | D75: 16.25 | E75: 15.2 | F75: 15.4 | G75: 15.75 | H75: 15.5 | I75: 6700 | J75: 102961.2 | K75: 2019-07-26 | L75: 59 | M75: INE005I01014
A76: AMJLAND | B76: EQ | C76: 16.7 | D76: 17.3 | E76: 16.55 | F76: 16.8 | G76: 17 | H76: 17 | I76: 2906 | J76: 48627.15 | K76: 2019-07-26 | L76: 35 | M76: INE606A01024
A77: AMRUTANJAN | B77: EQ | C77: 296.8 | D77: 305.15 | E77: 296.8 | F77: 302.25 | G77: 302 | H77: 294.65 | I77: 16248 | J77: 4905940.6 | K77: 2019-07-26 | L77: 916 | M77: INE098F01031
A78: ANANTRAJ | B78: EQ | C78: 27.5 | D78: 29 | E78: 27.4 | F78: 28.85 | G78: 28.9 | H78: 27.65 | I78: 201707 | J78: 5737044.8 | K78: 2019-07-26 | L78: 664 | M78: INE242C01024
A79: ANDHRABANK | B79: EQ | C79: 21.75 | D79: 22.4 | E79: 21.35 | F79: 21.75 | G79: 21.7 | H79: 21.8 | I79: 700844 | J79: 15342290.1 | K79: 2019-07-26 | L79: 2162 | M79: INE434A01013
A80: ANDHRACEMT | B80: EQ | C80: 2.95 | D80: 3.05 | E80: 2.85 | F80: 2.9 | G80: 2.9 | H80: 2.95 | I80: 194822 | J80: 563460.2 | K80: 2019-07-26 | L80: 151 | M80: INE666E01012
A81: ANDHRSUGAR | B81: EQ | C81: 284 | D81: 290 | E81: 283 | F81: 283.55 | G81: 284 | H81: 284.35 | I81: 18770 | J81: 5356704.8 | K81: 2019-07-26 | L81: 1184 | M81: INE715B01013
A82: ANIKINDS | B82: EQ | C82: 8.9 | D82: 9.05 | E82: 8.4 | F82: 8.4 | G82: 8.4 | H82: 8.8 | I82: 9874 | J82: 83496.4 | K82: 2019-07-26 | L82: 46 | M82: INE087B01017
A83: ANKITMETAL | B83: BE | C83: 0.65 | D83: 0.65 | E83: 0.6 | F83: 0.6 | G83: 0.6 | H83: 0.65 | I83: 15603 | J83: 9465.05 | K83: 2019-07-26 | L83: 29 | M83: INE106I01010
A84: ANSALAPI | B84: EQ | C84: 4.6 | D84: 4.85 | E84: 4.6 | F84: 4.8 | G84: 4.85 | H84: 4.65 | I84: 20777 | J84: 98794.9 | K84: 2019-07-26 | L84: 66 | M84: INE436A01026
A85: ANSALHSG | B85: EQ | C85: 4.7 | D85: 4.8 | E85: 4.5 | F85: 4.7 | G85: 4.75 | H85: 4.7 | I85: 40075 | J85: 186505.5 | K85: 2019-07-26 | L85: 200 | M85: INE880B01015
A86: ANTGRAPHIC | B86: BE | C86: 0.85 | D86: 0.9 | E86: 0.85 | F86: 0.9 | G86: 0.9 | H86: 0.9 | I86: 26695 | J86: 23203 | K86: 2019-07-26 | L86: 27 | M86: INE414B01021
A87: ANUP | B87: EQ | C87: 473 | D87: 483.8 | E87: 461.5 | F87: 479.7 | G87: 480 | H87: 480.75 | I87: 6655 | J87: 3159872.3 | K87: 2019-07-26 | L87: 493 | M87: INE294Z01018
A88: APARINDS | B88: EQ | C88: 524 | D88: 529.8 | E88: 521.6 | F88: 525 | G88: 525 | H88: 526.3 | I88: 13565 | J88: 7119892.65 | K88: 2019-07-26 | L88: 1484 | M88: INE372A01015
A89: APCL | B89: EQ | C89: 149 | D89: 154.9 | E89: 148.1 | F89: 154.6 | G89: 154.9 | H89: 152.2 | I89: 1011 | J89: 155278.15 | K89: 2019-07-26 | L89: 66 | M89: INE071F01012
A90: APCOTEXIND | B90: EQ | C90: 187.4 | D90: 189 | E90: 184.5 | F90: 188.1 | G90: 189 | H90: 187.4 | I90: 5714 | J90: 1073976.25 | K90: 2019-07-26 | L90: 204 | M90: INE116A01032
A91: APEX | B91: EQ | C91: 231.2 | D91: 235.6 | E91: 230.35 | F91: 233.7 | G91: 234 | H91: 232.55 | I91: 27495 | J91: 6404159.5 | K91: 2019-07-26 | L91: 1021 | M91: INE346W01013
A92: APLAPOLLO | B92: EQ | C92: 1448.45 | D92: 1475.15 | E92: 1444 | F92: 1451.85 | G92: 1450 | H92: 1466.45 | I92: 7208 | J92: 10494041.65 | K92: 2019-07-26 | L92: 871 | M92: INE702C01019
A93: APLLTD | B93: EQ | C93: 534.8 | D93: 544 | E93: 528.05 | F93: 535.6 | G93: 534.7 | H93: 536.75 | I93: 13306 | J93: 7160269.9 | K93: 2019-07-26 | L93: 746 | M93: INE901L01018
A94: APOLLO | B94: EQ | C94: 91.8 | D94: 93.7 | E94: 90.05 | F94: 92.5 | G94: 93.5 | H94: 91.7 | I94: 21155 | J94: 1949925 | K94: 2019-07-26 | L94: 553 | M94: INE713T01010
A95: APOLLOHOSP | B95: EQ | C95: 1344.15 | D95: 1367.75 | E95: 1322.9 | F95: 1363.05 | G95: 1364.65 | H95: 1343.6 | I95: 336855 | J95: 454586574.4 | K95: 2019-07-26 | L95: 22715 | M95: INE437A01024
A96: APOLLOTYRE | B96: EQ | C96: 162.25 | D96: 165.5 | E96: 160.2 | F96: 164.05 | G96: 164 | H96: 161.35 | I96: 2768222 | J96: 451765757.4 | K96: 2019-07-26 | L96: 25452 | M96: INE438A01022
A97: APOLSINHOT | B97: EQ | C97: 900.35 | D97: 900.35 | E97: 875 | F97: 884.25 | G97: 884.5 | H97: 896.35 | I97: 171 | J97: 151006.1 | K97: 2019-07-26 | L97: 42 | M97: INE451F01024
A98: APTECHT | B98: EQ | C98: 128.2 | D98: 131.6 | E98: 127.1 | F98: 128.5 | G98: 128.5 | H98: 129.85 | I98: 133209 | J98: 17181925.25 | K98: 2019-07-26 | L98: 3265 | M98: INE266F01018
A99: ARCHIDPLY | B99: EQ | C99: 27.05 | D99: 27.95 | E99: 26.35 | F99: 27.65 | G99: 27.75 | H99: 27.45 | I99: 12140 | J99: 329872.05 | K99: 2019-07-26 | L99: 175 | M99: INE877I01016
A100: ARCHIES | B100: EQ | C100: 18.8 | D100: 18.8 | E100: 18.1 | F100: 18.3 | G100: 18.25 | H100: 18.3 | I100: 12960 | J100: 238476 | K100: 2019-07-26 | L100: 122 | M100: INE731A01020
A101: ARCOTECH | B101: EQ | C101: 2.5 | D101: 2.7 | E101: 2.5 | F101: 2.65 | G101: 2.65 | H101: 2.6 | I101: 28675 | J101: 74803.65 | K101: 2019-07-26 | L101: 51 | M101: INE574I01035
A102: ARIES | B102: EQ | C102: 50.4 | D102: 50.4 | E102: 48.5 | F102: 49.25 | G102: 50 | H102: 50.35 | I102: 18419 | J102: 901634.35 | K102: 2019-07-26 | L102: 332 | M102: INE298I01015
A103: ARIHANT | B103: EQ | C103: 21.3 | D103: 21.3 | E103: 20.25 | F103: 20.25 | G103: 20.25 | H103: 20 | I103: 27 | J103: 548.85 | K103: 2019-07-26 | L103: 4 | M103: INE413D01011
A104: ARIHANTSUP | B104: EQ | C104: 38.6 | D104: 38.6 | E104: 36.25 | F104: 36.95 | G104: 37.05 | H104: 37.75 | I104: 39190 | J104: 1454497.75 | K104: 2019-07-26 | L104: 197 | M104: INE643K01018
A105: ARMANFIN | B105: EQ | C105: 406.1 | D105: 410.25 | E105: 391.1 | F105: 397.2 | G105: 399.9 | H105: 406 | I105: 2795 | J105: 1113727.1 | K105: 2019-07-26 | L105: 170 | M105: INE109C01017
A106: AROGRANITE | B106: EQ | C106: 39.6 | D106: 39.7 | E106: 36.1 | F106: 37.7 | G106: 37.85 | H106: 36.65 | I106: 3167 | J106: 116962.35 | K106: 2019-07-26 | L106: 68 | M106: INE210C01013
A107: ARROWGREEN | B107: BE | C107: 56.7 | D107: 56.7 | E107: 52.8 | F107: 53.25 | G107: 52.8 | H107: 55.55 | I107: 10618 | J107: 568889.65 | K107: 2019-07-26 | L107: 70 | M107: INE570D01018
A108: ARROWTEX | B108: EQ | C108: 11.25 | D108: 11.8 | E108: 11.05 | F108: 11.65 | G108: 11.65 | H108: 11.25 | I108: 4673 | J108: 53550.6 | K108: 2019-07-26 | L108: 31 | M108: INE933J01015
A109: ARSHIYA | B109: EQ | C109: 17.3 | D109: 17.75 | E109: 17.1 | F109: 17.15 | G109: 17.15 | H109: 17.1 | I109: 1093 | J109: 19033.15 | K109: 2019-07-26 | L109: 27 | M109: INE968D01022
A110: ARSSINFRA | B110: EQ | C110: 27 | D110: 29.45 | E110: 26.9 | F110: 27.25 | G110: 26.9 | H110: 28.3 | I110: 22601 | J110: 612398.65 | K110: 2019-07-26 | L110: 118 | M110: INE267I01010
A111: ARVIND | B111: EQ | C111: 58.75 | D111: 61.75 | E111: 58.1 | F111: 60.9 | G111: 60.55 | H111: 58.5 | I111: 7245762 | J111: 439513465.5 | K111: 2019-07-26 | L111: 20145 | M111: INE034A01011
A112: ARVINDFASN | B112: EQ | C112: 651.05 | D112: 654.6 | E112: 639.8 | F112: 650.05 | G112: 645 | H112: 651.9 | I112: 60921 | J112: 39600781.5 | K112: 2019-07-26 | L112: 2055 | M112: INE955V01021
A113: ARVSMART | B113: EQ | C113: 90.6 | D113: 94.4 | E113: 90.6 | F113: 92.7 | G113: 93.5 | H113: 93.75 | I113: 3588 | J113: 334502.1 | K113: 2019-07-26 | L113: 202 | M113: INE034S01021
A114: ASAHIINDIA | B114: EQ | C114: 199.05 | D114: 202.5 | E114: 199.05 | F114: 201.35 | G114: 201 | H114: 200.5 | I114: 4776 | J114: 961008.25 | K114: 2019-07-26 | L114: 140 | M114: INE439A01020
A115: ASAHISONG | B115: EQ | C115: 128 | D115: 136.7 | E115: 125 | F115: 135 | G115: 135.9 | H115: 128.6 | I115: 1175 | J115: 154951.7 | K115: 2019-07-26 | L115: 251 | M115: INE228I01012
A116: ASAL | B116: EQ | C116: 40.6 | D116: 42 | E116: 39.6 | F116: 41 | G116: 41 | H116: 39.3 | I116: 2787 | J116: 113310.3 | K116: 2019-07-26 | L116: 58 | M116: INE900C01027
A117: ASHAPURMIN | B117: EQ | C117: 23.95 | D117: 23.95 | E117: 23.95 | F117: 23.95 | G117: 23.95 | H117: 22.85 | I117: 49434 | J117: 1183944.3 | K117: 2019-07-26 | L117: 61 | M117: INE348A01023
A118: ASHIANA | B118: EQ | C118: 114.15 | D118: 116.55 | E118: 112.8 | F118: 113.8 | G118: 114.25 | H118: 113.5 | I118: 24017 | J118: 2746834.9 | K118: 2019-07-26 | L118: 508 | M118: INE365D01021
A119: ASHIMASYN | B119: EQ | C119: 8.15 | D119: 8.15 | E119: 7.25 | F119: 7.85 | G119: 7.9 | H119: 8.15 | I119: 32865 | J119: 258024.25 | K119: 2019-07-26 | L119: 285 | M119: INE440A01010
A120: ASHOKA | B120: EQ | C120: 118.4 | D120: 122 | E120: 117.5 | F120: 121.05 | G120: 121.1 | H120: 120.1 | I120: 249834 | J120: 30007329.1 | K120: 2019-07-26 | L120: 3627 | M120: INE442H01029
A121: ASHOKLEY | B121: EQ | C121: 72.5 | D121: 74.9 | E121: 72.35 | F121: 74.2 | G121: 74.25 | H121: 72.3 | I121: 20215434 | J121: 1494219776 | K121: 2019-07-26 | L121: 61987 | M121: INE208A01029
A122: ASIANHOTNR | B122: EQ | C122: 114.1 | D122: 120 | E122: 114.1 | F122: 117.55 | G122: 116.9 | H122: 116.3 | I122: 833 | J122: 96577.95 | K122: 2019-07-26 | L122: 158 | M122: INE363A01022
A123: ASIANPAINT | B123: EQ | C123: 1488.1 | D123: 1530.8 | E123: 1485.6 | F123: 1526.45 | G123: 1525 | H123: 1495.85 | I123: 2420636 | J123: 3661747204 | K123: 2019-07-26 | L123: 115633 | M123: INE021A01026
A124: ASIANTILES | B124: EQ | C124: 219.8 | D124: 222 | E124: 217.4 | F124: 221.45 | G124: 220 | H124: 221 | I124: 29572 | J124: 6530177.4 | K124: 2019-07-26 | L124: 1511 | M124: INE022I01019
A125: ASPINWALL | B125: EQ | C125: 132 | D125: 142 | E125: 132 | F125: 140.1 | G125: 135.25 | H125: 136.55 | I125: 1544 | J125: 215292.15 | K125: 2019-07-26 | L125: 42 | M125: INE991I01015
A126: ASSAMCO | B126: BE | C126: 1.2 | D126: 1.2 | E126: 1.1 | F126: 1.1 | G126: 1.1 | H126: 1.15 | I126: 135105 | J126: 150008.2 | K126: 2019-07-26 | L126: 70 | M126: INE442A01024
A127: ASTEC | B127: EQ | C127: 333.3 | D127: 334.5 | E127: 312.7 | F127: 319.25 | G127: 320.05 | H127: 329.35 | I127: 21107 | J127: 6793429.35 | K127: 2019-07-26 | L127: 1013 | M127: INE563J01010
A128: ASTERDM | B128: EQ | C128: 121.75 | D128: 127.5 | E128: 121.55 | F128: 126.3 | G128: 127 | H128: 123 | I128: 138540 | J128: 17335140.65 | K128: 2019-07-26 | L128: 1215 | M128: INE914M01019
A129: ASTRAL | B129: EQ | C129: 1200 | D129: 1220 | E129: 1183 | F129: 1213.5 | G129: 1206 | H129: 1204.8 | I129: 104640 | J129: 126012564.8 | K129: 2019-07-26 | L129: 5676 | M129: INE006I01046
A130: ASTRAMICRO | B130: EQ | C130: 81.1 | D130: 81.95 | E130: 80 | F130: 81.3 | G130: 81 | H130: 80 | I130: 216945 | J130: 17596444.2 | K130: 2019-07-26 | L130: 1903 | M130: INE386C01029
A131: ASTRAZEN | B131: EQ | C131: 1851.65 | D131: 1915 | E131: 1844.95 | F131: 1876.65 | G131: 1875 | H131: 1852.1 | I131: 8354 | J131: 15770474 | K131: 2019-07-26 | L131: 1154 | M131: INE203A01020
A132: ASTRON | B132: EQ | C132: 92.3 | D132: 96.05 | E132: 91.1 | F132: 95.35 | G132: 96 | H132: 95.85 | I132: 360328 | J132: 34106789.8 | K132: 2019-07-26 | L132: 2463 | M132: INE646X01014
A133: ATFL | B133: EQ | C133: 497 | D133: 505 | E133: 497 | F133: 503.1 | G133: 505 | H133: 502.2 | I133: 1126 | J133: 564106.8 | K133: 2019-07-26 | L133: 86 | M133: INE209A01019
A134: ATLANTA | B134: EQ | C134: 8.2 | D134: 8.45 | E134: 8 | F134: 8.3 | G134: 8.25 | H134: 8.2 | I134: 6381 | J134: 52946.7 | K134: 2019-07-26 | L134: 50 | M134: INE285H01022
A135: ATLASCYCLE | B135: BE | C135: 42.25 | D135: 42.25 | E135: 39.15 | F135: 40.75 | G135: 41 | H135: 40.75 | I135: 3290 | J135: 132111.1 | K135: 2019-07-26 | L135: 29 | M135: INE446A01025
A136: ATNINTER | B136: BE | C136: 0.2 | D136: 0.25 | E136: 0.2 | F136: 0.25 | G136: 0.25 | H136: 0.25 | I136: 39663 | J136: 8515.25 | K136: 2019-07-26 | L136: 25 | M136: INE803A01027
A137: ATUL | B137: EQ | C137: 3679.9 | D137: 3697.7 | E137: 3602.05 | F137: 3660.65 | G137: 3645 | H137: 3678.3 | I137: 152049 | J137: 557954213.2 | K137: 2019-07-26 | L137: 8324 | M137: INE100A01010
A138: ATULAUTO | B138: EQ | C138: 248 | D138: 254 | E138: 246.6 | F138: 248.4 | G138: 247.1 | H138: 247.05 | I138: 9845 | J138: 2457288.2 | K138: 2019-07-26 | L138: 703 | M138: INE951D01028
A139: AUBANK | B139: EQ | C139: 660 | D139: 677 | E139: 655 | F139: 659.45 | G139: 659.2 | H139: 634.1 | I139: 455634 | J139: 301447064.7 | K139: 2019-07-26 | L139: 29161 | M139: INE949L01017
A140: AURIONPRO | B140: EQ | C140: 101.3 | D140: 103.55 | E140: 101.3 | F140: 102.2 | G140: 102 | H140: 103.45 | I140: 1057 | J140: 108185.3 | K140: 2019-07-26 | L140: 50 | M140: INE132H01018
A141: AUROPHARMA | B141: EQ | C141: 557 | D141: 568.8 | E141: 550.25 | F141: 563.45 | G141: 562.15 | H141: 553.9 | I141: 1645745 | J141: 924334363.2 | K141: 2019-07-26 | L141: 30554 | M141: INE406A01037
A142: AUSOMENT | B142: EQ | C142: 35 | D142: 35 | E142: 33.15 | F142: 34.8 | G142: 33.5 | H142: 33.45 | I142: 313 | J142: 10778.85 | K142: 2019-07-26 | L142: 19 | M142: INE218C01016
A143: AUTOAXLES | B143: EQ | C143: 805.55 | D143: 832.25 | E143: 785 | F143: 822.45 | G143: 816 | H143: 805.55 | I143: 16583 | J143: 13303551.2 | K143: 2019-07-26 | L143: 1572 | M143: INE449A01011
A144: AUTOIND | B144: EQ | C144: 43 | D144: 45.1 | E144: 42.1 | F144: 45 | G144: 45.1 | H144: 43 | I144: 11838 | J144: 521548.3 | K144: 2019-07-26 | L144: 206 | M144: INE718H01014
A145: AVADHSUGAR | B145: EQ | C145: 261.1 | D145: 275.9 | E145: 261.1 | F145: 267.4 | G145: 267 | H145: 265.65 | I145: 43278 | J145: 11663617.25 | K145: 2019-07-26 | L145: 2215 | M145: INE349W01017
A146: AVANTIFEED | B146: EQ | C146: 319.1 | D146: 328.9 | E146: 315.05 | F146: 322.6 | G146: 323 | H146: 319.1 | I146: 289136 | J146: 93537306.55 | K146: 2019-07-26 | L146: 7897 | M146: INE871C01038
A147: AVTNPL | B147: EQ | C147: 21.25 | D147: 22.3 | E147: 21.25 | F147: 21.95 | G147: 22 | H147: 21.85 | I147: 24983 | J147: 547266.2 | K147: 2019-07-26 | L147: 151 | M147: INE488D01021
A148: AXISBANK | B148: EQ | C148: 723.55 | D148: 732 | E148: 719.2 | F148: 729.85 | G148: 730.55 | H148: 723.15 | I148: 5450010 | J148: 3965371468 | K148: 2019-07-26 | L148: 116857 | M148: INE238A01034
A149: AXISCADES | B149: EQ | C149: 64.8 | D149: 71.5 | E149: 64.8 | F149: 68.5 | G149: 68 | H149: 64.75 | I149: 330764 | J149: 22883828.8 | K149: 2019-07-26 | L149: 1992 | M149: INE555B01013
A150: AXISGOLD | B150: EQ | C150: 3094 | D150: 3094 | E150: 3027.05 | F150: 3032.05 | G150: 3032.1 | H150: 3055 | I150: 85 | J150: 259318.65 | K150: 2019-07-26 | L150: 34 | M150: INF846K01347
A151: AXISNIFTY | B151: EQ | C151: 1158.7 | D151: 1163.97 | E151: 1156.33 | F151: 1162.16 | G151: 1163.97 | H151: 1164.64 | I151: 120 | J151: 139073.33 | K151: 2019-07-26 | L151: 12 | M151: INF846K01ZL0
A152: AYMSYNTEX | B152: EQ | C152: 30 | D152: 33.45 | E152: 30 | F152: 32.8 | G152: 33 | H152: 31.25 | I152: 3032 | J152: 97616.9 | K152: 2019-07-26 | L152: 59 | M152: INE193B01039
A153: BAFNAPHARM | B153: BE | C153: 5.75 | D153: 6.15 | E153: 5.75 | F153: 6.05 | G153: 6.15 | H153: 5.95 | I153: 942 | J153: 5558.65 | K153: 2019-07-26 | L153: 11 | M153: INE878I01014
A154: BAGFILMS | B154: EQ | C154: 3.05 | D154: 3.2 | E154: 3 | F154: 3.1 | G154: 3.2 | H154: 3.1 | I154: 28412 | J154: 87918.7 | K154: 2019-07-26 | L154: 74 | M154: INE116D01028
A155: BAJAJ-AUTO | B155: EQ | C155: 2547 | D155: 2679.95 | E155: 2506.25 | F155: 2618.65 | G155: 2624 | H155: 2547 | I155: 2105536 | J155: 5505704670 | K155: 2019-07-26 | L155: 120466 | M155: INE917I01010
A156: BAJAJCON | B156: EQ | C156: 288.7 | D156: 291 | E156: 283.15 | F156: 284.85 | G156: 284.9 | H156: 289.3 | I156: 29342 | J156: 8403998.55 | K156: 2019-07-26 | L156: 1610 | M156: INE933K01021
A157: BAJAJELEC | B157: EQ | C157: 409.6 | D157: 409.6 | E157: 375.95 | F157: 378.25 | G157: 376.6 | H157: 408.95 | I157: 538514 | J157: 206663076.7 | K157: 2019-07-26 | L157: 13950 | M157: INE193E01025
A158: BAJAJFINSV | B158: EQ | C158: 6775 | D158: 7298 | E158: 6631.7 | F158: 7233 | G158: 7279.7 | H158: 6782.3 | I158: 1282898 | J158: 9063618600 | K158: 2019-07-26 | L158: 118484 | M158: INE918I01018
A159: BAJAJHIND | B159: EQ | C159: 6.6 | D159: 6.95 | E159: 6.5 | F159: 6.85 | G159: 6.8 | H159: 6.8 | I159: 784812 | J159: 5369991.4 | K159: 2019-07-26 | L159: 1488 | M159: INE306A01021
A160: BAJAJHLDNG | B160: EQ | C160: 3389 | D160: 3411 | E160: 3312 | F160: 3384.75 | G160: 3373 | H160: 3372.6 | I160: 48703 | J160: 164756944.5 | K160: 2019-07-26 | L160: 7368 | M160: INE118A01012
A161: BAJFINANCE | B161: EQ | C161: 3046.5 | D161: 3278 | E161: 2994 | F161: 3264.6 | G161: 3272 | H161: 3046.5 | I161: 6945080 | J161: 2.207918143e+10 | K161: 2019-07-26 | L161: 315346 | M161: INE296A01024
A162: BALAJITELE | B162: EQ | C162: 54.35 | D162: 57 | E162: 53.35 | F162: 55.4 | G162: 57 | H162: 55.75 | I162: 18523 | J162: 1021104.05 | K162: 2019-07-26 | L162: 348 | M162: INE794B01026
A163: BALAMINES | B163: EQ | C163: 240 | D163: 259.4 | E163: 231 | F163: 256.55 | G163: 259 | H163: 240.6 | I163: 83118 | J163: 20373149.2 | K163: 2019-07-26 | L163: 3266 | M163: INE050E01027
A164: BALAXI | B164: BE | C164: 65 | D164: 68 | E164: 64 | F164: 67.25 | G164: 67.9 | H164: 66.3 | I164: 1399 | J164: 93236.8 | K164: 2019-07-26 | L164: 31 | M164: INE618N01014
A165: BALKRISHNA | B165: EQ | C165: 20.95 | D165: 22 | E165: 20.3 | F165: 21 | G165: 20.5 | H165: 21.6 | I165: 9208 | J165: 192413.6 | K165: 2019-07-26 | L165: 85 | M165: INE875R01011
A166: BALKRISIND | B166: EQ | C166: 724.15 | D166: 732.45 | E166: 717.25 | F166: 720.6 | G166: 719 | H166: 725.15 | I166: 266652 | J166: 193128076.2 | K166: 2019-07-26 | L166: 8002 | M166: INE787D01026
A167: BALLARPUR | B167: EQ | C167: 0.9 | D167: 0.9 | E167: 0.9 | F167: 0.9 | G167: 0.9 | H167: 0.95 | I167: 692887 | J167: 623598.3 | K167: 2019-07-26 | L167: 181 | M167: INE294A01037
A168: BALMLAWRIE | B168: EQ | C168: 172.85 | D168: 174.25 | E168: 172.65 | F168: 173 | G168: 173 | H168: 172.85 | I168: 35478 | J168: 6155115.6 | K168: 2019-07-26 | L168: 760 | M168: INE164A01016
A169: BALPHARMA | B169: EQ | C169: 45 | D169: 46.95 | E169: 45 | F169: 46.1 | G169: 46.25 | H169: 45.4 | I169: 2706 | J169: 123632.3 | K169: 2019-07-26 | L169: 73 | M169: INE083D01012
A170: BALRAMCHIN | B170: EQ | C170: 151.5 | D170: 153.4 | E170: 150.25 | F170: 152.35 | G170: 152.55 | H170: 151.15 | I170: 555689 | J170: 84518521.15 | K170: 2019-07-26 | L170: 10699 | M170: INE119A01028
A171: BANARBEADS | B171: EQ | C171: 43.1 | D171: 43.95 | E171: 35.3 | F171: 41.25 | G171: 43.95 | H171: 44.1 | I171: 44782 | J171: 1772784.6 | K171: 2019-07-26 | L171: 415 | M171: INE655B01011
A172: BANARISUG | B172: EQ | C172: 1401.05 | D172: 1429.95 | E172: 1400 | F172: 1403.2 | G172: 1400 | H172: 1400 | I172: 172 | J172: 241930.7 | K172: 2019-07-26 | L172: 46 | M172: INE459A01010
A173: BANCOINDIA | B173: EQ | C173: 99.15 | D173: 101.3 | E173: 96.25 | F173: 99.6 | G173: 100.35 | H173: 99.15 | I173: 38944 | J173: 3853440.3 | K173: 2019-07-26 | L173: 850 | M173: INE213C01025
A174: BANDHANBNK | B174: EQ | C174: 465.5 | D174: 493.9 | E174: 464.1 | F174: 490.2 | G174: 493.35 | H174: 461.4 | I174: 1784947 | J174: 865469020.4 | K174: 2019-07-26 | L174: 56063 | M174: INE545U01014
A175: BANG | B175: EQ | C175: 36.9 | D175: 37.8 | E175: 36.15 | F175: 36.45 | G175: 36.45 | H175: 36.5 | I175: 2422 | J175: 88366.9 | K175: 2019-07-26 | L175: 57 | M175: INE863I01016
A176: BANKBARODA | B176: EQ | C176: 112 | D176: 114.2 | E176: 110 | F176: 112.55 | G176: 112.35 | H176: 109.55 | I176: 32878840 | J176: 3702492975 | K176: 2019-07-26 | L176: 108936 | M176: INE028A01039
A177: BANKBEES | B177: EQ | C177: 2968.45 | D177: 2994 | E177: 2955.05 | F177: 2990.79 | G177: 2991 | H177: 2960.84 | I177: 3816 | J177: 11391700.78 | K177: 2019-07-26 | L177: 603 | M177: INF732E01078
A178: BANKINDIA | B178: EQ | C178: 75.65 | D178: 78.3 | E178: 74.85 | F178: 76.05 | G178: 76.15 | H178: 75.4 | I178: 10020072 | J178: 768530279.7 | K178: 2019-07-26 | L178: 24790 | M178: INE084A01016
A179: BANSWRAS | B179: EQ | C179: 65.25 | D179: 66 | E179: 65.25 | F179: 65.4 | G179: 65.35 | H179: 66.75 | I179: 248 | J179: 16220.7 | K179: 2019-07-26 | L179: 9 | M179: INE629D01012
A180: BARTRONICS | B180: EQ | C180: 3.45 | D180: 3.45 | E180: 3 | F180: 3 | G180: 3 | H180: 3.15 | I180: 14601 | J180: 44873.15 | K180: 2019-07-26 | L180: 80 | M180: INE855F01034
A181: BASF | B181: EQ | C181: 1080.1 | D181: 1100 | E181: 1080 | F181: 1096 | G181: 1095 | H181: 1076.7 | I181: 4279 | J181: 4656387.4 | K181: 2019-07-26 | L181: 561 | M181: INE373A01013
A182: BASML | B182: EQ | C182: 126 | D182: 137.7 | E182: 126 | F182: 132.95 | G182: 132.5 | H182: 132.3 | I182: 281 | J182: 37125.4 | K182: 2019-07-26 | L182: 35 | M182: INE186H01014
A183: BATAINDIA | B183: EQ | C183: 1299.3 | D183: 1328.6 | E183: 1292.75 | F183: 1316.55 | G183: 1323 | H183: 1301.3 | I183: 484288 | J183: 636776724 | K183: 2019-07-26 | L183: 15860 | M183: INE176A01028
A184: BAYERCROP | B184: EQ | C184: 3179 | D184: 3179.95 | E184: 3143.1 | F184: 3163.45 | G184: 3150 | H184: 3181.65 | I184: 30029 | J184: 94990877.9 | K184: 2019-07-26 | L184: 1557 | M184: INE462A01022
A185: BBL | B185: EQ | C185: 951.1 | D185: 965 | E185: 939.6 | F185: 944.75 | G185: 946 | H185: 937.75 | I185: 9459 | J185: 8973170.75 | K185: 2019-07-26 | L185: 888 | M185: INE464A01028
A186: BBTC | B186: EQ | C186: 887.9 | D186: 887.9 | E186: 859.8 | F186: 867.45 | G186: 865.6 | H186: 886.85 | I186: 36665 | J186: 31882206.35 | K186: 2019-07-26 | L186: 3226 | M186: INE050A01025
A187: BCG | B187: EQ | C187: 3.45 | D187: 3.45 | E187: 3.25 | F187: 3.4 | G187: 3.4 | H187: 3.3 | I187: 300477 | J187: 1021839.1 | K187: 2019-07-26 | L187: 204 | M187: INE425B01027
A188: BDL | B188: EQ | C188: 298 | D188: 305 | E188: 295.1 | F188: 300.55 | G188: 298.2 | H188: 294.45 | I188: 67581 | J188: 20307335.15 | K188: 2019-07-26 | L188: 3266 | M188: INE171Z01018
A189: BEARDSELL | B189: EQ | C189: 16.2 | D189: 16.55 | E189: 14.1 | F189: 15.5 | G189: 15.5 | H189: 14.95 | I189: 907 | J189: 14129.05 | K189: 2019-07-26 | L189: 31 | M189: INE520H01022
A190: BEDMUTHA | B190: EQ | C190: 16.1 | D190: 16.1 | E190: 14 | F190: 15 | G190: 14.55 | H190: 14.8 | I190: 5922 | J190: 86838.35 | K190: 2019-07-26 | L190: 38 | M190: INE844K01012
A191: BEL | B191: EQ | C191: 99.9 | D191: 99.9 | E191: 97.85 | F191: 98.65 | G191: 98.2 | H191: 99.15 | I191: 7019827 | J191: 693680527.6 | K191: 2019-07-26 | L191: 27941 | M191: INE263A01024
A192: BEML | B192: EQ | C192: 894.3 | D192: 909 | E192: 893 | F192: 900.65 | G192: 898.05 | H192: 888.95 | I192: 626588 | J192: 564499945.6 | K192: 2019-07-26 | L192: 22812 | M192: INE258A01016
A193: BEPL | B193: EQ | C193: 64.6 | D193: 64.65 | E193: 63 | F193: 63.3 | G193: 63 | H193: 64.3 | I193: 149345 | J193: 9485891.95 | K193: 2019-07-26 | L193: 1869 | M193: INE922A01025
A194: BERGEPAINT | B194: EQ | C194: 327 | D194: 331.5 | E194: 324.6 | F194: 327.9 | G194: 328.2 | H194: 327.05 | I194: 1032900 | J194: 339638761.8 | K194: 2019-07-26 | L194: 17620 | M194: INE463A01038
A195: BFINVEST | B195: EQ | C195: 262 | D195: 269.65 | E195: 252.95 | F195: 260.45 | G195: 260 | H195: 262.5 | I195: 90415 | J195: 23617075 | K195: 2019-07-26 | L195: 3065 | M195: INE878K01010
A196: BFUTILITIE | B196: EQ | C196: 203 | D196: 208.4 | E196: 195.2 | F196: 202.1 | G196: 201.55 | H196: 205.45 | I196: 1327964 | J196: 268783322.3 | K196: 2019-07-26 | L196: 19853 | M196: INE243D01012
A197: BGLOBAL | B197: BE | C197: 1.2 | D197: 1.25 | E197: 1.2 | F197: 1.2 | G197: 1.2 | H197: 1.25 | I197: 17666 | J197: 21231.2 | K197: 2019-07-26 | L197: 24 | M197: INE224M01013
A198: BGRENERGY | B198: EQ | C198: 44.65 | D198: 46.35 | E198: 44.55 | F198: 45.3 | G198: 45.4 | H198: 45 | I198: 36566 | J198: 1656715.05 | K198: 2019-07-26 | L198: 503 | M198: INE661I01014
A199: BHAGERIA | B199: EQ | C199: 111.7 | D199: 115 | E199: 110.05 | F199: 111.95 | G199: 111 | H199: 111.9 | I199: 16581 | J199: 1854291.35 | K199: 2019-07-26 | L199: 323 | M199: INE354C01027
A200: BHAGYANGR | B200: EQ | C200: 20.6 | D200: 21.6 | E200: 20.5 | F200: 21 | G200: 21 | H200: 21 | I200: 9995 | J200: 208255.55 | K200: 2019-07-26 | L200: 39 | M200: INE458B01036
... 1465 more rows

Sheet Sheet1 (hidden)

Sheet Sheet3 (hidden)

Sheet Sheet4 (hidden)
